Workbook

Sheet Ajánlat1 (hidden)
I3: UNION-Business Class
I4: Biztosítási ajánlat
B6: Kötvényszám | G6: Módozat | J6: Beérkezett:
B7: Üzletkötő neve: | G7: Üzletkötő kódja
B8: Átdolgozás | F8: Előzmény kötv.száma:
B9: Befizetés nyugatszáma | E9: Befizetés kelte: | G9: Befizetett összeg:
B11: Adóigazgatási szám: 1049 1984-2-44 | H11: Ajánlat azonosító:
B14: SZERZŐDŐ/BIZTOSÍTOTT NEVE:
B16: Szerződő/Biztosított neve:
B18: Adószáma: | F18: Tel: | H18: E-mail:
B19: Székhelye:
C20: ir.sz. | F20: helység | I20: utca | K20: hsz.em.ajtó
B21: Levelezési címe:
C22: ir.sz. | F22: helység | I22: utca | K22: hsz.em.ajtó
B23: Kockázatviselés helye:
C24: ir.sz. | F24: helység | I24: utca | K24: hsz.em.ajtó
B26: Kockázatviselés kezdete: | E26: =Dátum+1 -> 2021-04-01
B28: Kockázatviselés vége: | E28: Felmondási jog 3 évre kizárva | I28: Lejárata: | N28: =IF(OR(MOD(YEAR(E26)-2000,4)=0,J28=""),365,IF(J28-E26=364,365,J28-E26+1)) -> 365 | O28: =DATEVALUE(CONCATENATE(YEAR(E26)+1,".",MONTH(E26),".",DAY(E26),".")) -> 2022-04-01
B29: =IF(E28=0,0,IF(AND(E28="határozatlan",J28=0),0,IF(AND(E28="1 évnél rövidebb",J28=0),"Kérjük töltse ki a lejárat dátumát",IF(AND(E28="1 évnél rövidebb",J28>0),0,)))) -> 0 | N29: =IF(IF(DAY(E26)<3,DAY(E26),DAY(E26-1))<16,E26-DAY(E26)+1,DATEVALUE(CONCATENATE(YEAR(E26),".",IF(MONTH(E26)=12,"01",MONTH(E26)+1),".01"))) -> 2021-04-01
B30: Díjfizetés kezdete: | E30: =E26 -> 2021-04-01 | I30: Évforduló: | J30: =IF(DAY(E26)=1,O28,IF(DAY(E26)>1,N32)) -> 2022-04-01
B32: Díjfizetés gyakorisága: | E32: =Díjszámítás!H113 -> 0 | G32: Díjfizetés módja: | N32: =IF(E28="1 évnél rövidebb",0,IF(OR(J28="",N28>364),DATEVALUE(CONCATENATE(YEAR(E30)+1,".",IF(MONTH(E30)=12,"01",MONTH(E30)+1),".01")),"")) -> 2022-05-01
B34: Átutalási számlaszáma:
B36: Hitelfedezetet nyújtó pénzintézet neve, címe:
B38: Hitelszerződés száma: | G38: Kezdete: | J38: Lejárata:
B40: Hitelfedezet tárgya | J40: Hitel összege
B42: Záradékok
B43: =IF(E28="Felmondási jog 3 évre kizárva",B103,0) -> A biztosított/szerződő vállalja, hogy jelen szerződést 3 évig nem mondja fel, ezért a biztosító a biztosítás éves díjából 10% engedményt nyújt. Amennyiben a szerződő/biztosított a 3 év lejárata előtt felmondja a szerződést, a tartamengedmény címén nyújtott kedvezményt meg kell fizetnie.
B48: Ajánlatot teszek a túloldalon részletezett biztosításra, amelynek alapján az Union Vienna Insurance Group Biztosító Zrt azt a kötelezettséget vállalja, hogy díjfizetés ellenében készpénzben megtéríti a különös feltételekben felsorolt biztosítási események során bekövetkező azon károkat, amelyekre a biztosítási szerződés létrejött.
B50: Tudomásul veszem: | D50: hogy jelen ajánlat a biztosító kockázatelbírálásának alapja
D51: hogy a biztosító kártérítése - betöréses lopás esetén - a kár időpontjában fennálló vagyonvédelmi színvonal függvényében történik
D52: hogy a biztosító a tényleges adatoktól való eltérés esetén az alul- és túlbiztosítottságot vizsgálja
D53: hogy az ajánlat aláírásakor a biztosító képviselőjének átadott összeg előlegnek minősül, amely a szerződés hatályba lépésekor az első díjba beszámításra kerül.
B55: Kijelentem: | D55: hogy az Általános Feltételekben, a Különös Feltételekben, a Vagyonvédelmi Feltételekben, a Különös Felelősségbiztosítási Feltételekben foglaltakat az ajánlat aláírása előtt átvettem és megismertem.
D56: hogy a közölt adatok a valóságnak megfelelnek
D57: hogy jelen ajánlatomban minden biztosítási igényemmel kapcsolatos igényemet rögzítettek, más szóbeli megállapodás nem történt.
D58: hogy az itt feltüntetett vagyontárgyakra más biztosítónál biztosítást nem kötöttem.
B61: 00:00:00
D75: határozatlan | F75: igen
D76: 1 évnél rövidebb | F76: nem
D77: Felmondási jog 3 évre kizárva
D80: 1. csekk
D81: 2. csoportos beszedés (GIRO)
D82: 3. banki átutalás
D83: 4. egyéb
D85: 1. havi
D86: 2. negyedéves
D87: 3. féléves
D88: 4. éves
B90: Kelt. | E90: =TODAY() -> 2021-03-31
C93: üzletkötő | I93: szerződő/biztosított
B94: Verzió: 0.85
B95: UNION-Business Class Érvényes: 2009.06.24.-től
B103: A biztosított/szerződő vállalja, hogy jelen szerződést 3 évig nem mondja fel, ezért a biztosító a biztosítás éves díjából 10% engedményt nyújt. Amennyiben a szerződő/biztosított a 3 év lejárata előtt felmondja a szerződést, a tartamengedmény címén nyújtott kedvezményt meg kell fizetnie.

Sheet Munka3 (hidden)
A1: Tevkor | B1: Vagyon | C1: Felelosseg | D1: Betores | E1: Üzemszünet | F1: Géptörés | G1: Elber
A2: 1011 Húsfeldolgozás, -tartósítás | B2: 3 | C2: 3 | D2: 1 | E2: 3 | F2: 2 | G2: 2 | Q2: =IF(--ISNUMBER(SEARCH(Díjszámítás!$C$12,A2)),MAX($Q$1:Q1)+1,"") -> 1 | R2: =IFERROR(INDEX($A$2:$A$302,MATCH(ROWS($Q$2:Q2),$Q$2:$Q$302,0)),"") -> 1011 Húsfeldolgozás, -tartósítás | U2: =$R$2:INDEX($R$2:$R$302,COUNTIF($R$2:$R$302,"?*")) -> 1011 Húsfeldolgozás, -tartósítás
A3: 1012 Baromfihús feldolgozása, tartósítása | B3: 3 | C3: 3 | D3: 1 | E3: 3 | F3: 2 | G3: 2 | Q3: =IF(--ISNUMBER(SEARCH(Díjszámítás!$C$12,A3)),MAX($Q$1:Q2)+1,"") -> 2 | R3: =IFERROR(INDEX($A$2:$A$302,MATCH(ROWS($Q$2:Q3),$Q$2:$Q$302,0)),"") -> 1012 Baromfihús feldolgozása, tartósítása
A4: 1013 Hús-, baromfihús-készítmény gyártása | B4: 3 | C4: 3 | D4: 1 | E4: 3 | F4: 2 | G4: 2 | Q4: =IF(--ISNUMBER(SEARCH(Díjszámítás!$C$12,A4)),MAX($Q$1:Q3)+1,"") -> 3 | R4: =IFERROR(INDEX($A$2:$A$302,MATCH(ROWS($Q$2:Q4),$Q$2:$Q$302,0)),"") -> 1013 Hús-, baromfihús-készítmény gyártása
A5: 1020 Halfeldolgozás, -tartósítás | B5: 3 | C5: 3 | D5: 1 | E5: 3 | F5: 2 | G5: 2 | Q5: =IF(--ISNUMBER(SEARCH(Díjszámítás!$C$12,A5)),MAX($Q$1:Q4)+1,"") -> 4 | R5: =IFERROR(INDEX($A$2:$A$302,MATCH(ROWS($Q$2:Q5),$Q$2:$Q$302,0)),"") -> 1020 Halfeldolgozás, -tartósítás
A6: 1031 Burgonyafeldolgozás, -tartósítás | B6: 3 | C6: 3 | D6: 1 | E6: 3 | F6: 2 | G6: 1 | Q6: =IF(--ISNUMBER(SEARCH(Díjszámítás!$C$12,A6)),MAX($Q$1:Q5)+1,"") -> 5 | R6: =IFERROR(INDEX($A$2:$A$302,MATCH(ROWS($Q$2:Q6),$Q$2:$Q$302,0)),"") -> 1031 Burgonyafeldolgozás, -tartósítás
A7: 1032 Gyümölcs-, zöldséglé gyártása | B7: 3 | C7: 3 | D7: 1 | E7: 3 | F7: 2 | G7: 1 | Q7: =IF(--ISNUMBER(SEARCH(Díjszámítás!$C$12,A7)),MAX($Q$1:Q6)+1,"") -> 6 | R7: =IFERROR(INDEX($A$2:$A$302,MATCH(ROWS($Q$2:Q7),$Q$2:$Q$302,0)),"") -> 1032 Gyümölcs-, zöldséglé gyártása
A8: 1039 Egyéb gyümölcs-, zöldségfeldolgozás, -tartósítás | B8: 3 | C8: 3 | D8: 1 | E8: 3 | F8: 2 | G8: 1 | Q8: =IF(--ISNUMBER(SEARCH(Díjszámítás!$C$12,A8)),MAX($Q$1:Q7)+1,"") -> 7 | R8: =IFERROR(INDEX($A$2:$A$302,MATCH(ROWS($Q$2:Q8),$Q$2:$Q$302,0)),"") -> 1039 Egyéb gyümölcs-, zöldségfeldolgozás, -tartósítás
A9: 1041 Olaj gyártása | B9: 5 | C9: 3 | D9: 2 | E9: 5 | F9: 3 | G9: 2 | Q9: =IF(--ISNUMBER(SEARCH(Díjszámítás!$C$12,A9)),MAX($Q$1:Q8)+1,"") -> 8 | R9: =IFERROR(INDEX($A$2:$A$302,MATCH(ROWS($Q$2:Q9),$Q$2:$Q$302,0)),"") -> 1041 Olaj gyártása
A10: 1042 Margarin gyártása | B10: 5 | C10: 3 | D10: 2 | E10: 5 | F10: 3 | G10: 2 | Q10: =IF(--ISNUMBER(SEARCH(Díjszámítás!$C$12,A10)),MAX($Q$1:Q9)+1,"") -> 9 | R10: =IFERROR(INDEX($A$2:$A$302,MATCH(ROWS($Q$2:Q10),$Q$2:$Q$302,0)),"") -> 1042 Margarin gyártása
A11: 1051 Tejtermék gyártása | B11: 3 | C11: 3 | D11: 1 | E11: 3 | F11: 3 | G11: 1 | Q11: =IF(--ISNUMBER(SEARCH(Díjszámítás!$C$12,A11)),MAX($Q$1:Q10)+1,"") -> 10 | R11: =IFERROR(INDEX($A$2:$A$302,MATCH(ROWS($Q$2:Q11),$Q$2:$Q$302,0)),"") -> 1051 Tejtermék gyártása
A12: 1052 Jégkrém gyártása | B12: 3 | C12: 3 | D12: 1 | E12: 3 | F12: 3 | G12: 1 | Q12: =IF(--ISNUMBER(SEARCH(Díjszámítás!$C$12,A12)),MAX($Q$1:Q11)+1,"") -> 11 | R12: =IFERROR(INDEX($A$2:$A$302,MATCH(ROWS($Q$2:Q12),$Q$2:$Q$302,0)),"") -> 1052 Jégkrém gyártása
A13: 1071 Kenyér; friss pékáru gyártása | B13: 3 | C13: 3 | D13: 1 | E13: 3 | F13: 3 | G13: 2 | Q13: =IF(--ISNUMBER(SEARCH(Díjszámítás!$C$12,A13)),MAX($Q$1:Q12)+1,"") -> 12 | R13: =IFERROR(INDEX($A$2:$A$302,MATCH(ROWS($Q$2:Q13),$Q$2:$Q$302,0)),"") -> 1071 Kenyér; friss pékáru gyártása
A14: 1072 Tartósított lisztes áru gyártása | B14: 4 | C14: 3 | D14: 1 | E14: 4 | F14: 2 | G14: 1 | Q14: =IF(--ISNUMBER(SEARCH(Díjszámítás!$C$12,A14)),MAX($Q$1:Q13)+1,"") -> 13 | R14: =IFERROR(INDEX($A$2:$A$302,MATCH(ROWS($Q$2:Q14),$Q$2:$Q$302,0)),"") -> 1072 Tartósított lisztes áru gyártása
A15: 1073 Tésztafélék gyártása | B15: 4 | C15: 3 | D15: 1 | E15: 4 | F15: 2 | G15: 1 | Q15: =IF(--ISNUMBER(SEARCH(Díjszámítás!$C$12,A15)),MAX($Q$1:Q14)+1,"") -> 14 | R15: =IFERROR(INDEX($A$2:$A$302,MATCH(ROWS($Q$2:Q15),$Q$2:$Q$302,0)),"") -> 1073 Tésztafélék gyártása
A16: 1081 Cukorgyártás | B16: 4 | C16: 3 | D16: 2 | E16: 4 | F16: 3 | G16: 2 | Q16: =IF(--ISNUMBER(SEARCH(Díjszámítás!$C$12,A16)),MAX($Q$1:Q15)+1,"") -> 15 | R16: =IFERROR(INDEX($A$2:$A$302,MATCH(ROWS($Q$2:Q16),$Q$2:$Q$302,0)),"") -> 1081 Cukorgyártás
A17: 1082 Édesség gyártása | B17: 4 | C17: 3 | D17: 2 | E17: 4 | F17: 3 | G17: 2 | Q17: =IF(--ISNUMBER(SEARCH(Díjszámítás!$C$12,A17)),MAX($Q$1:Q16)+1,"") -> 16 | R17: =IFERROR(INDEX($A$2:$A$302,MATCH(ROWS($Q$2:Q17),$Q$2:$Q$302,0)),"") -> 1082 Édesség gyártása
A18: 1083 Tea, kávé feldolgozása | B18: 6 | C18: 3 | D18: 3 | E18: 6 | F18: 2 | G18: 2 | Q18: =IF(--ISNUMBER(SEARCH(Díjszámítás!$C$12,A18)),MAX($Q$1:Q17)+1,"") -> 17 | R18: =IFERROR(INDEX($A$2:$A$302,MATCH(ROWS($Q$2:Q18),$Q$2:$Q$302,0)),"") -> 1083 Tea, kávé feldolgozása
A19: 1084 Fűszer, ételízesítő gyártása | B19: 6 | C19: 3 | D19: 1 | E19: 6 | F19: 2 | G19: 2 | Q19: =IF(--ISNUMBER(SEARCH(Díjszámítás!$C$12,A19)),MAX($Q$1:Q18)+1,"") -> 18 | R19: =IFERROR(INDEX($A$2:$A$302,MATCH(ROWS($Q$2:Q19),$Q$2:$Q$302,0)),"") -> 1084 Fűszer, ételízesítő gyártása
A20: 1085 Készétel gyártása | B20: 3 | C20: 3 | D20: 1 | E20: 3 | F20: 3 | G20: 3 | Q20: =IF(--ISNUMBER(SEARCH(Díjszámítás!$C$12,A20)),MAX($Q$1:Q19)+1,"") -> 19 | R20: =IFERROR(INDEX($A$2:$A$302,MATCH(ROWS($Q$2:Q20),$Q$2:$Q$302,0)),"") -> 1085 Készétel gyártása
A21: 1086 Homogenizált, diétás étel gyártása | B21: 3 | C21: 3 | D21: 1 | E21: 3 | F21: 3 | G21: 3 | Q21: =IF(--ISNUMBER(SEARCH(Díjszámítás!$C$12,A21)),MAX($Q$1:Q20)+1,"") -> 20 | R21: =IFERROR(INDEX($A$2:$A$302,MATCH(ROWS($Q$2:Q21),$Q$2:$Q$302,0)),"") -> 1086 Homogenizált, diétás étel gyártása
A22: 1089 M.n.s. egyéb élelmiszer gyártása | B22: 3 | C22: 3 | D22: 1 | E22: 3 | F22: 3 | G22: 3 | Q22: =IF(--ISNUMBER(SEARCH(Díjszámítás!$C$12,A22)),MAX($Q$1:Q21)+1,"") -> 21 | R22: =IFERROR(INDEX($A$2:$A$302,MATCH(ROWS($Q$2:Q22),$Q$2:$Q$302,0)),"") -> 1089 M.n.s. egyéb élelmiszer gyártása
A23: 1091 Haszonállat-eledel gyártása | B23: 3 | C23: 3 | D23: 1 | E23: 3 | F23: 3 | G23: 3 | Q23: =IF(--ISNUMBER(SEARCH(Díjszámítás!$C$12,A23)),MAX($Q$1:Q22)+1,"") -> 22 | R23: =IFERROR(INDEX($A$2:$A$302,MATCH(ROWS($Q$2:Q23),$Q$2:$Q$302,0)),"") -> 1091 Haszonállat-eledel gyártása
A24: 1092 Hobbiállat-eledel gyártása | B24: 3 | C24: 3 | D24: 1 | E24: 3 | F24: 3 | G24: 3 | Q24: =IF(--ISNUMBER(SEARCH(Díjszámítás!$C$12,A24)),MAX($Q$1:Q23)+1,"") -> 23 | R24: =IFERROR(INDEX($A$2:$A$302,MATCH(ROWS($Q$2:Q24),$Q$2:$Q$302,0)),"") -> 1092 Hobbiállat-eledel gyártása
A25: 1101 Desztillált szeszes ital gyártása | B25: 6 | C25: 3 | D25: 2 | E25: 6 | F25: 3 | G25: 1 | Q25: =IF(--ISNUMBER(SEARCH(Díjszámítás!$C$12,A25)),MAX($Q$1:Q24)+1,"") -> 24 | R25: =IFERROR(INDEX($A$2:$A$302,MATCH(ROWS($Q$2:Q25),$Q$2:$Q$302,0)),"") -> 1101 Desztillált szeszes ital gyártása
A26: 1102 Szőlőbor termelése | B26: 2 | C26: 3 | D26: 1 | E26: 2 | F26: 3 | G26: 1 | Q26: =IF(--ISNUMBER(SEARCH(Díjszámítás!$C$12,A26)),MAX($Q$1:Q25)+1,"") -> 25 | R26: =IFERROR(INDEX($A$2:$A$302,MATCH(ROWS($Q$2:Q26),$Q$2:$Q$302,0)),"") -> 1102 Szőlőbor termelése
A27: 1103 Gyümölcsbor termelése | B27: 2 | C27: 3 | D27: 1 | E27: 2 | F27: 3 | G27: 1 | Q27: =IF(--ISNUMBER(SEARCH(Díjszámítás!$C$12,A27)),MAX($Q$1:Q26)+1,"") -> 26 | R27: =IFERROR(INDEX($A$2:$A$302,MATCH(ROWS($Q$2:Q27),$Q$2:$Q$302,0)),"") -> 1103 Gyümölcsbor termelése
A28: 1104 Egyéb nem desztillált, erjesztett ital gyártása | B28: 2 | C28: 3 | D28: 1 | E28: 2 | F28: 3 | G28: 1 | Q28: =IF(--ISNUMBER(SEARCH(Díjszámítás!$C$12,A28)),MAX($Q$1:Q27)+1,"") -> 27 | R28: =IFERROR(INDEX($A$2:$A$302,MATCH(ROWS($Q$2:Q28),$Q$2:$Q$302,0)),"") -> 1104 Egyéb nem desztillált, erjesztett ital gyártása
A29: 1105 Sörgyártás | B29: 6 | C29: 3 | D29: 2 | E29: 6 | F29: 3 | G29: 1 | Q29: =IF(--ISNUMBER(SEARCH(Díjszámítás!$C$12,A29)),MAX($Q$1:Q28)+1,"") -> 28 | R29: =IFERROR(INDEX($A$2:$A$302,MATCH(ROWS($Q$2:Q29),$Q$2:$Q$302,0)),"") -> 1105 Sörgyártás
A30: 1107 Üdítőital, ásványvíz gyártása | B30: 3 | C30: 3 | D30: 1 | E30: 3 | F30: 3 | G30: 2 | Q30: =IF(--ISNUMBER(SEARCH(Díjszámítás!$C$12,A30)),MAX($Q$1:Q29)+1,"") -> 29 | R30: =IFERROR(INDEX($A$2:$A$302,MATCH(ROWS($Q$2:Q30),$Q$2:$Q$302,0)),"") -> 1107 Üdítőital, ásványvíz gyártása
A31: 1411 Bőrruházat gyártása | B31: 4 | C31: 3 | D31: 3 | E31: 4 | F31: 2 | G31: 1 | Q31: =IF(--ISNUMBER(SEARCH(Díjszámítás!$C$12,A31)),MAX($Q$1:Q30)+1,"") -> 30 | R31: =IFERROR(INDEX($A$2:$A$302,MATCH(ROWS($Q$2:Q31),$Q$2:$Q$302,0)),"") -> 1411 Bőrruházat gyártása
A32: 1412 Munkaruházat gyártása | B32: 4 | C32: 3 | D32: 2 | E32: 4 | F32: 4 | G32: 2 | Q32: =IF(--ISNUMBER(SEARCH(Díjszámítás!$C$12,A32)),MAX($Q$1:Q31)+1,"") -> 31 | R32: =IFERROR(INDEX($A$2:$A$302,MATCH(ROWS($Q$2:Q32),$Q$2:$Q$302,0)),"") -> 1412 Munkaruházat gyártása
A33: 1413 Felsőruházat gyártása (kivéve: munkaruházat) | B33: 4 | C33: 3 | D33: 2 | E33: 4 | F33: 4 | G33: 2 | Q33: =IF(--ISNUMBER(SEARCH(Díjszámítás!$C$12,A33)),MAX($Q$1:Q32)+1,"") -> 32 | R33: =IFERROR(INDEX($A$2:$A$302,MATCH(ROWS($Q$2:Q33),$Q$2:$Q$302,0)),"") -> 1413 Felsőruházat gyártása (kivéve: munkaruházat)
A34: 1414 Alsóruházat gyártása | B34: 4 | C34: 3 | D34: 2 | E34: 4 | F34: 4 | G34: 2 | Q34: =IF(--ISNUMBER(SEARCH(Díjszámítás!$C$12,A34)),MAX($Q$1:Q33)+1,"") -> 33 | R34: =IFERROR(INDEX($A$2:$A$302,MATCH(ROWS($Q$2:Q34),$Q$2:$Q$302,0)),"") -> 1414 Alsóruházat gyártása
A35: 1419 Egyéb ruházat, kiegészítők gyártása | B35: 4 | C35: 3 | D35: 2 | E35: 4 | F35: 4 | G35: 2 | Q35: =IF(--ISNUMBER(SEARCH(Díjszámítás!$C$12,A35)),MAX($Q$1:Q34)+1,"") -> 34 | R35: =IFERROR(INDEX($A$2:$A$302,MATCH(ROWS($Q$2:Q35),$Q$2:$Q$302,0)),"") -> 1419 Egyéb ruházat, kiegészítők gyártása
A36: 1431 Kötött, hurkolt harisnyafélék gyártása | B36: 4 | C36: 3 | D36: 2 | E36: 4 | F36: 4 | G36: 2 | Q36: =IF(--ISNUMBER(SEARCH(Díjszámítás!$C$12,A36)),MAX($Q$1:Q35)+1,"") -> 35 | R36: =IFERROR(INDEX($A$2:$A$302,MATCH(ROWS($Q$2:Q36),$Q$2:$Q$302,0)),"") -> 1431 Kötött, hurkolt harisnyafélék gyártása
A37: 1439 Egyéb kötött, hurkolt ruházati termék gyártása | B37: 4 | C37: 3 | D37: 2 | E37: 4 | F37: 4 | G37: 2 | Q37: =IF(--ISNUMBER(SEARCH(Díjszámítás!$C$12,A37)),MAX($Q$1:Q36)+1,"") -> 36 | R37: =IFERROR(INDEX($A$2:$A$302,MATCH(ROWS($Q$2:Q37),$Q$2:$Q$302,0)),"") -> 1439 Egyéb kötött, hurkolt ruházati termék gyártása
A38: 1520 Lábbeligyártás | B38: 4 | C38: 3 | D38: 2 | E38: 4 | F38: 2 | G38: 1 | Q38: =IF(--ISNUMBER(SEARCH(Díjszámítás!$C$12,A38)),MAX($Q$1:Q37)+1,"") -> 37 | R38: =IFERROR(INDEX($A$2:$A$302,MATCH(ROWS($Q$2:Q38),$Q$2:$Q$302,0)),"") -> 1520 Lábbeligyártás
A39: 1610 Fűrészárugyártás | B39: 8 | C39: 4 | D39: 2 | E39: 8 | F39: 4 | G39: 3 | Q39: =IF(--ISNUMBER(SEARCH(Díjszámítás!$C$12,A39)),MAX($Q$1:Q38)+1,"") -> 38 | R39: =IFERROR(INDEX($A$2:$A$302,MATCH(ROWS($Q$2:Q39),$Q$2:$Q$302,0)),"") -> 1610 Fűrészárugyártás
A40: 1621 Falemezgyártás | B40: 6 | C40: 4 | D40: 2 | E40: 6 | F40: 1 | G40: 1 | Q40: =IF(--ISNUMBER(SEARCH(Díjszámítás!$C$12,A40)),MAX($Q$1:Q39)+1,"") -> 39 | R40: =IFERROR(INDEX($A$2:$A$302,MATCH(ROWS($Q$2:Q40),$Q$2:$Q$302,0)),"") -> 1621 Falemezgyártás
A41: 1622 Parkettagyártás | B41: 6 | C41: 4 | D41: 2 | E41: 6 | F41: 1 | G41: 1 | Q41: =IF(--ISNUMBER(SEARCH(Díjszámítás!$C$12,A41)),MAX($Q$1:Q40)+1,"") -> 40 | R41: =IFERROR(INDEX($A$2:$A$302,MATCH(ROWS($Q$2:Q41),$Q$2:$Q$302,0)),"") -> 1622 Parkettagyártás
A42: 1623 Épületasztalos-ipari termék gyártása | B42: 5 | C42: 4 | D42: 3 | E42: 5 | F42: 3 | G42: 1 | Q42: =IF(--ISNUMBER(SEARCH(Díjszámítás!$C$12,A42)),MAX($Q$1:Q41)+1,"") -> 41 | R42: =IFERROR(INDEX($A$2:$A$302,MATCH(ROWS($Q$2:Q42),$Q$2:$Q$302,0)),"") -> 1623 Épületasztalos-ipari termék gyártása
A43: 1624 Tároló fatermék gyártása | B43: 6 | C43: 4 | D43: 2 | E43: 6 | F43: 3 | G43: 2 | Q43: =IF(--ISNUMBER(SEARCH(Díjszámítás!$C$12,A43)),MAX($Q$1:Q42)+1,"") -> 42 | R43: =IFERROR(INDEX($A$2:$A$302,MATCH(ROWS($Q$2:Q43),$Q$2:$Q$302,0)),"") -> 1624 Tároló fatermék gyártása
A44: 1629 Egyéb fa-, parafatermék, fonottáru gyártása | B44: 5 | C44: 4 | D44: 2 | E44: 5 | F44: 2 | G44: 2 | Q44: =IF(--ISNUMBER(SEARCH(Díjszámítás!$C$12,A44)),MAX($Q$1:Q43)+1,"") -> 43 | R44: =IFERROR(INDEX($A$2:$A$302,MATCH(ROWS($Q$2:Q44),$Q$2:$Q$302,0)),"") -> 1629 Egyéb fa-, parafatermék, fonottáru gyártása
A45: 1711 Papíripari rostanyag gyártása | B45: 6 | C45: 4 | D45: 2 | E45: 6 | F45: 3 | G45: 3 | Q45: =IF(--ISNUMBER(SEARCH(Díjszámítás!$C$12,A45)),MAX($Q$1:Q44)+1,"") -> 44 | R45: =IFERROR(INDEX($A$2:$A$302,MATCH(ROWS($Q$2:Q45),$Q$2:$Q$302,0)),"") -> 1711 Papíripari rostanyag gyártása
A46: 1712 Papírgyártás | B46: 6 | C46: 4 | D46: 2 | E46: 6 | F46: 3 | G46: 3 | Q46: =IF(--ISNUMBER(SEARCH(Díjszámítás!$C$12,A46)),MAX($Q$1:Q45)+1,"") -> 45 | R46: =IFERROR(INDEX($A$2:$A$302,MATCH(ROWS($Q$2:Q46),$Q$2:$Q$302,0)),"") -> 1712 Papírgyártás
A47: 1721 Papír csomagolóeszköz gyártása | B47: 5 | C47: 4 | D47: 2 | E47: 5 | F47: 3 | G47: 3 | Q47: =IF(--ISNUMBER(SEARCH(Díjszámítás!$C$12,A47)),MAX($Q$1:Q46)+1,"") -> 46 | R47: =IFERROR(INDEX($A$2:$A$302,MATCH(ROWS($Q$2:Q47),$Q$2:$Q$302,0)),"") -> 1721 Papír csomagolóeszköz gyártása
A48: 1722 Háztartási, egészségügyi papírtermék gyártása | B48: 6 | C48: 4 | D48: 2 | E48: 6 | F48: 2 | G48: 2 | Q48: =IF(--ISNUMBER(SEARCH(Díjszámítás!$C$12,A48)),MAX($Q$1:Q47)+1,"") -> 47 | R48: =IFERROR(INDEX($A$2:$A$302,MATCH(ROWS($Q$2:Q48),$Q$2:$Q$302,0)),"") -> 1722 Háztartási, egészségügyi papírtermék gyártása
A49: 1723 Irodai papíráru gyártása | B49: 6 | C49: 4 | D49: 2 | E49: 6 | F49: 3 | G49: 3 | Q49: =IF(--ISNUMBER(SEARCH(Díjszámítás!$C$12,A49)),MAX($Q$1:Q48)+1,"") -> 48 | R49: =IFERROR(INDEX($A$2:$A$302,MATCH(ROWS($Q$2:Q49),$Q$2:$Q$302,0)),"") -> 1723 Irodai papíráru gyártása
A50: 1724 Tapétagyártás | B50: 6 | C50: 4 | D50: 2 | E50: 6 | F50: 3 | G50: 3 | Q50: =IF(--ISNUMBER(SEARCH(Díjszámítás!$C$12,A50)),MAX($Q$1:Q49)+1,"") -> 49 | R50: =IFERROR(INDEX($A$2:$A$302,MATCH(ROWS($Q$2:Q50),$Q$2:$Q$302,0)),"") -> 1724 Tapétagyártás
A51: 1729 Egyéb papír-, kartontermék gyártása | B51: 6 | C51: 4 | D51: 2 | E51: 6 | F51: 3 | G51: 3 | Q51: =IF(--ISNUMBER(SEARCH(Díjszámítás!$C$12,A51)),MAX($Q$1:Q50)+1,"") -> 50 | R51: =IFERROR(INDEX($A$2:$A$302,MATCH(ROWS($Q$2:Q51),$Q$2:$Q$302,0)),"") -> 1729 Egyéb papír-, kartontermék gyártása
A52: 1811 Napilapnyomás | B52: 4 | C52: 4 | D52: 1 | E52: 4 | F52: 4 | G52: 1 | Q52: =IF(--ISNUMBER(SEARCH(Díjszámítás!$C$12,A52)),MAX($Q$1:Q51)+1,"") -> 51 | R52: =IFERROR(INDEX($A$2:$A$302,MATCH(ROWS($Q$2:Q52),$Q$2:$Q$302,0)),"") -> 1811 Napilapnyomás
A53: 1812 Nyomás (kivéve: napilap) | B53: 4 | C53: 4 | D53: 1 | E53: 4 | F53: 4 | G53: 1 | Q53: =IF(--ISNUMBER(SEARCH(Díjszámítás!$C$12,A53)),MAX($Q$1:Q52)+1,"") -> 52 | R53: =IFERROR(INDEX($A$2:$A$302,MATCH(ROWS($Q$2:Q53),$Q$2:$Q$302,0)),"") -> 1812 Nyomás (kivéve: napilap)
A54: 1813 Nyomdai előkészítő tevékenység | B54: 4 | C54: 4 | D54: 1 | E54: 4 | F54: 4 | G54: 2 | Q54: =IF(--ISNUMBER(SEARCH(Díjszámítás!$C$12,A54)),MAX($Q$1:Q53)+1,"") -> 53 | R54: =IFERROR(INDEX($A$2:$A$302,MATCH(ROWS($Q$2:Q54),$Q$2:$Q$302,0)),"") -> 1813 Nyomdai előkészítő tevékenység
A55: 1814 Könyvkötés, kapcsolódó szolgáltatás | B55: 4 | C55: 4 | D55: 1 | E55: 4 | F55: 3 | G55: 1 | Q55: =IF(--ISNUMBER(SEARCH(Díjszámítás!$C$12,A55)),MAX($Q$1:Q54)+1,"") -> 54 | R55: =IFERROR(INDEX($A$2:$A$302,MATCH(ROWS($Q$2:Q55),$Q$2:$Q$302,0)),"") -> 1814 Könyvkötés, kapcsolódó szolgáltatás
A56: 1820 Egyéb sokszorosítás | B56: 4 | C56: 4 | D56: 1 | E56: 4 | F56: 4 | G56: 2 | Q56: =IF(--ISNUMBER(SEARCH(Díjszámítás!$C$12,A56)),MAX($Q$1:Q55)+1,"") -> 55 | R56: =IFERROR(INDEX($A$2:$A$302,MATCH(ROWS($Q$2:Q56),$Q$2:$Q$302,0)),"") -> 1820 Egyéb sokszorosítás
A57: 2012 Színezék, pigment gyártása | B57: 8 | C57: 4 | D57: 2 | E57: 8 | F57: 4 | G57: 3 | Q57: =IF(--ISNUMBER(SEARCH(Díjszámítás!$C$12,A57)),MAX($Q$1:Q56)+1,"") -> 56 | R57: =IFERROR(INDEX($A$2:$A$302,MATCH(ROWS($Q$2:Q57),$Q$2:$Q$302,0)),"") -> 2012 Színezék, pigment gyártása
A58: 2013 Szervetlen vegyi alapanyag gyártása | B58: 8 | C58: 4 | D58: 2 | E58: 8 | F58: 4 | G58: 3 | Q58: =IF(--ISNUMBER(SEARCH(Díjszámítás!$C$12,A58)),MAX($Q$1:Q57)+1,"") -> 57 | R58: =IFERROR(INDEX($A$2:$A$302,MATCH(ROWS($Q$2:Q58),$Q$2:$Q$302,0)),"") -> 2013 Szervetlen vegyi alapanyag gyártása
A59: 2014 Szerves vegyi alapanyag gyártása | B59: 8 | C59: 4 | D59: 2 | E59: 8 | F59: 4 | G59: 3 | Q59: =IF(--ISNUMBER(SEARCH(Díjszámítás!$C$12,A59)),MAX($Q$1:Q58)+1,"") -> 58 | R59: =IFERROR(INDEX($A$2:$A$302,MATCH(ROWS($Q$2:Q59),$Q$2:$Q$302,0)),"") -> 2014 Szerves vegyi alapanyag gyártása
A60: 2016 Műanyag-alapanyag gyártása | B60: 6 | C60: 4 | D60: 1 | E60: 6 | F60: 3 | G60: 1 | Q60: =IF(--ISNUMBER(SEARCH(Díjszámítás!$C$12,A60)),MAX($Q$1:Q59)+1,"") -> 59 | R60: =IFERROR(INDEX($A$2:$A$302,MATCH(ROWS($Q$2:Q60),$Q$2:$Q$302,0)),"") -> 2016 Műanyag-alapanyag gyártása
A61: 2020 Mezőgazdasági vegyi termék gyártása | B61: 8 | C61: 4 | D61: 2 | E61: 8 | F61: 4 | G61: 3 | Q61: =IF(--ISNUMBER(SEARCH(Díjszámítás!$C$12,A61)),MAX($Q$1:Q60)+1,"") -> 60 | R61: =IFERROR(INDEX($A$2:$A$302,MATCH(ROWS($Q$2:Q61),$Q$2:$Q$302,0)),"") -> 2020 Mezőgazdasági vegyi termék gyártása
A62: 2041 Tisztítószer gyártása | B62: 6 | C62: 4 | D62: 1 | E62: 6 | F62: 3 | G62: 1 | Q62: =IF(--ISNUMBER(SEARCH(Díjszámítás!$C$12,A62)),MAX($Q$1:Q61)+1,"") -> 61 | R62: =IFERROR(INDEX($A$2:$A$302,MATCH(ROWS($Q$2:Q62),$Q$2:$Q$302,0)),"") -> 2041 Tisztítószer gyártása
A63: 2042 Testápolási cikk gyártása | B63: 6 | C63: 4 | D63: 1 | E63: 6 | F63: 3 | G63: 1 | Q63: =IF(--ISNUMBER(SEARCH(Díjszámítás!$C$12,A63)),MAX($Q$1:Q62)+1,"") -> 62 | R63: =IFERROR(INDEX($A$2:$A$302,MATCH(ROWS($Q$2:Q63),$Q$2:$Q$302,0)),"") -> 2042 Testápolási cikk gyártása
A64: 2052 Ragasztószergyártás | B64: 8 | C64: 4 | D64: 2 | E64: 8 | F64: 4 | G64: 3 | Q64: =IF(--ISNUMBER(SEARCH(Díjszámítás!$C$12,A64)),MAX($Q$1:Q63)+1,"") -> 63 | R64: =IFERROR(INDEX($A$2:$A$302,MATCH(ROWS($Q$2:Q64),$Q$2:$Q$302,0)),"") -> 2052 Ragasztószergyártás
A65: 2053 Illóolajgyártás | B65: 8 | C65: 4 | D65: 2 | E65: 8 | F65: 4 | G65: 3 | Q65: =IF(--ISNUMBER(SEARCH(Díjszámítás!$C$12,A65)),MAX($Q$1:Q64)+1,"") -> 64 | R65: =IFERROR(INDEX($A$2:$A$302,MATCH(ROWS($Q$2:Q65),$Q$2:$Q$302,0)),"") -> 2053 Illóolajgyártás
A66: 2059 M.n.s. egyéb vegyi termék gyártása | B66: 8 | C66: 4 | D66: 2 | E66: 8 | F66: 4 | G66: 3 | Q66: =IF(--ISNUMBER(SEARCH(Díjszámítás!$C$12,A66)),MAX($Q$1:Q65)+1,"") -> 65 | R66: =IFERROR(INDEX($A$2:$A$302,MATCH(ROWS($Q$2:Q66),$Q$2:$Q$302,0)),"") -> 2059 M.n.s. egyéb vegyi termék gyártása
A67: 2060 Vegyi szál gyártása | B67: 6 | C67: 4 | D67: 2 | E67: 6 | F67: 3 | G67: 3 | Q67: =IF(--ISNUMBER(SEARCH(Díjszámítás!$C$12,A67)),MAX($Q$1:Q66)+1,"") -> 66 | R67: =IFERROR(INDEX($A$2:$A$302,MATCH(ROWS($Q$2:Q67),$Q$2:$Q$302,0)),"") -> 2060 Vegyi szál gyártása
A68: 2211 Gumiabroncs, gumitömlő gyártása | B68: 6 | C68: 4 | D68: 1 | E68: 6 | F68: 3 | G68: 2 | Q68: =IF(--ISNUMBER(SEARCH(Díjszámítás!$C$12,A68)),MAX($Q$1:Q67)+1,"") -> 67 | R68: =IFERROR(INDEX($A$2:$A$302,MATCH(ROWS($Q$2:Q68),$Q$2:$Q$302,0)),"") -> 2211 Gumiabroncs, gumitömlő gyártása
A69: 2219 Egyéb gumitermék gyártása | B69: 6 | C69: 4 | D69: 1 | E69: 6 | F69: 3 | G69: 2 | Q69: =IF(--ISNUMBER(SEARCH(Díjszámítás!$C$12,A69)),MAX($Q$1:Q68)+1,"") -> 68 | R69: =IFERROR(INDEX($A$2:$A$302,MATCH(ROWS($Q$2:Q69),$Q$2:$Q$302,0)),"") -> 2219 Egyéb gumitermék gyártása
A70: 2221 Műanyag lap, lemez, fólia, cső, profil gyártása | B70: 5 | C70: 4 | D70: 1 | E70: 5 | F70: 3 | G70: 1 | Q70: =IF(--ISNUMBER(SEARCH(Díjszámítás!$C$12,A70)),MAX($Q$1:Q69)+1,"") -> 69 | R70: =IFERROR(INDEX($A$2:$A$302,MATCH(ROWS($Q$2:Q70),$Q$2:$Q$302,0)),"") -> 2221 Műanyag lap, lemez, fólia, cső, profil gyártása
A71: 2222 Műanyag csomagolóeszköz gyártása | B71: 5 | C71: 4 | D71: 1 | E71: 5 | F71: 3 | G71: 1 | Q71: =IF(--ISNUMBER(SEARCH(Díjszámítás!$C$12,A71)),MAX($Q$1:Q70)+1,"") -> 70 | R71: =IFERROR(INDEX($A$2:$A$302,MATCH(ROWS($Q$2:Q71),$Q$2:$Q$302,0)),"") -> 2222 Műanyag csomagolóeszköz gyártása
A72: 2223 Műanyag építőanyag gyártása | B72: 5 | C72: 4 | D72: 1 | E72: 5 | F72: 3 | G72: 1 | Q72: =IF(--ISNUMBER(SEARCH(Díjszámítás!$C$12,A72)),MAX($Q$1:Q71)+1,"") -> 71 | R72: =IFERROR(INDEX($A$2:$A$302,MATCH(ROWS($Q$2:Q72),$Q$2:$Q$302,0)),"") -> 2223 Műanyag építőanyag gyártása
A73: 2229 Egyéb műanyag termék gyártása | B73: 5 | C73: 4 | D73: 1 | E73: 5 | F73: 3 | G73: 1 | Q73: =IF(--ISNUMBER(SEARCH(Díjszámítás!$C$12,A73)),MAX($Q$1:Q72)+1,"") -> 72 | R73: =IFERROR(INDEX($A$2:$A$302,MATCH(ROWS($Q$2:Q73),$Q$2:$Q$302,0)),"") -> 2229 Egyéb műanyag termék gyártása
A74: 2311 Síküveggyártás | B74: 5 | C74: 3 | D74: 1 | E74: 5 | F74: 3 | G74: 1 | Q74: =IF(--ISNUMBER(SEARCH(Díjszámítás!$C$12,A74)),MAX($Q$1:Q73)+1,"") -> 73 | R74: =IFERROR(INDEX($A$2:$A$302,MATCH(ROWS($Q$2:Q74),$Q$2:$Q$302,0)),"") -> 2311 Síküveggyártás
A75: 2312 Síküveg továbbfeldolgozása | B75: 3 | C75: 4 | D75: 1 | E75: 3 | F75: 1 | G75: 1 | Q75: =IF(--ISNUMBER(SEARCH(Díjszámítás!$C$12,A75)),MAX($Q$1:Q74)+1,"") -> 74 | R75: =IFERROR(INDEX($A$2:$A$302,MATCH(ROWS($Q$2:Q75),$Q$2:$Q$302,0)),"") -> 2312 Síküveg továbbfeldolgozása
A76: 2313 Öblösüveggyártás | B76: 5 | C76: 3 | D76: 1 | E76: 5 | F76: 3 | G76: 1 | Q76: =IF(--ISNUMBER(SEARCH(Díjszámítás!$C$12,A76)),MAX($Q$1:Q75)+1,"") -> 75 | R76: =IFERROR(INDEX($A$2:$A$302,MATCH(ROWS($Q$2:Q76),$Q$2:$Q$302,0)),"") -> 2313 Öblösüveggyártás
A77: 2319 Műszaki, egyéb üvegtermék gyártása | B77: 5 | C77: 3 | D77: 1 | E77: 5 | F77: 3 | G77: 1 | Q77: =IF(--ISNUMBER(SEARCH(Díjszámítás!$C$12,A77)),MAX($Q$1:Q76)+1,"") -> 76 | R77: =IFERROR(INDEX($A$2:$A$302,MATCH(ROWS($Q$2:Q77),$Q$2:$Q$302,0)),"") -> 2319 Műszaki, egyéb üvegtermék gyártása
A78: 2320 Tűzálló termék gyártása | B78: 4 | C78: 3 | D78: 1 | E78: 4 | F78: 3 | G78: 1 | Q78: =IF(--ISNUMBER(SEARCH(Díjszámítás!$C$12,A78)),MAX($Q$1:Q77)+1,"") -> 77 | R78: =IFERROR(INDEX($A$2:$A$302,MATCH(ROWS($Q$2:Q78),$Q$2:$Q$302,0)),"") -> 2320 Tűzálló termék gyártása
A79: 2331 Kerámiacsempe, -lap gyártása | B79: 4 | C79: 3 | D79: 2 | E79: 4 | F79: 3 | G79: 1 | Q79: =IF(--ISNUMBER(SEARCH(Díjszámítás!$C$12,A79)),MAX($Q$1:Q78)+1,"") -> 78 | R79: =IFERROR(INDEX($A$2:$A$302,MATCH(ROWS($Q$2:Q79),$Q$2:$Q$302,0)),"") -> 2331 Kerámiacsempe, -lap gyártása
A80: 2332 Égetett agyag építőanyag gyártása | B80: 3 | C80: 3 | D80: 1 | E80: 3 | F80: 3 | G80: 1 | Q80: =IF(--ISNUMBER(SEARCH(Díjszámítás!$C$12,A80)),MAX($Q$1:Q79)+1,"") -> 79 | R80: =IFERROR(INDEX($A$2:$A$302,MATCH(ROWS($Q$2:Q80),$Q$2:$Q$302,0)),"") -> 2332 Égetett agyag építőanyag gyártása
A81: 2341 Háztartási kerámia gyártása | B81: 4 | C81: 3 | D81: 1 | E81: 4 | F81: 3 | G81: 1 | Q81: =IF(--ISNUMBER(SEARCH(Díjszámítás!$C$12,A81)),MAX($Q$1:Q80)+1,"") -> 80 | R81: =IFERROR(INDEX($A$2:$A$302,MATCH(ROWS($Q$2:Q81),$Q$2:$Q$302,0)),"") -> 2341 Háztartási kerámia gyártása
A82: 2342 Egészségügyi kerámia gyártása | B82: 4 | C82: 3 | D82: 1 | E82: 4 | F82: 3 | G82: 1 | Q82: =IF(--ISNUMBER(SEARCH(Díjszámítás!$C$12,A82)),MAX($Q$1:Q81)+1,"") -> 81 | R82: =IFERROR(INDEX($A$2:$A$302,MATCH(ROWS($Q$2:Q82),$Q$2:$Q$302,0)),"") -> 2342 Egészségügyi kerámia gyártása
A83: 2343 Kerámia szigetelő gyártása | B83: 4 | C83: 3 | D83: 1 | E83: 4 | F83: 3 | G83: 1 | Q83: =IF(--ISNUMBER(SEARCH(Díjszámítás!$C$12,A83)),MAX($Q$1:Q82)+1,"") -> 82 | R83: =IFERROR(INDEX($A$2:$A$302,MATCH(ROWS($Q$2:Q83),$Q$2:$Q$302,0)),"") -> 2343 Kerámia szigetelő gyártása
A84: 2344 Műszaki kerámia gyártása | B84: 4 | C84: 3 | D84: 1 | E84: 4 | F84: 3 | G84: 1 | Q84: =IF(--ISNUMBER(SEARCH(Díjszámítás!$C$12,A84)),MAX($Q$1:Q83)+1,"") -> 83 | R84: =IFERROR(INDEX($A$2:$A$302,MATCH(ROWS($Q$2:Q84),$Q$2:$Q$302,0)),"") -> 2344 Műszaki kerámia gyártása
A85: 2349 Egyéb kerámiatermék gyártása | B85: 4 | C85: 3 | D85: 1 | E85: 4 | F85: 3 | G85: 1 | Q85: =IF(--ISNUMBER(SEARCH(Díjszámítás!$C$12,A85)),MAX($Q$1:Q84)+1,"") -> 84 | R85: =IFERROR(INDEX($A$2:$A$302,MATCH(ROWS($Q$2:Q85),$Q$2:$Q$302,0)),"") -> 2349 Egyéb kerámiatermék gyártása
A86: 2351 Cementgyártás | B86: 2 | C86: 3 | D86: 2 | E86: 2 | F86: 3 | G86: 1 | Q86: =IF(--ISNUMBER(SEARCH(Díjszámítás!$C$12,A86)),MAX($Q$1:Q85)+1,"") -> 85 | R86: =IFERROR(INDEX($A$2:$A$302,MATCH(ROWS($Q$2:Q86),$Q$2:$Q$302,0)),"") -> 2351 Cementgyártás
A87: 2352 Mész-, gipszgyártás | B87: 2 | C87: 3 | D87: 2 | E87: 2 | F87: 3 | G87: 1 | Q87: =IF(--ISNUMBER(SEARCH(Díjszámítás!$C$12,A87)),MAX($Q$1:Q86)+1,"") -> 86 | R87: =IFERROR(INDEX($A$2:$A$302,MATCH(ROWS($Q$2:Q87),$Q$2:$Q$302,0)),"") -> 2352 Mész-, gipszgyártás
A88: 2361 Építési betontermék gyártása | B88: 2 | C88: 3 | D88: 2 | E88: 2 | F88: 3 | G88: 1 | Q88: =IF(--ISNUMBER(SEARCH(Díjszámítás!$C$12,A88)),MAX($Q$1:Q87)+1,"") -> 87 | R88: =IFERROR(INDEX($A$2:$A$302,MATCH(ROWS($Q$2:Q88),$Q$2:$Q$302,0)),"") -> 2361 Építési betontermék gyártása
A89: 2362 Építési gipsztermék gyártása | B89: 2 | C89: 3 | D89: 2 | E89: 2 | F89: 3 | G89: 1 | Q89: =IF(--ISNUMBER(SEARCH(Díjszámítás!$C$12,A89)),MAX($Q$1:Q88)+1,"") -> 88 | R89: =IFERROR(INDEX($A$2:$A$302,MATCH(ROWS($Q$2:Q89),$Q$2:$Q$302,0)),"") -> 2362 Építési gipsztermék gyártása
A90: 2363 Előre kevert beton gyártása | B90: 2 | C90: 3 | D90: 2 | E90: 2 | F90: 3 | G90: 1 | Q90: =IF(--ISNUMBER(SEARCH(Díjszámítás!$C$12,A90)),MAX($Q$1:Q89)+1,"") -> 89 | R90: =IFERROR(INDEX($A$2:$A$302,MATCH(ROWS($Q$2:Q90),$Q$2:$Q$302,0)),"") -> 2363 Előre kevert beton gyártása
A91: 2364 Habarcsgyártás | B91: 2 | C91: 3 | D91: 2 | E91: 2 | F91: 3 | G91: 1 | Q91: =IF(--ISNUMBER(SEARCH(Díjszámítás!$C$12,A91)),MAX($Q$1:Q90)+1,"") -> 90 | R91: =IFERROR(INDEX($A$2:$A$302,MATCH(ROWS($Q$2:Q91),$Q$2:$Q$302,0)),"") -> 2364 Habarcsgyártás
A92: 2365 Szálerősítésű cement gyártása | B92: 2 | C92: 3 | D92: 2 | E92: 2 | F92: 3 | G92: 1 | Q92: =IF(--ISNUMBER(SEARCH(Díjszámítás!$C$12,A92)),MAX($Q$1:Q91)+1,"") -> 91 | R92: =IFERROR(INDEX($A$2:$A$302,MATCH(ROWS($Q$2:Q92),$Q$2:$Q$302,0)),"") -> 2365 Szálerősítésű cement gyártása
A93: 2369 Egyéb beton-, gipsz-, cementtermék gyártása | B93: 2 | C93: 3 | D93: 2 | E93: 2 | F93: 3 | G93: 1 | Q93: =IF(--ISNUMBER(SEARCH(Díjszámítás!$C$12,A93)),MAX($Q$1:Q92)+1,"") -> 92 | R93: =IFERROR(INDEX($A$2:$A$302,MATCH(ROWS($Q$2:Q93),$Q$2:$Q$302,0)),"") -> 2369 Egyéb beton-, gipsz-, cementtermék gyártása
A94: 2370 Kőmegmunkálás | B94: 2 | C94: 3 | D94: 1 | E94: 2 | F94: 3 | G94: 1 | Q94: =IF(--ISNUMBER(SEARCH(Díjszámítás!$C$12,A94)),MAX($Q$1:Q93)+1,"") -> 93 | R94: =IFERROR(INDEX($A$2:$A$302,MATCH(ROWS($Q$2:Q94),$Q$2:$Q$302,0)),"") -> 2370 Kőmegmunkálás
A95: 2511 Fémszerkezet gyártása | B95: 6 | C95: 4 | D95: 1 | E95: 6 | F95: 2 | G95: 1 | Q95: =IF(--ISNUMBER(SEARCH(Díjszámítás!$C$12,A95)),MAX($Q$1:Q94)+1,"") -> 94 | R95: =IFERROR(INDEX($A$2:$A$302,MATCH(ROWS($Q$2:Q95),$Q$2:$Q$302,0)),"") -> 2511 Fémszerkezet gyártása
A96: 2512 Fém épületelem gyártása | B96: 6 | C96: 4 | D96: 1 | E96: 6 | F96: 2 | G96: 1 | Q96: =IF(--ISNUMBER(SEARCH(Díjszámítás!$C$12,A96)),MAX($Q$1:Q95)+1,"") -> 95 | R96: =IFERROR(INDEX($A$2:$A$302,MATCH(ROWS($Q$2:Q96),$Q$2:$Q$302,0)),"") -> 2512 Fém épületelem gyártása
A97: 2521 Központi fűtési kazán, radiátor gyártása | B97: 4 | C97: 4 | D97: 2 | E97: 4 | F97: 4 | G97: 2 | Q97: =IF(--ISNUMBER(SEARCH(Díjszámítás!$C$12,A97)),MAX($Q$1:Q96)+1,"") -> 96 | R97: =IFERROR(INDEX($A$2:$A$302,MATCH(ROWS($Q$2:Q97),$Q$2:$Q$302,0)),"") -> 2521 Központi fűtési kazán, radiátor gyártása
A98: 2529 Fémtartály gyártása | B98: 5 | C98: 4 | D98: 1 | E98: 5 | F98: 2 | G98: 1 | Q98: =IF(--ISNUMBER(SEARCH(Díjszámítás!$C$12,A98)),MAX($Q$1:Q97)+1,"") -> 97 | R98: =IFERROR(INDEX($A$2:$A$302,MATCH(ROWS($Q$2:Q98),$Q$2:$Q$302,0)),"") -> 2529 Fémtartály gyártása
A99: 2561 Fémfelület-kezelés | B99: 3 | C99: 4 | D99: 1 | E99: 3 | F99: 3 | G99: 1 | Q99: =IF(--ISNUMBER(SEARCH(Díjszámítás!$C$12,A99)),MAX($Q$1:Q98)+1,"") -> 98 | R99: =IFERROR(INDEX($A$2:$A$302,MATCH(ROWS($Q$2:Q99),$Q$2:$Q$302,0)),"") -> 2561 Fémfelület-kezelés
A100: 2562 Fémmegmunkálás | B100: 3 | C100: 4 | D100: 1 | E100: 3 | F100: 3 | G100: 1 | Q100: =IF(--ISNUMBER(SEARCH(Díjszámítás!$C$12,A100)),MAX($Q$1:Q99)+1,"") -> 99 | R100: =IFERROR(INDEX($A$2:$A$302,MATCH(ROWS($Q$2:Q100),$Q$2:$Q$302,0)),"") -> 2562 Fémmegmunkálás
A101: 2571 Evőeszköz gyártása | B101: 4 | C101: 4 | D101: 1 | E101: 4 | F101: 2 | G101: 1 | Q101: =IF(--ISNUMBER(SEARCH(Díjszámítás!$C$12,A101)),MAX($Q$1:Q100)+1,"") -> 100 | R101: =IFERROR(INDEX($A$2:$A$302,MATCH(ROWS($Q$2:Q101),$Q$2:$Q$302,0)),"") -> 2571 Evőeszköz gyártása
A102: 2572 Lakat-, zárgyártás | B102: 4 | C102: 4 | D102: 1 | E102: 4 | F102: 2 | G102: 1 | Q102: =IF(--ISNUMBER(SEARCH(Díjszámítás!$C$12,A102)),MAX($Q$1:Q101)+1,"") -> 101 | R102: =IFERROR(INDEX($A$2:$A$302,MATCH(ROWS($Q$2:Q102),$Q$2:$Q$302,0)),"") -> 2572 Lakat-, zárgyártás
A103: 2573 Szerszámgyártás | B103: 3 | C103: 3 | D103: 2 | E103: 3 | F103: 2 | G103: 1 | Q103: =IF(--ISNUMBER(SEARCH(Díjszámítás!$C$12,A103)),MAX($Q$1:Q102)+1,"") -> 102 | R103: =IFERROR(INDEX($A$2:$A$302,MATCH(ROWS($Q$2:Q103),$Q$2:$Q$302,0)),"") -> 2573 Szerszámgyártás
A104: 2591 Acél tárolóeszköz gyártása | B104: 6 | C104: 4 | D104: 1 | E104: 6 | F104: 2 | G104: 1 | Q104: =IF(--ISNUMBER(SEARCH(Díjszámítás!$C$12,A104)),MAX($Q$1:Q103)+1,"") -> 103 | R104: =IFERROR(INDEX($A$2:$A$302,MATCH(ROWS($Q$2:Q104),$Q$2:$Q$302,0)),"") -> 2591 Acél tárolóeszköz gyártása
A105: 2594 Kötőelem, csavar gyártása | B105: 4 | C105: 4 | D105: 1 | E105: 4 | F105: 2 | G105: 1 | Q105: =IF(--ISNUMBER(SEARCH(Díjszámítás!$C$12,A105)),MAX($Q$1:Q104)+1,"") -> 104 | R105: =IFERROR(INDEX($A$2:$A$302,MATCH(ROWS($Q$2:Q105),$Q$2:$Q$302,0)),"") -> 2594 Kötőelem, csavar gyártása
A106: 2599 M.n.s. egyéb fémfeldolgozási termék gyártása | B106: 4 | C106: 4 | D106: 3 | E106: 4 | F106: 3 | G106: 1 | Q106: =IF(--ISNUMBER(SEARCH(Díjszámítás!$C$12,A106)),MAX($Q$1:Q105)+1,"") -> 105 | R106: =IFERROR(INDEX($A$2:$A$302,MATCH(ROWS($Q$2:Q106),$Q$2:$Q$302,0)),"") -> 2599 M.n.s. egyéb fémfeldolgozási termék gyártása
A107: 2611 Elektronikai alkatrész gyártása | B107: 3 | C107: 3 | D107: 2 | E107: 3 | F107: 3 | G107: 1 | Q107: =IF(--ISNUMBER(SEARCH(Díjszámítás!$C$12,A107)),MAX($Q$1:Q106)+1,"") -> 106 | R107: =IFERROR(INDEX($A$2:$A$302,MATCH(ROWS($Q$2:Q107),$Q$2:$Q$302,0)),"") -> 2611 Elektronikai alkatrész gyártása
A108: 2620 Számítógép, perifériás egység gyártása | B108: 3 | C108: 3 | D108: 3 | E108: 3 | F108: 3 | G108: 2 | Q108: =IF(--ISNUMBER(SEARCH(Díjszámítás!$C$12,A108)),MAX($Q$1:Q107)+1,"") -> 107 | R108: =IFERROR(INDEX($A$2:$A$302,MATCH(ROWS($Q$2:Q108),$Q$2:$Q$302,0)),"") -> 2620 Számítógép, perifériás egység gyártása
A109: 2630 Híradás-technikai berendezés gyártása | B109: 4 | C109: 3 | D109: 2 | E109: 4 | F109: 3 | G109: 1 | Q109: =IF(--ISNUMBER(SEARCH(Díjszámítás!$C$12,A109)),MAX($Q$1:Q108)+1,"") -> 108 | R109: =IFERROR(INDEX($A$2:$A$302,MATCH(ROWS($Q$2:Q109),$Q$2:$Q$302,0)),"") -> 2630 Híradás-technikai berendezés gyártása
A110: 2651 Mérőműszergyártás | B110: 4 | C110: 3 | D110: 2 | E110: 4 | F110: 3 | G110: 1 | Q110: =IF(--ISNUMBER(SEARCH(Díjszámítás!$C$12,A110)),MAX($Q$1:Q109)+1,"") -> 109 | R110: =IFERROR(INDEX($A$2:$A$302,MATCH(ROWS($Q$2:Q110),$Q$2:$Q$302,0)),"") -> 2651 Mérőműszergyártás
A111: 2660 Elektronikus orvosi berendezés gyártása | B111: 3 | C111: 3 | D111: 2 | E111: 3 | F111: 2 | G111: 1 | Q111: =IF(--ISNUMBER(SEARCH(Díjszámítás!$C$12,A111)),MAX($Q$1:Q110)+1,"") -> 110 | R111: =IFERROR(INDEX($A$2:$A$302,MATCH(ROWS($Q$2:Q111),$Q$2:$Q$302,0)),"") -> 2660 Elektronikus orvosi berendezés gyártása
A112: 2670 Optikai eszköz gyártása | B112: 3 | C112: 3 | D112: 1 | E112: 3 | F112: 3 | G112: 2 | Q112: =IF(--ISNUMBER(SEARCH(Díjszámítás!$C$12,A112)),MAX($Q$1:Q111)+1,"") -> 111 | R112: =IFERROR(INDEX($A$2:$A$302,MATCH(ROWS($Q$2:Q112),$Q$2:$Q$302,0)),"") -> 2670 Optikai eszköz gyártása
A113: 2711 Villamos motor, áramfejlesztő gyártása | B113: 3 | C113: 3 | D113: 1 | E113: 3 | F113: 3 | G113: 1 | Q113: =IF(--ISNUMBER(SEARCH(Díjszámítás!$C$12,A113)),MAX($Q$1:Q112)+1,"") -> 112 | R113: =IFERROR(INDEX($A$2:$A$302,MATCH(ROWS($Q$2:Q113),$Q$2:$Q$302,0)),"") -> 2711 Villamos motor, áramfejlesztő gyártása
A114: 2712 Áramelosztó, -szabályozó készülék gyártása | B114: 3 | C114: 3 | D114: 1 | E114: 3 | F114: 3 | G114: 1 | Q114: =IF(--ISNUMBER(SEARCH(Díjszámítás!$C$12,A114)),MAX($Q$1:Q113)+1,"") -> 113 | R114: =IFERROR(INDEX($A$2:$A$302,MATCH(ROWS($Q$2:Q114),$Q$2:$Q$302,0)),"") -> 2712 Áramelosztó, -szabályozó készülék gyártása
A115: 2720 Akkumulátor, szárazelem gyártása | B115: 6 | C115: 3 | D115: 2 | E115: 6 | F115: 3 | G115: 1 | Q115: =IF(--ISNUMBER(SEARCH(Díjszámítás!$C$12,A115)),MAX($Q$1:Q114)+1,"") -> 114 | R115: =IFERROR(INDEX($A$2:$A$302,MATCH(ROWS($Q$2:Q115),$Q$2:$Q$302,0)),"") -> 2720 Akkumulátor, szárazelem gyártása
A116: 2731 Száloptikai kábel gyártása | B116: 6 | C116: 3 | D116: 2 | E116: 6 | F116: 2 | G116: 1 | Q116: =IF(--ISNUMBER(SEARCH(Díjszámítás!$C$12,A116)),MAX($Q$1:Q115)+1,"") -> 115 | R116: =IFERROR(INDEX($A$2:$A$302,MATCH(ROWS($Q$2:Q116),$Q$2:$Q$302,0)),"") -> 2731 Száloptikai kábel gyártása
A117: 2732 Egyéb elektronikus, villamos vezeték, kábel gyártása | B117: 6 | C117: 3 | D117: 2 | E117: 6 | F117: 2 | G117: 1 | Q117: =IF(--ISNUMBER(SEARCH(Díjszámítás!$C$12,A117)),MAX($Q$1:Q116)+1,"") -> 116 | R117: =IFERROR(INDEX($A$2:$A$302,MATCH(ROWS($Q$2:Q117),$Q$2:$Q$302,0)),"") -> 2732 Egyéb elektronikus, villamos vezeték, kábel gyártása
A118: 2733 Szerelvény gyártása | B118: 4 | C118: 4 | D118: 1 | E118: 4 | F118: 2 | G118: 1 | Q118: =IF(--ISNUMBER(SEARCH(Díjszámítás!$C$12,A118)),MAX($Q$1:Q117)+1,"") -> 117 | R118: =IFERROR(INDEX($A$2:$A$302,MATCH(ROWS($Q$2:Q118),$Q$2:$Q$302,0)),"") -> 2733 Szerelvény gyártása
A119: 2740 Villamos világítóeszköz gyártása | B119: 4 | C119: 3 | D119: 1 | E119: 4 | F119: 2 | G119: 1 | Q119: =IF(--ISNUMBER(SEARCH(Díjszámítás!$C$12,A119)),MAX($Q$1:Q118)+1,"") -> 118 | R119: =IFERROR(INDEX($A$2:$A$302,MATCH(ROWS($Q$2:Q119),$Q$2:$Q$302,0)),"") -> 2740 Villamos világítóeszköz gyártása
A120: 2751 Háztartási villamos készülék gyártása | B120: 3 | C120: 3 | D120: 2 | E120: 3 | F120: 3 | G120: 1 | Q120: =IF(--ISNUMBER(SEARCH(Díjszámítás!$C$12,A120)),MAX($Q$1:Q119)+1,"") -> 119 | R120: =IFERROR(INDEX($A$2:$A$302,MATCH(ROWS($Q$2:Q120),$Q$2:$Q$302,0)),"") -> 2751 Háztartási villamos készülék gyártása
A121: 2752 Nem villamos háztartási készülék gyártása | B121: 3 | C121: 3 | D121: 2 | E121: 3 | F121: 3 | G121: 1 | Q121: =IF(--ISNUMBER(SEARCH(Díjszámítás!$C$12,A121)),MAX($Q$1:Q120)+1,"") -> 120 | R121: =IFERROR(INDEX($A$2:$A$302,MATCH(ROWS($Q$2:Q121),$Q$2:$Q$302,0)),"") -> 2752 Nem villamos háztartási készülék gyártása
A122: 2790 Egyéb villamos berendezés gyártása | B122: 3 | C122: 3 | D122: 2 | E122: 3 | F122: 3 | G122: 1 | Q122: =IF(--ISNUMBER(SEARCH(Díjszámítás!$C$12,A122)),MAX($Q$1:Q121)+1,"") -> 121 | R122: =IFERROR(INDEX($A$2:$A$302,MATCH(ROWS($Q$2:Q122),$Q$2:$Q$302,0)),"") -> 2790 Egyéb villamos berendezés gyártása
A123: 2814 Csap, szelep gyártása | B123: 4 | C123: 4 | D123: 1 | E123: 4 | F123: 2 | G123: 1 | Q123: =IF(--ISNUMBER(SEARCH(Díjszámítás!$C$12,A123)),MAX($Q$1:Q122)+1,"") -> 122 | R123: =IFERROR(INDEX($A$2:$A$302,MATCH(ROWS($Q$2:Q123),$Q$2:$Q$302,0)),"") -> 2814 Csap, szelep gyártása
A124: 2823 Irodagép gyártása (kivéve: számítógép és perifériái) | B124: 3 | C124: 3 | D124: 3 | E124: 3 | F124: 3 | G124: 2 | Q124: =IF(--ISNUMBER(SEARCH(Díjszámítás!$C$12,A124)),MAX($Q$1:Q123)+1,"") -> 123 | R124: =IFERROR(INDEX($A$2:$A$302,MATCH(ROWS($Q$2:Q124),$Q$2:$Q$302,0)),"") -> 2823 Irodagép gyártása (kivéve: számítógép és perifériái)
A125: 2824 Gépi meghajtású hordozható kézi szerszámgép gyártása | B125: 3 | C125: 3 | D125: 1 | E125: 3 | F125: 3 | G125: 1 | Q125: =IF(--ISNUMBER(SEARCH(Díjszámítás!$C$12,A125)),MAX($Q$1:Q124)+1,"") -> 124 | R125: =IFERROR(INDEX($A$2:$A$302,MATCH(ROWS($Q$2:Q125),$Q$2:$Q$302,0)),"") -> 2824 Gépi meghajtású hordozható kézi szerszámgép gyártása
A126: 2829 M.n.s. egyéb általános rendeltetésű gép gyártása | B126: 4 | C126: 3 | D126: 2 | E126: 4 | F126: 3 | G126: 3 | Q126: =IF(--ISNUMBER(SEARCH(Díjszámítás!$C$12,A126)),MAX($Q$1:Q125)+1,"") -> 125 | R126: =IFERROR(INDEX($A$2:$A$302,MATCH(ROWS($Q$2:Q126),$Q$2:$Q$302,0)),"") -> 2829 M.n.s. egyéb általános rendeltetésű gép gyártása
A127: 2830 Mezőgazdasági, erdészeti gép gyártása | B127: 3 | C127: 3 | D127: 1 | E127: 3 | F127: 3 | G127: 1 | Q127: =IF(--ISNUMBER(SEARCH(Díjszámítás!$C$12,A127)),MAX($Q$1:Q126)+1,"") -> 126 | R127: =IFERROR(INDEX($A$2:$A$302,MATCH(ROWS($Q$2:Q127),$Q$2:$Q$302,0)),"") -> 2830 Mezőgazdasági, erdészeti gép gyártása
A128: 2841 Fémmegmunkáló szerszámgép gyártása | B128: 3 | C128: 3 | D128: 1 | E128: 3 | F128: 3 | G128: 1 | Q128: =IF(--ISNUMBER(SEARCH(Díjszámítás!$C$12,A128)),MAX($Q$1:Q127)+1,"") -> 127 | R128: =IFERROR(INDEX($A$2:$A$302,MATCH(ROWS($Q$2:Q128),$Q$2:$Q$302,0)),"") -> 2841 Fémmegmunkáló szerszámgép gyártása
A129: 2849 Egyéb szerszámgép gyártása | B129: 3 | C129: 3 | D129: 1 | E129: 3 | F129: 3 | G129: 1 | Q129: =IF(--ISNUMBER(SEARCH(Díjszámítás!$C$12,A129)),MAX($Q$1:Q128)+1,"") -> 128 | R129: =IFERROR(INDEX($A$2:$A$302,MATCH(ROWS($Q$2:Q129),$Q$2:$Q$302,0)),"") -> 2849 Egyéb szerszámgép gyártása
A130: 2893 Élelmiszer-, dohányipari gép gyártása | B130: 3 | C130: 3 | D130: 2 | E130: 3 | F130: 3 | G130: 1 | Q130: =IF(--ISNUMBER(SEARCH(Díjszámítás!$C$12,A130)),MAX($Q$1:Q129)+1,"") -> 129 | R130: =IFERROR(INDEX($A$2:$A$302,MATCH(ROWS($Q$2:Q130),$Q$2:$Q$302,0)),"") -> 2893 Élelmiszer-, dohányipari gép gyártása
A131: 2894 Textil-, ruházati, bőripari gép gyártása | B131: 4 | C131: 3 | D131: 2 | E131: 4 | F131: 3 | G131: 1 | Q131: =IF(--ISNUMBER(SEARCH(Díjszámítás!$C$12,A131)),MAX($Q$1:Q130)+1,"") -> 130 | R131: =IFERROR(INDEX($A$2:$A$302,MATCH(ROWS($Q$2:Q131),$Q$2:$Q$302,0)),"") -> 2894 Textil-, ruházati, bőripari gép gyártása
A132: 2895 Papíripari gép gyártása | B132: 4 | C132: 3 | D132: 2 | E132: 4 | F132: 3 | G132: 1 | Q132: =IF(--ISNUMBER(SEARCH(Díjszámítás!$C$12,A132)),MAX($Q$1:Q131)+1,"") -> 131 | R132: =IFERROR(INDEX($A$2:$A$302,MATCH(ROWS($Q$2:Q132),$Q$2:$Q$302,0)),"") -> 2895 Papíripari gép gyártása
A133: 2896 Műanyag-, gumifeldolgozó gép gyártása | B133: 4 | C133: 3 | D133: 2 | E133: 4 | F133: 3 | G133: 1 | Q133: =IF(--ISNUMBER(SEARCH(Díjszámítás!$C$12,A133)),MAX($Q$1:Q132)+1,"") -> 132 | R133: =IFERROR(INDEX($A$2:$A$302,MATCH(ROWS($Q$2:Q133),$Q$2:$Q$302,0)),"") -> 2896 Műanyag-, gumifeldolgozó gép gyártása
A134: 2899 M.n.s. egyéb speciális gép gyártása | B134: 4 | C134: 3 | D134: 2 | E134: 4 | F134: 3 | G134: 1 | Q134: =IF(--ISNUMBER(SEARCH(Díjszámítás!$C$12,A134)),MAX($Q$1:Q133)+1,"") -> 133 | R134: =IFERROR(INDEX($A$2:$A$302,MATCH(ROWS($Q$2:Q134),$Q$2:$Q$302,0)),"") -> 2899 M.n.s. egyéb speciális gép gyártása
A135: 2931 Járművillamossági, -elektronikai készülékek gyártása | B135: 3 | C135: 3 | D135: 3 | E135: 3 | F135: 3 | G135: 3 | Q135: =IF(--ISNUMBER(SEARCH(Díjszámítás!$C$12,A135)),MAX($Q$1:Q134)+1,"") -> 134 | R135: =IFERROR(INDEX($A$2:$A$302,MATCH(ROWS($Q$2:Q135),$Q$2:$Q$302,0)),"") -> 2931 Járművillamossági, -elektronikai készülékek gyártása
A136: 2932 Közúti jármű, járműmotor alkatrészeinek gyártása | B136: 4 | C136: 3 | D136: 3 | E136: 4 | F136: 3 | G136: 3 | Q136: =IF(--ISNUMBER(SEARCH(Díjszámítás!$C$12,A136)),MAX($Q$1:Q135)+1,"") -> 135 | R136: =IFERROR(INDEX($A$2:$A$302,MATCH(ROWS($Q$2:Q136),$Q$2:$Q$302,0)),"") -> 2932 Közúti jármű, járműmotor alkatrészeinek gyártása
A137: 3091 Motorkerékpár gyártása | B137: 4 | C137: 3 | D137: 4 | E137: 4 | F137: 3 | G137: 1 | Q137: =IF(--ISNUMBER(SEARCH(Díjszámítás!$C$12,A137)),MAX($Q$1:Q136)+1,"") -> 136 | R137: =IFERROR(INDEX($A$2:$A$302,MATCH(ROWS($Q$2:Q137),$Q$2:$Q$302,0)),"") -> 3091 Motorkerékpár gyártása
A138: 3092 Kerékpár, mozgássérültkocsi gyártása | B138: 4 | C138: 3 | D138: 4 | E138: 4 | F138: 3 | G138: 1 | Q138: =IF(--ISNUMBER(SEARCH(Díjszámítás!$C$12,A138)),MAX($Q$1:Q137)+1,"") -> 137 | R138: =IFERROR(INDEX($A$2:$A$302,MATCH(ROWS($Q$2:Q138),$Q$2:$Q$302,0)),"") -> 3092 Kerékpár, mozgássérültkocsi gyártása
A139: 3101 Irodabútor gyártása | B139: 6 | C139: 3 | D139: 2 | E139: 6 | F139: 3 | G139: 2 | Q139: =IF(--ISNUMBER(SEARCH(Díjszámítás!$C$12,A139)),MAX($Q$1:Q138)+1,"") -> 138 | R139: =IFERROR(INDEX($A$2:$A$302,MATCH(ROWS($Q$2:Q139),$Q$2:$Q$302,0)),"") -> 3101 Irodabútor gyártása
A140: 3102 Konyhabútorgyártás | B140: 6 | C140: 3 | D140: 2 | E140: 6 | F140: 3 | G140: 2 | Q140: =IF(--ISNUMBER(SEARCH(Díjszámítás!$C$12,A140)),MAX($Q$1:Q139)+1,"") -> 139 | R140: =IFERROR(INDEX($A$2:$A$302,MATCH(ROWS($Q$2:Q140),$Q$2:$Q$302,0)),"") -> 3102 Konyhabútorgyártás
A141: 3103 Ágybetét gyártása | B141: 6 | C141: 3 | D141: 2 | E141: 6 | F141: 3 | G141: 2 | Q141: =IF(--ISNUMBER(SEARCH(Díjszámítás!$C$12,A141)),MAX($Q$1:Q140)+1,"") -> 140 | R141: =IFERROR(INDEX($A$2:$A$302,MATCH(ROWS($Q$2:Q141),$Q$2:$Q$302,0)),"") -> 3103 Ágybetét gyártása
A142: 3109 Egyéb bútor gyártása | B142: 6 | C142: 3 | D142: 2 | E142: 6 | F142: 3 | G142: 2 | Q142: =IF(--ISNUMBER(SEARCH(Díjszámítás!$C$12,A142)),MAX($Q$1:Q141)+1,"") -> 141 | R142: =IFERROR(INDEX($A$2:$A$302,MATCH(ROWS($Q$2:Q142),$Q$2:$Q$302,0)),"") -> 3109 Egyéb bútor gyártása
A143: 3220 Hangszergyártás | B143: 4 | C143: 3 | D143: 2 | E143: 4 | F143: 2 | G143: 1 | Q143: =IF(--ISNUMBER(SEARCH(Díjszámítás!$C$12,A143)),MAX($Q$1:Q142)+1,"") -> 142 | R143: =IFERROR(INDEX($A$2:$A$302,MATCH(ROWS($Q$2:Q143),$Q$2:$Q$302,0)),"") -> 3220 Hangszergyártás
A144: 3230 Sportszergyártás | B144: 5 | C144: 3 | D144: 2 | E144: 5 | F144: 3 | G144: 1 | Q144: =IF(--ISNUMBER(SEARCH(Díjszámítás!$C$12,A144)),MAX($Q$1:Q143)+1,"") -> 143 | R144: =IFERROR(INDEX($A$2:$A$302,MATCH(ROWS($Q$2:Q144),$Q$2:$Q$302,0)),"") -> 3230 Sportszergyártás
A145: 3240 Játékgyártás | B145: 5 | C145: 3 | D145: 2 | E145: 5 | F145: 3 | G145: 1 | Q145: =IF(--ISNUMBER(SEARCH(Díjszámítás!$C$12,A145)),MAX($Q$1:Q144)+1,"") -> 144 | R145: =IFERROR(INDEX($A$2:$A$302,MATCH(ROWS($Q$2:Q145),$Q$2:$Q$302,0)),"") -> 3240 Játékgyártás
A146: 3250 Orvosi eszköz gyártása | B146: 3 | C146: 3 | D146: 2 | E146: 3 | F146: 2 | G146: 1 | Q146: =IF(--ISNUMBER(SEARCH(Díjszámítás!$C$12,A146)),MAX($Q$1:Q145)+1,"") -> 145 | R146: =IFERROR(INDEX($A$2:$A$302,MATCH(ROWS($Q$2:Q146),$Q$2:$Q$302,0)),"") -> 3250 Orvosi eszköz gyártása
A147: 3291 Seprű-, kefegyártás | B147: 6 | C147: 3 | D147: 1 | E147: 6 | F147: 3 | G147: 1 | Q147: =IF(--ISNUMBER(SEARCH(Díjszámítás!$C$12,A147)),MAX($Q$1:Q146)+1,"") -> 146 | R147: =IFERROR(INDEX($A$2:$A$302,MATCH(ROWS($Q$2:Q147),$Q$2:$Q$302,0)),"") -> 3291 Seprű-, kefegyártás
A148: 3313 Elektronikus, optikai eszköz javítása | B148: 3 | C148: 4 | D148: 1 | E148: 3 | F148: 2 | G148: 2 | Q148: =IF(--ISNUMBER(SEARCH(Díjszámítás!$C$12,A148)),MAX($Q$1:Q147)+1,"") -> 147 | R148: =IFERROR(INDEX($A$2:$A$302,MATCH(ROWS($Q$2:Q148),$Q$2:$Q$302,0)),"") -> 3313 Elektronikus, optikai eszköz javítása
A149: 3314 Ipari villamos gép, berendezés javítása | B149: 3 | C149: 4 | D149: 3 | E149: 3 | F149: 1 | G149: 1 | Q149: =IF(--ISNUMBER(SEARCH(Díjszámítás!$C$12,A149)),MAX($Q$1:Q148)+1,"") -> 148 | R149: =IFERROR(INDEX($A$2:$A$302,MATCH(ROWS($Q$2:Q149),$Q$2:$Q$302,0)),"") -> 3314 Ipari villamos gép, berendezés javítása
A150: 3317 Egyéb közlekedési eszköz javítása | B150: 3 | C150: 4 | D150: 4 | E150: 3 | F150: 3 | G150: 3 | Q150: =IF(--ISNUMBER(SEARCH(Díjszámítás!$C$12,A150)),MAX($Q$1:Q149)+1,"") -> 149 | R150: =IFERROR(INDEX($A$2:$A$302,MATCH(ROWS($Q$2:Q150),$Q$2:$Q$302,0)),"") -> 3317 Egyéb közlekedési eszköz javítása
A151: 4120 Lakó- és nem lakó épület építése | B151: 5 | C151: 5 | D151: 2 | E151: 5 | F151: 2 | G151: 1 | Q151: =IF(--ISNUMBER(SEARCH(Díjszámítás!$C$12,A151)),MAX($Q$1:Q150)+1,"") -> 150 | R151: =IFERROR(INDEX($A$2:$A$302,MATCH(ROWS($Q$2:Q151),$Q$2:$Q$302,0)),"") -> 4120 Lakó- és nem lakó épület építése
A152: 4299 Egyéb m.n.s. építés | B152: 5 | C152: 5 | D152: 2 | E152: 5 | F152: 2 | G152: 1 | Q152: =IF(--ISNUMBER(SEARCH(Díjszámítás!$C$12,A152)),MAX($Q$1:Q151)+1,"") -> 151 | R152: =IFERROR(INDEX($A$2:$A$302,MATCH(ROWS($Q$2:Q152),$Q$2:$Q$302,0)),"") -> 4299 Egyéb m.n.s. építés
A153: 4321 Villanyszerelés | B153: 5 | C153: 5 | D153: 2 | E153: 5 | F153: 1 | G153: 1 | Q153: =IF(--ISNUMBER(SEARCH(Díjszámítás!$C$12,A153)),MAX($Q$1:Q152)+1,"") -> 152 | R153: =IFERROR(INDEX($A$2:$A$302,MATCH(ROWS($Q$2:Q153),$Q$2:$Q$302,0)),"") -> 4321 Villanyszerelés
A154: 4322 Víz-, gáz-, fűtés-, légkondicionáló-szerelés | B154: 5 | C154: 5 | D154: 2 | E154: 5 | F154: 1 | G154: 1 | Q154: =IF(--ISNUMBER(SEARCH(Díjszámítás!$C$12,A154)),MAX($Q$1:Q153)+1,"") -> 153 | R154: =IFERROR(INDEX($A$2:$A$302,MATCH(ROWS($Q$2:Q154),$Q$2:$Q$302,0)),"") -> 4322 Víz-, gáz-, fűtés-, légkondicionáló-szerelés
A155: 4329 Egyéb épületgépészeti szerelés | B155: 5 | C155: 5 | D155: 2 | E155: 5 | F155: 2 | G155: 1 | Q155: =IF(--ISNUMBER(SEARCH(Díjszámítás!$C$12,A155)),MAX($Q$1:Q154)+1,"") -> 154 | R155: =IFERROR(INDEX($A$2:$A$302,MATCH(ROWS($Q$2:Q155),$Q$2:$Q$302,0)),"") -> 4329 Egyéb épületgépészeti szerelés
A156: 4331 Vakolás | B156: 5 | C156: 5 | D156: 2 | E156: 5 | F156: 2 | G156: 1 | Q156: =IF(--ISNUMBER(SEARCH(Díjszámítás!$C$12,A156)),MAX($Q$1:Q155)+1,"") -> 155 | R156: =IFERROR(INDEX($A$2:$A$302,MATCH(ROWS($Q$2:Q156),$Q$2:$Q$302,0)),"") -> 4331 Vakolás
A157: 4332 Épületasztalos-szerkezet szerelése | B157: 8 | C157: 5 | D157: 2 | E157: 8 | F157: 3 | G157: 1 | Q157: =IF(--ISNUMBER(SEARCH(Díjszámítás!$C$12,A157)),MAX($Q$1:Q156)+1,"") -> 156 | R157: =IFERROR(INDEX($A$2:$A$302,MATCH(ROWS($Q$2:Q157),$Q$2:$Q$302,0)),"") -> 4332 Épületasztalos-szerkezet szerelése
A158: 4333 Padló-, falburkolás | B158: 6 | C158: 5 | D158: 2 | E158: 6 | F158: 1 | G158: 1 | Q158: =IF(--ISNUMBER(SEARCH(Díjszámítás!$C$12,A158)),MAX($Q$1:Q157)+1,"") -> 157 | R158: =IFERROR(INDEX($A$2:$A$302,MATCH(ROWS($Q$2:Q158),$Q$2:$Q$302,0)),"") -> 4333 Padló-, falburkolás
A159: 4334 Festés, üvegezés | B159: 5 | C159: 5 | D159: 2 | E159: 5 | F159: 1 | G159: 1 | Q159: =IF(--ISNUMBER(SEARCH(Díjszámítás!$C$12,A159)),MAX($Q$1:Q158)+1,"") -> 158 | R159: =IFERROR(INDEX($A$2:$A$302,MATCH(ROWS($Q$2:Q159),$Q$2:$Q$302,0)),"") -> 4334 Festés, üvegezés
A160: 4339 Egyéb befejező építés m.n.s. | B160: 5 | C160: 5 | D160: 2 | E160: 5 | F160: 2 | G160: 1 | Q160: =IF(--ISNUMBER(SEARCH(Díjszámítás!$C$12,A160)),MAX($Q$1:Q159)+1,"") -> 159 | R160: =IFERROR(INDEX($A$2:$A$302,MATCH(ROWS($Q$2:Q160),$Q$2:$Q$302,0)),"") -> 4339 Egyéb befejező építés m.n.s.
A161: 4391 Tetőfedés, tetőszerkezet-építés | B161: 5 | C161: 5 | D161: 3 | E161: 5 | F161: 2 | G161: 1 | Q161: =IF(--ISNUMBER(SEARCH(Díjszámítás!$C$12,A161)),MAX($Q$1:Q160)+1,"") -> 160 | R161: =IFERROR(INDEX($A$2:$A$302,MATCH(ROWS($Q$2:Q161),$Q$2:$Q$302,0)),"") -> 4391 Tetőfedés, tetőszerkezet-építés
A162: 4399 Egyéb speciális szaképítés m.n.s. | B162: 5 | C162: 5 | D162: 2 | E162: 5 | F162: 2 | G162: 1 | Q162: =IF(--ISNUMBER(SEARCH(Díjszámítás!$C$12,A162)),MAX($Q$1:Q161)+1,"") -> 161 | R162: =IFERROR(INDEX($A$2:$A$302,MATCH(ROWS($Q$2:Q162),$Q$2:$Q$302,0)),"") -> 4399 Egyéb speciális szaképítés m.n.s.
A163: 4520 Gépjárműjavítás, -karbantartás | B163: 3 | C163: 4 | D163: 4 | E163: 3 | F163: 3 | G163: 3 | Q163: =IF(--ISNUMBER(SEARCH(Díjszámítás!$C$12,A163)),MAX($Q$1:Q162)+1,"") -> 162 | R163: =IFERROR(INDEX($A$2:$A$302,MATCH(ROWS($Q$2:Q163),$Q$2:$Q$302,0)),"") -> 4520 Gépjárműjavítás, -karbantartás
A164: 4531 Gépjárműalkatrész-nagykereskedelem | B164: 3 | C164: 4 | D164: 4 | E164: 3 | F164: 1 | G164: 1 | Q164: =IF(--ISNUMBER(SEARCH(Díjszámítás!$C$12,A164)),MAX($Q$1:Q163)+1,"") -> 163 | R164: =IFERROR(INDEX($A$2:$A$302,MATCH(ROWS($Q$2:Q164),$Q$2:$Q$302,0)),"") -> 4531 Gépjárműalkatrész-nagykereskedelem
A165: 4532 Gépjárműalkatrész-kiskereskedelem | B165: 3 | C165: 4 | D165: 4 | E165: 3 | F165: 1 | G165: 1 | Q165: =IF(--ISNUMBER(SEARCH(Díjszámítás!$C$12,A165)),MAX($Q$1:Q164)+1,"") -> 164 | R165: =IFERROR(INDEX($A$2:$A$302,MATCH(ROWS($Q$2:Q165),$Q$2:$Q$302,0)),"") -> 4532 Gépjárműalkatrész-kiskereskedelem
A166: 4540 Motorkerékpár, -alkatrész kereskedelme, javítása | B166: 5 | C166: 4 | D166: 3 | E166: 5 | F166: 3 | G166: 3 | Q166: =IF(--ISNUMBER(SEARCH(Díjszámítás!$C$12,A166)),MAX($Q$1:Q165)+1,"") -> 165 | R166: =IFERROR(INDEX($A$2:$A$302,MATCH(ROWS($Q$2:Q166),$Q$2:$Q$302,0)),"") -> 4540 Motorkerékpár, -alkatrész kereskedelme, javítása
A167: 4711 Élelmiszer jellegű bolti vegyes kiskereskedelem | B167: 2 | C167: 2 | D167: 2 | E167: 2 | F167: 1 | G167: 1 | Q167: =IF(--ISNUMBER(SEARCH(Díjszámítás!$C$12,A167)),MAX($Q$1:Q166)+1,"") -> 166 | R167: =IFERROR(INDEX($A$2:$A$302,MATCH(ROWS($Q$2:Q167),$Q$2:$Q$302,0)),"") -> 4711 Élelmiszer jellegű bolti vegyes kiskereskedelem
A168: 4721 Zöldség, gyümölcs kiskereskedelme | B168: 3 | C168: 2 | D168: 1 | E168: 3 | F168: 1 | G168: 1 | Q168: =IF(--ISNUMBER(SEARCH(Díjszámítás!$C$12,A168)),MAX($Q$1:Q167)+1,"") -> 167 | R168: =IFERROR(INDEX($A$2:$A$302,MATCH(ROWS($Q$2:Q168),$Q$2:$Q$302,0)),"") -> 4721 Zöldség, gyümölcs kiskereskedelme
A169: 4722 Hús-, húsáru kiskereskedelme | B169: 3 | C169: 2 | D169: 1 | E169: 3 | F169: 1 | G169: 1 | Q169: =IF(--ISNUMBER(SEARCH(Díjszámítás!$C$12,A169)),MAX($Q$1:Q168)+1,"") -> 168 | R169: =IFERROR(INDEX($A$2:$A$302,MATCH(ROWS($Q$2:Q169),$Q$2:$Q$302,0)),"") -> 4722 Hús-, húsáru kiskereskedelme
A170: 4723 Hal kiskereskedelme | B170: 3 | C170: 2 | D170: 1 | E170: 3 | F170: 1 | G170: 1 | Q170: =IF(--ISNUMBER(SEARCH(Díjszámítás!$C$12,A170)),MAX($Q$1:Q169)+1,"") -> 169 | R170: =IFERROR(INDEX($A$2:$A$302,MATCH(ROWS($Q$2:Q170),$Q$2:$Q$302,0)),"") -> 4723 Hal kiskereskedelme
A171: 4724 Kenyér-, pékáru-, édesség-kiskereskedelem | B171: 3 | C171: 2 | D171: 1 | E171: 3 | F171: 1 | G171: 1 | Q171: =IF(--ISNUMBER(SEARCH(Díjszámítás!$C$12,A171)),MAX($Q$1:Q170)+1,"") -> 170 | R171: =IFERROR(INDEX($A$2:$A$302,MATCH(ROWS($Q$2:Q171),$Q$2:$Q$302,0)),"") -> 4724 Kenyér-, pékáru-, édesség-kiskereskedelem
A172: 4725 Ital-kiskereskedelem | B172: 3 | C172: 2 | D172: 2 | E172: 3 | F172: 1 | G172: 1 | Q172: =IF(--ISNUMBER(SEARCH(Díjszámítás!$C$12,A172)),MAX($Q$1:Q171)+1,"") -> 171 | R172: =IFERROR(INDEX($A$2:$A$302,MATCH(ROWS($Q$2:Q172),$Q$2:$Q$302,0)),"") -> 4725 Ital-kiskereskedelem
A173: 4726 Dohányáru-kiskereskedelem | B173: 4 | C173: 2 | D173: 3 | E173: 4 | F173: 1 | G173: 1 | Q173: =IF(--ISNUMBER(SEARCH(Díjszámítás!$C$12,A173)),MAX($Q$1:Q172)+1,"") -> 172 | R173: =IFERROR(INDEX($A$2:$A$302,MATCH(ROWS($Q$2:Q173),$Q$2:$Q$302,0)),"") -> 4726 Dohányáru-kiskereskedelem
A174: 4729 Egyéb élelmiszer-kiskereskedelem | B174: 2 | C174: 2 | D174: 2 | E174: 2 | F174: 1 | G174: 1 | Q174: =IF(--ISNUMBER(SEARCH(Díjszámítás!$C$12,A174)),MAX($Q$1:Q173)+1,"") -> 173 | R174: =IFERROR(INDEX($A$2:$A$302,MATCH(ROWS($Q$2:Q174),$Q$2:$Q$302,0)),"") -> 4729 Egyéb élelmiszer-kiskereskedelem
A175: 4730 Gépjárműüzemanyag-kiskereskedelem | B175: 3 | C175: 4 | D175: 4 | E175: 3 | F175: 3 | G175: 2 | Q175: =IF(--ISNUMBER(SEARCH(Díjszámítás!$C$12,A175)),MAX($Q$1:Q174)+1,"") -> 174 | R175: =IFERROR(INDEX($A$2:$A$302,MATCH(ROWS($Q$2:Q175),$Q$2:$Q$302,0)),"") -> 4730 Gépjárműüzemanyag-kiskereskedelem
A176: 4741 Számítógép, periféria, szoftver kiskereskedelme | B176: 3 | C176: 2 | D176: 3 | E176: 3 | F176: 1 | G176: 1 | Q176: =IF(--ISNUMBER(SEARCH(Díjszámítás!$C$12,A176)),MAX($Q$1:Q175)+1,"") -> 175 | R176: =IFERROR(INDEX($A$2:$A$302,MATCH(ROWS($Q$2:Q176),$Q$2:$Q$302,0)),"") -> 4741 Számítógép, periféria, szoftver kiskereskedelme
A177: 4742 Telekommunikációs termék kiskereskedelme | B177: 2 | C177: 2 | D177: 4 | E177: 2 | F177: 3 | G177: 3 | Q177: =IF(--ISNUMBER(SEARCH(Díjszámítás!$C$12,A177)),MAX($Q$1:Q176)+1,"") -> 176 | R177: =IFERROR(INDEX($A$2:$A$302,MATCH(ROWS($Q$2:Q177),$Q$2:$Q$302,0)),"") -> 4742 Telekommunikációs termék kiskereskedelme
A178: 4743 Audio-, videoberendezés kiskereskedelme | B178: 3 | C178: 2 | D178: 4 | E178: 3 | F178: 1 | G178: 1 | Q178: =IF(--ISNUMBER(SEARCH(Díjszámítás!$C$12,A178)),MAX($Q$1:Q177)+1,"") -> 177 | R178: =IFERROR(INDEX($A$2:$A$302,MATCH(ROWS($Q$2:Q178),$Q$2:$Q$302,0)),"") -> 4743 Audio-, videoberendezés kiskereskedelme
A179: 4751 Textil-kiskereskedelem | B179: 3 | C179: 2 | D179: 2 | E179: 3 | F179: 1 | G179: 1 | Q179: =IF(--ISNUMBER(SEARCH(Díjszámítás!$C$12,A179)),MAX($Q$1:Q178)+1,"") -> 178 | R179: =IFERROR(INDEX($A$2:$A$302,MATCH(ROWS($Q$2:Q179),$Q$2:$Q$302,0)),"") -> 4751 Textil-kiskereskedelem
A180: 4752 Vasáru-, festék-, üveg-kiskereskedelem | B180: 2 | C180: 2 | D180: 4 | E180: 2 | F180: 1 | G180: 1 | Q180: =IF(--ISNUMBER(SEARCH(Díjszámítás!$C$12,A180)),MAX($Q$1:Q179)+1,"") -> 179 | R180: =IFERROR(INDEX($A$2:$A$302,MATCH(ROWS($Q$2:Q180),$Q$2:$Q$302,0)),"") -> 4752 Vasáru-, festék-, üveg-kiskereskedelem
A181: 4753 Takaró, szőnyeg, fal-, padlóburkoló kiskereskedelme | B181: 4 | C181: 2 | D181: 2 | E181: 4 | F181: 1 | G181: 1 | Q181: =IF(--ISNUMBER(SEARCH(Díjszámítás!$C$12,A181)),MAX($Q$1:Q180)+1,"") -> 180 | R181: =IFERROR(INDEX($A$2:$A$302,MATCH(ROWS($Q$2:Q181),$Q$2:$Q$302,0)),"") -> 4753 Takaró, szőnyeg, fal-, padlóburkoló kiskereskedelme
A182: 4754 Villamos háztartási készülék kiskereskedelme | B182: 4 | C182: 2 | D182: 3 | E182: 4 | F182: 1 | G182: 1 | Q182: =IF(--ISNUMBER(SEARCH(Díjszámítás!$C$12,A182)),MAX($Q$1:Q181)+1,"") -> 181 | R182: =IFERROR(INDEX($A$2:$A$302,MATCH(ROWS($Q$2:Q182),$Q$2:$Q$302,0)),"") -> 4754 Villamos háztartási készülék kiskereskedelme
A183: 4759 Bútor, világítási eszköz, egyéb háztartási cikk kiskereskedelme | B183: 6 | C183: 2 | D183: 3 | E183: 6 | F183: 1 | G183: 1 | Q183: =IF(--ISNUMBER(SEARCH(Díjszámítás!$C$12,A183)),MAX($Q$1:Q182)+1,"") -> 182 | R183: =IFERROR(INDEX($A$2:$A$302,MATCH(ROWS($Q$2:Q183),$Q$2:$Q$302,0)),"") -> 4759 Bútor, világítási eszköz, egyéb háztartási cikk kiskereskedelme
A184: 4761 Könyv-kiskereskedelem | B184: 4 | C184: 2 | D184: 2 | E184: 4 | F184: 1 | G184: 1 | Q184: =IF(--ISNUMBER(SEARCH(Díjszámítás!$C$12,A184)),MAX($Q$1:Q183)+1,"") -> 183 | R184: =IFERROR(INDEX($A$2:$A$302,MATCH(ROWS($Q$2:Q184),$Q$2:$Q$302,0)),"") -> 4761 Könyv-kiskereskedelem
A185: 4762 Újság-, papíráru-kiskereskedelem | B185: 4 | C185: 2 | D185: 1 | E185: 4 | F185: 1 | G185: 1 | Q185: =IF(--ISNUMBER(SEARCH(Díjszámítás!$C$12,A185)),MAX($Q$1:Q184)+1,"") -> 184 | R185: =IFERROR(INDEX($A$2:$A$302,MATCH(ROWS($Q$2:Q185),$Q$2:$Q$302,0)),"") -> 4762 Újság-, papíráru-kiskereskedelem
A186: 4763 Zene-, videofelvétel kiskereskedelme | B186: 3 | C186: 2 | D186: 3 | E186: 3 | F186: 1 | G186: 1 | Q186: =IF(--ISNUMBER(SEARCH(Díjszámítás!$C$12,A186)),MAX($Q$1:Q185)+1,"") -> 185 | R186: =IFERROR(INDEX($A$2:$A$302,MATCH(ROWS($Q$2:Q186),$Q$2:$Q$302,0)),"") -> 4763 Zene-, videofelvétel kiskereskedelme
A187: 4764 Sportszer-kiskereskedelem | B187: 3 | C187: 2 | D187: 2 | E187: 3 | F187: 1 | G187: 1 | Q187: =IF(--ISNUMBER(SEARCH(Díjszámítás!$C$12,A187)),MAX($Q$1:Q186)+1,"") -> 186 | R187: =IFERROR(INDEX($A$2:$A$302,MATCH(ROWS($Q$2:Q187),$Q$2:$Q$302,0)),"") -> 4764 Sportszer-kiskereskedelem
A188: 4765 Játék-kiskereskedelem | B188: 3 | C188: 2 | D188: 2 | E188: 3 | F188: 1 | G188: 1 | Q188: =IF(--ISNUMBER(SEARCH(Díjszámítás!$C$12,A188)),MAX($Q$1:Q187)+1,"") -> 187 | R188: =IFERROR(INDEX($A$2:$A$302,MATCH(ROWS($Q$2:Q188),$Q$2:$Q$302,0)),"") -> 4765 Játék-kiskereskedelem
A189: 4771 Ruházat kiskereskedelem | B189: 3 | C189: 2 | D189: 2 | E189: 3 | F189: 1 | G189: 1 | Q189: =IF(--ISNUMBER(SEARCH(Díjszámítás!$C$12,A189)),MAX($Q$1:Q188)+1,"") -> 188 | R189: =IFERROR(INDEX($A$2:$A$302,MATCH(ROWS($Q$2:Q189),$Q$2:$Q$302,0)),"") -> 4771 Ruházat kiskereskedelem
A190: 4772 Lábbeli-, bőráru-kiskereskedelem | B190: 3 | C190: 2 | D190: 2 | E190: 3 | F190: 1 | G190: 1 | Q190: =IF(--ISNUMBER(SEARCH(Díjszámítás!$C$12,A190)),MAX($Q$1:Q189)+1,"") -> 189 | R190: =IFERROR(INDEX($A$2:$A$302,MATCH(ROWS($Q$2:Q190),$Q$2:$Q$302,0)),"") -> 4772 Lábbeli-, bőráru-kiskereskedelem
A191: 4773 Gyógyszer-kiskereskedelem | B191: 2 | C191: 2 | D191: 3 | E191: 2 | F191: 1 | G191: 1 | Q191: =IF(--ISNUMBER(SEARCH(Díjszámítás!$C$12,A191)),MAX($Q$1:Q190)+1,"") -> 190 | R191: =IFERROR(INDEX($A$2:$A$302,MATCH(ROWS($Q$2:Q191),$Q$2:$Q$302,0)),"") -> 4773 Gyógyszer-kiskereskedelem
A192: 4774 Gyógyászati termék kiskereskedelme | B192: 4 | C192: 2 | D192: 1 | E192: 4 | F192: 1 | G192: 1 | Q192: =IF(--ISNUMBER(SEARCH(Díjszámítás!$C$12,A192)),MAX($Q$1:Q191)+1,"") -> 191 | R192: =IFERROR(INDEX($A$2:$A$302,MATCH(ROWS($Q$2:Q192),$Q$2:$Q$302,0)),"") -> 4774 Gyógyászati termék kiskereskedelme
A193: 4775 Illatszer-kiskereskedelem | B193: 4 | C193: 4 | D193: 3 | E193: 4 | F193: 1 | G193: 1 | Q193: =IF(--ISNUMBER(SEARCH(Díjszámítás!$C$12,A193)),MAX($Q$1:Q192)+1,"") -> 192 | R193: =IFERROR(INDEX($A$2:$A$302,MATCH(ROWS($Q$2:Q193),$Q$2:$Q$302,0)),"") -> 4775 Illatszer-kiskereskedelem
A194: 4776 Dísznövény, vetőmag, műtrágya, hobbiállat-eledel kiskereskedelme | B194: 3 | C194: 2 | D194: 1 | E194: 3 | F194: 1 | G194: 1 | Q194: =IF(--ISNUMBER(SEARCH(Díjszámítás!$C$12,A194)),MAX($Q$1:Q193)+1,"") -> 193 | R194: =IFERROR(INDEX($A$2:$A$302,MATCH(ROWS($Q$2:Q194),$Q$2:$Q$302,0)),"") -> 4776 Dísznövény, vetőmag, műtrágya, hobbiállat-eledel kiskereskedelme
A195: 4782 Textil, ruházat, lábbeli piaci kiskereskedelme | B195: 3 | C195: 2 | D195: 2 | E195: 3 | F195: 1 | G195: 1 | Q195: =IF(--ISNUMBER(SEARCH(Díjszámítás!$C$12,A195)),MAX($Q$1:Q194)+1,"") -> 194 | R195: =IFERROR(INDEX($A$2:$A$302,MATCH(ROWS($Q$2:Q195),$Q$2:$Q$302,0)),"") -> 4782 Textil, ruházat, lábbeli piaci kiskereskedelme
A196: 5510 Szállodai szolgáltatás | B196: 2 | C196: 3 | D196: 2 | E196: 2 | F196: 2 | G196: 2 | Q196: =IF(--ISNUMBER(SEARCH(Díjszámítás!$C$12,A196)),MAX($Q$1:Q195)+1,"") -> 195 | R196: =IFERROR(INDEX($A$2:$A$302,MATCH(ROWS($Q$2:Q196),$Q$2:$Q$302,0)),"") -> 5510 Szállodai szolgáltatás
A197: 5520 Üdülési, egyéb átmeneti szálláshely-szolgáltatás | B197: 2 | C197: 3 | D197: 2 | E197: 2 | F197: 2 | G197: 2 | Q197: =IF(--ISNUMBER(SEARCH(Díjszámítás!$C$12,A197)),MAX($Q$1:Q196)+1,"") -> 196 | R197: =IFERROR(INDEX($A$2:$A$302,MATCH(ROWS($Q$2:Q197),$Q$2:$Q$302,0)),"") -> 5520 Üdülési, egyéb átmeneti szálláshely-szolgáltatás
A198: 5590 Egyéb szálláshely-szolgáltatás | B198: 2 | C198: 3 | D198: 2 | E198: 2 | F198: 2 | G198: 2 | Q198: =IF(--ISNUMBER(SEARCH(Díjszámítás!$C$12,A198)),MAX($Q$1:Q197)+1,"") -> 197 | R198: =IFERROR(INDEX($A$2:$A$302,MATCH(ROWS($Q$2:Q198),$Q$2:$Q$302,0)),"") -> 5590 Egyéb szálláshely-szolgáltatás
A199: 5610 Éttermi, mozgó vendéglátás | B199: 4 | C199: 3 | D199: 2 | E199: 4 | F199: 2 | G199: 1 | Q199: =IF(--ISNUMBER(SEARCH(Díjszámítás!$C$12,A199)),MAX($Q$1:Q198)+1,"") -> 198 | R199: =IFERROR(INDEX($A$2:$A$302,MATCH(ROWS($Q$2:Q199),$Q$2:$Q$302,0)),"") -> 5610 Éttermi, mozgó vendéglátás
A200: 5621 Rendezvényi étkeztetés | B200: 4 | C200: 3 | D200: 2 | E200: 4 | F200: 2 | G200: 1 | Q200: =IF(--ISNUMBER(SEARCH(Díjszámítás!$C$12,A200)),MAX($Q$1:Q199)+1,"") -> 199 | R200: =IFERROR(INDEX($A$2:$A$302,MATCH(ROWS($Q$2:Q200),$Q$2:$Q$302,0)),"") -> 5621 Rendezvényi étkeztetés
... 102 more rows

Sheet Díjszámítás
H2: UNION-Business Class
A3: DÍJKALKULÁCIÓS PROGRAM! NEM MINŐSÜL BIZTOSÍTÁSI AJÁNLATNAK!!!
A10: Szerződő / Biztosított:
A12: Jellemző tevékenység: | D12: s | O12: =IF(C12="Önkormányzat",1,0) -> 0
A14: Kockázati osztály tűz | D14: =IF(C12="","",VLOOKUP($C12,Munka3!$A$2:$G$302,2,FALSE)) ->  | F14: Kockázati osztály betörés | I14: =IF(C12="","",VLOOKUP($C12,Munka3!$A$2:$G$302,4,FALSE)) -> 
A16: Épületbiztosítás
A17: =IF(AND(C24>0,A27>0,ÉpületIngóság!P26=0),"Kérjük töltse ki az Épület munkalapot!",0) -> 0
A18: Biztosított vagyontárgyak | D18: Biztosítási összeg eFt | J18: Összesen
D19: Saját tulajdon | G19: Idegen tulajdon
A20: Épület | D20: =ÉpületIngóság!E26 -> 5000 | G20: =ÉpületIngóság!G26 -> 0 | J20: =SUM(D20:I20) -> 5000
A21: Építmény | D21: =ÉpületIngóság!I26 -> 2000 | G21: =ÉpületIngóság!K26 -> 0 | J21: =SUM(D21:I21) -> 2000
A22: Összesen | D22: =SUM(D20:F21) -> 7000 | G22: =SUM(G20:I21) -> 0 | J22: =C27 -> 10000
M23: Önr
A24: Választott önrész | C24: 25000 | E24: Ft | H24: Ft | M24: =IF(C24="0",1,IF(C24=5000,2,IF(C24=10000,3,IF(C24=25000,4,IF(C24=50000,5,IF(C24=100000,6,IF(C24=200000,7))))))) -> 4
A26: Választott módozat | C26: Biztosítási összeg eFt | E26: Kockázati osztály | F26: Díjtétel | G26: Módozati szorzó | H26: Éves díj Ft | M26: Mód | N26: Vol | O26: Volumen osztály | R26: Kockázati osztály | S26: Díjtétel | T26: Módozati szorzó | U26: Volumen-szorzó | V26: Önrész szorzó
A27: Extra | C27: 10000 | H27: =SUM(C27*S27*T27*U27*V27) ->  | M27: =IF(A27="Alap",1,IF(A27="Teljes",2,IF(A27="Extra",3,IF(A27="All Risks",4)))) -> 3 | N27: =SUM(C27,C42) -> 20000 | O27: =IF(N27<=10000,1,IF(AND(N27<=25000,N27>10),2,IF(AND(N27<=50000,N27>25),3,IF(AND(N27<=100000,N27>50),4,IF(AND(N27<=200000,N27>100),5,IF(AND(N27<=500000,N27>200),6)))))) -> 2 | R27: =IF(OR(A27=0,C27=0,C24=0),0,D14) ->  | S27: =IF(OR(A27=0,C27=0,C24=0),0,INDEX(Tűz,R27)) ->  | T27: =IF(OR(A27=0,C27=0,C24=0),0,INDEX(Tmód,M27)) -> 1 | U27: =IF(OR(A27=0,C27=0,C24=0),0,4.1646*(N27/1000)^-0.348) -> 1.468300194 | V27: =IF(OR(A27=0,C27=0,C24=0),0,INDEX(Tönr,M24)) -> 1
A28: =IF(AND(C24>0,A27>0,ÉpületIngóság!T26=0),"Kérjük, töltse ki az Épület munkalapot!",IF(AND(C27>0,A27=0),"Kitöltötte az épület biztosítási összeget és nem választotta ki a módozatot",0)) -> 0 | O28: =IF(O27=4,1,IF(O27=5,2,IF(O27=6,3))) -> FALSE | P28: =IF(O28=0,1,INDEX(bvol,O28)) -> 
A29: Ingóság (Gép, berendezés, készlet biztosítás) | N29: =C42-50000 -> -40000
A30: =IF(AND(C39>0,A42>0,'Gép,berendezés'!L33=0),"Kérjük töltse ki a Gép, berendezés munkalapot!",0) -> Kérjük töltse ki a Gép, berendezés munkalapot!
A31: Biztosított vagyontárgyak | D31: Biztosítási összeg | J31: Összesen
D32: Saját tulajdon | G32: Idegen tulajdon
A33: Gép, berendezés | D33: ='Gép,berendezés'!E33 -> 0 | G33: ='Gép,berendezés'!F33 -> 0 | J33: =SUM(D33:I33) -> 0
A34: Egyéb nevesített vagyontárgy | D34: ='Gép,berendezés'!G33 -> 0 | G34: ='Gép,berendezés'!H33 -> 0 | J34: =SUM(D34:I34) -> 0
A35: Készlet | D35: ='Gép,berendezés'!I33 -> 0 | G35: ='Gép,berendezés'!J33 -> 0 | J35: =SUM(D35:I35) -> 0
A36: Készpénz | D36: ='Gép,berendezés'!K33 -> 0 | J36: =SUM(D36:I36) -> 0
A37: Összesen | D37: =SUM(D33:F36) -> 0 | G37: =SUM(G33:I36) -> 0 | J37: =C42 -> 10000
A39: Választott önrész | C39: 10000 | H39: Ft | M39: =IF(C39="0",1,IF(C39=5000,2,IF(C39=10000,3,IF(C39=25000,4,IF(C39=50000,5,IF(C39=100000,6,IF(C39=200000,7))))))) -> 3
A41: Választott módozat | C41: Biztosítási összeg eFt | E41: Kockázati osztály | F41: Díjtétel | G41: Módozati szorzó | H41: Éves díj Ft | R41: Kockázati osztály | S41: Díjtétel | T41: Módozati szorzó | U41: Volumen-szorzó | V41: Önrész szorzó
A42: Extra csomag betöréses lopással | C42: 10000 | H42: =IF(A42=0,0,IF(AND(N29>0,N42<>7),T42*V42*(C42*S44*U42+50000*S45*U42+N29*S45*U44),C42*S42*T42*U42*V42)) ->  | M42: =IF(A42="Alap csomag betöréses lopással",1,IF(A42="Teljes csomag betöréses lopással",2,IF(A42="Extra csomag betöréses lopással",3,IF(A42="All Risks csomag betöréses lopással",4,IF(A42="Alap csomag betöréses lopás nélkül",5,IF(A42="Teljes csomag betöréses lopás nélkül",6,IF(A42="Extra csomag betöréses lopás nélkül",7,IF(A42="All Risks csomag betöréses lopás nélkül",8)))))))) -> 3 | N42: =IF(M42=1,1,IF(M42=2,2,IF(M42=3,3,IF(M42=4,4,7)))) -> 3 | R42: =IF(OR(A42=0,C42=0,C39=0),0,D14) ->  | S42: =IF(OR(A42=0,C42=0,C39=0),0,IF(N42=7,INDEX(Itűz,D14),IF(N42<7,SUM(INDEX(Itűz,D14),INDEX(Bet,I14))))) ->  | T42: =IF(OR(A42=0,C42=0,C39=0),0,IF(M42=0,0,IF(M42<=4,INDEX(Bmód,M42),IF(M42>4,INDEX(Tmód,(M42-4)),)))) -> 1 | U42: =IF(A42=0,0,4.1646*(N27/1000)^-0.348) -> 1.468300194 | V42: =IF(OR(A42=0,C42=0,C39=0),0,INDEX(Tönr,M39)) -> 1.12
A43: =IF(AND(C39>0,A42>0,ÉpületIngóság!U26=0),"Kérjük, töltse ki az Épület munkalapot!",IF(AND(C42>0,A42=0),"Kitöltötte az ingóság biztosítási összeget és nem választotta ki a módozatot",0)) -> 0 | N43: =IF(M42=4,4,IF(M42=5,5,IF(M42=6,6,7))) -> 7 | O43: =IF(OR(N43=0,N43=7),0,IF(N43=4,1,IF(N43=5,2,IF(N43=6,3)))) -> 0
A44: Vagyonbiztosítás összesen | S44: =INDEX(Itűz,D14) ->  | U44: =IF(C42<=50000,"50MFt feletti bet. Lop. volumen szorzó kerül ide, ha van!",VLOOKUP(C42*1000,Munka4!E25:H27,4,TRUE)) -> 50MFt feletti bet. Lop. volumen szorzó kerül ide, ha van!
A45: Épület és Ingóság biztosítás éves díja összesen | H45: =IF(M45<0,0,IF(AND(M45>0,M45<15000),15000,M45)) ->  | M45: =SUM(H27+H42) ->  | O45: Alap csomag: 3 hó, max. 25 M Ft | S45: =INDEX(Bet,I14) -> 
A46: =IF(N27<1000000,0,IF(N27>1000000,"500.000 eFt vagyonérték felett nem köthető Business Class biztosítás")) -> 0 | O46: Bővített csomag: 6 hó, max. 50 M Ft
A47: Kiegészítő üvegbiztosítás | O47: Bővített csomag: 12 hó, max. 100 M Ft
A48: Választott módozat | C48: Limit eFt | H48: Éves díj Ft | O48: Bővített csomag: 12 hó, max. 150 M Ft
A49: Normál és speciális üveg | C49: 100 | H49: =IF(OR(H45=0,A49=0,C49=0),0,IF(A49="Normál üveg",VLOOKUP(C49,Munka4!AD5:AF19,2,FALSE),IF(A49="Normál és speciális üveg",VLOOKUP(C49,Munka4!AD5:AF19,3,FALSE)))) -> 
A51: Üzemszünetbiztosítás
A52: Választott önrész | C52: 7 nap | H52: Limit | I52: =IF(A55=0,0,IF(A55="Alap csomag: 3 hó, max. 25 M Ft",A157,IF(A55="Bővített csomag: 6 hó, max. 50 M Ft",A158,IF(A55="Bővített csomag: 12 hó, max. 100 M Ft",A159,IF(A55="Bővített csomag: 12 hó, max. 150 M Ft",A160,0))))) -> 6 hónap, max. 50 MFt | M52: =IF(C52="3 nap",1,IF(C52="5 nap",2,IF(C52="7 nap",3))) -> 3 | O52: =IF(Díjszámítás!M27=1,1,IF(Díjszámítás!M27=2,2,IF(Díjszámítás!M27=3,3,IF(M27=4,4,0)))) -> 3 | P52: =IF(OR(M42=5,M42=1),1,IF(OR(M42=6,M42=2),2,IF(OR(M42=7,M42=3),3,IF(OR(M42=8,M42=4),4,0)))) -> 3
A54: Választott módozat | C54: Díjszámítás alapja eFt | E54: Kockázati osztály | F54: Díjtétel | G54: Módozati szorzó | H54: Éves díj Ft | M54: Mód | N54: Vol | P54: =IF(AND(O52>0,P52>O52),O52,P52) -> 3 | R54: Kockázati osztály | S54: Díjtétel | T54: Módozati szorzó | U54: Volumen-szorzó | V54: Önrész szorzó
A55: Bővített csomag: 6 hó, max. 50 M Ft | C55: =IF(OR(A42=0,A55=0),0,IF(AND(M42=1,M55>1),0,IF(AND(M27=1,M55>1),0,Díjszámítás!N27))) -> 20000 | H55: =IF(H42=0,0,IF(AND(C52=0,A55=0),0,(C55*S55*T55*U55*V55))) ->  | M55: =IF(A55="Alap csomag: 3 hó, max. 25 M Ft",1,IF(A55="Bővített csomag: 6 hó, max. 50 M Ft",2,IF(A55="Bővített csomag: 12 hó, max. 100 M Ft",3,IF(A55="Bővített csomag: 12 hó, max. 150 M Ft",4)))) -> 2 | N55: =Díjszámítás!N27 -> 20000 | O55: =IF(N55<=10000,1,IF(AND(N55<=25000,N55>10),2,IF(AND(N55<=50000,N55>25),3,IF(AND(N55<=100000,N55>50),4,IF(AND(N55<=200000,N55>100),5,IF(AND(N55<=500000,N55>200),6)))))) -> 2 | R55: =IF(OR(A55=0,C55=0,C52=0),0,IF(Díjszámítás!C12="","",VLOOKUP(Díjszámítás!C12,Munka3!$A$2:$G$302,5,FALSE))) ->  | S55: =IF(OR(A55=0,C55=0,C52=0),0,IF(R55="vig",0,INDEX(Üzem,R55))) ->  | T55: =IF(OR(A55=0,C55=0,C52=0),0,INDEX(Ümód,M55)) -> 1 | U55: =IF(OR(A55=0,C55=0,C52=0),0,4.1646*(N55/1000)^-0.348) -> 1.468300194 | V55: =IF(OR(A55=0,C55=0,C52=0),0,INDEX(Üönr,M52,)) -> 0.8
A56: =IF(AND(H45>0,H42>0,R55="vig"),"Üzemszünet biztosítás csak a vagyonigazgatóság engedélyével köthető",IF(AND(H45=0,C52>0,A55>0),"Az üzemszünetbiztosítás csak a vagyonbiztosítás kiegészítőjeként köthető",IF(AND(A55>0,H42=0),"Üzemszünet biztosítás csak az Ingóságbiztosítás kiegészítőjeként köthető",0))) -> 
A57: Géptörés biztosítás
A59: Önrész | H59: Gépek átlagéletkora | M59: =IF(B59="","",VLOOKUP($B59,Összesítő!$E$63:$H$70,4,FALSE)) ->  | N59: =IF(J59<=2,1,IF(AND(J59<=5,J59>2),2,IF(AND(J59<=10,J59>5),3,IF(AND(J59<=15,J59>10),4,IF(OR(J59>15,J59="15 felett"),5))))) -> 1 | O59: =IF(J59=0,0,IF(J59="0-2",1,IF(J59="2,01-5",2,IF(J59="5,01-10",3,IF(J59="10,01-15",4,IF(J59="15 felett",5)))))) -> 0
A61: Választott módozat | C61: Biztosítási összeg eFt | E61: Kockázati osztály | F61: Díjtétel | G61: Átlagélet-kor eng. | H61: Éves díj Ft | M61: =INDEX(Gkor,O59) ->  | O61: =IF(C62<=10000,1,IF(AND(C62<=25000,C62>10),2,IF(AND(C62<=50000,C62>25),3,IF(AND(C62<=100000,C62>50),4,IF(AND(C62<=200000,C62>100),5,IF(AND(C62<=500000,C62>200),6)))))) -> 1 | R61: Kockázati osztály | S61: Díjtétel | T61: Átlagélet-kor eng. | U61: Volumen-szorzó | V61: Önrész szorzó
A62: Géptörés | H62: =IF(OR(H42=0,H45=0),0,IF(C42<C62,0,IF(B59=0,0,(C62*S62*T62*U62*V62)))) ->  | M62: =IF(A62="Alap",1,IF(A62="Teljes",2,IF(A62="Extra",3))) -> FALSE | R62: =IF(OR(C62=0,B59=0),0,IF(Díjszámítás!C12="","",VLOOKUP(Díjszámítás!$C12,Munka3!$A$2:$G$302,6,FALSE))) -> 0 | S62: =IF(OR(C62=0,B59=0,R62=0),0,IF(R62="vig",0,INDEX(Gép,R62))) -> 0 | T62: =IF(OR(C62=0,B59=0,J59=0),0,M61) -> 0 | U62: =IF(OR(C62=0,B59=0),0,INDEX(Gvol,O61)) -> 0 | V62: =IF(OR(B59=0,C62=0),0,INDEX(Gönr,M59)) -> 0
A63: =IF(AND(H42=0,C62>0),"A géptörésbiztosítás csak az ingóságbiztosítás kiegészítőjeként köthető",IF(C62>C42,"A géptörésbiztosítási összeg nem lehet magasabb, mint a gépek berendezések biztosítási összege",0)) -> 
A65: Elektromos berendezések biztosítása
A67: Önrész | H67: Gépek átlagéletkora | M67: =IF(B67="","",VLOOKUP($B67,Összesítő!$E$63:$H$70,4,FALSE)) ->  | N67: =IF(J67<=2,1,IF(AND(J67<=3,J67>2),2,IF(AND(J67<=5,J67>3),3,IF(OR(J67>5,J67="5 felett"),4)))) -> 1 | O67: =IF(J67="0-2",1,IF(J67="2,01-3",2,IF(J67="3,01-5",3,IF(J67="5,01-",4)))) -> FALSE
A69: Választott módozat | C69: Biztosítási összeg eFt | E69: Kockázati osztály | F69: Díjtétel | G69: Átlagélet-kor eng. | H69: Éves díj Ft | M69: =INDEX(Ekor,O67) ->  | O69: =IF(C70<=10000,1,IF(AND(C70<=25000,C70>10),2,IF(AND(C70<=50000,C70>25),3,IF(AND(C70<=100000,C70>50),4,IF(AND(C70<=200000,C70>100),5,IF(AND(C70<=500000,C70>200),6)))))) -> 1 | R69: Kockázati osztály | S69: Díjtétel | T69: Átlagélet-kor eng. | U69: Volumen-szorzó | V69: Önrész szorzó
A70: ELBER | H70: =IF(OR(H42=0,H45=0),0,IF(C42<C70,0,IF(AND(B67=0,C70=0),0,(C70*S70*T70*U70*V70)))) ->  | R70: =IF(OR(C70=0,B67=0),0,IF(Díjszámítás!C12="","",VLOOKUP(Díjszámítás!$C12,Munka3!$A$2:$G$302,7,FALSE))) -> 0 | S70: =IF(OR(C70=0,B67=0),0,IF(R70="vig",0,INDEX(ELBER,R70))) -> 0 | T70: =IF(OR(C70=0,B67=0,J67=0),0,M69) -> 0 | U70: =IF(OR(C70=0,B67=0),0,INDEX(Evol,O69)) -> 0 | V70: =IF(OR(B67=0,A70=0),0,INDEX(Eönr,M67)) -> 0
A71: =IF(AND(H42=0,C70>0),"Elektromos berendezések biztosítása csak az ingóság kiegészítőjeként köthető",IF(C70>C42,"Az elektromos berendezések biztosítási összege nem lehet magasabb, mint a gép, berendezés biztosítási összege",0)) -> 
A72: Felelősségbiztosítás
A74: Önrész | H74: Forgalom: | J74: M Ft | M74: =IF(B74="","",VLOOKUP($B74,Összesítő!$E$63:$H$70,4,FALSE)) -> 
A76: Felelősségbiztosítás | C76: Kártérítési limit MFt/kár/év | E76: Kockázati osztály | F76: Díjtétel | G76: Módozati szorzó | I76: Éves díj Ft | O76: Ha kockázati osztály 5. minimál díj nagyobb | R76: Kockázati osztály | S76: Díjtétel | T76: Módozati szorzó | V76: Önrész szorzó
A77: Általános felelősségbiztosítás | I77: =IF(OR(I74=0,B74=0,C77=0),0,IF(U80*S77*T77*V77<O77,O77,U80*S77*T77*V77)) -> 0 | M77: =IF(C77="5 MFt/kár; 15 MFt/év",1,IF(C77="15 MFt/kár; 45 MFt/év",2,IF(C77="50 MFt/kár; 100 MFt/év",3))) -> FALSE | O77: =IF(R77=5,67500,15000) -> 15000 | R77: =IF(OR(A77=0,C77=0,B74=0),0,IF(Díjszámítás!C12="","",VLOOKUP(Díjszámítás!$C12,Munka3!$A$2:$G$302,3,FALSE))) -> 0 | S77: =IF(OR(A77=0,C77=0,B74=0),0,IF(R77="vig",0,INDEX(Fel,R77))) -> 0 | T77: =IF(OR(A77=0,C77=0,B74=0),0,INDEX(Felmód,M77)) -> 0 | V77: =IF(OR(A77=0,C77=0,B74=0),0,INDEX(Felönr,M74)) -> 0
A78: Kiegészítő felelősségbiztosítások
A79: Munkáltatói felelősségbiztosítás | I79: =IF(H79=0,0,IF(I77=0,0,IF(AND(I77>0,H79="kérem"),(I77*0.6),IF(AND(I77>0,H79="nem kérem"),0)))) -> 0 | O79: Csak akkor törölje épszer kötelezőt, ha előzőleg 5 volt | R79: Forgkorr. Szorzó | S79: Vagyon alapú engedmény | T79: Forgalom eFt
A80: Termékfelelősség-biztosítás | I80: =IF(H80=0,0,IF(I77=0,0,IF(AND(I77>0,H80="kérem"),(I77*0.8),IF(AND(I77>0,H80="nem kérem"),0)))) -> 0 | M80: =IF(I80=0,1,IF(I80>0,2)) -> 1 | O80: 0 | R80: =-0.262*(LN(I74))+2.2125 ->  | S80: =IF((C27+C42)<S83,1,(1.0022*EXP(-0.002*(C27+C42)/10000)-0.3)) -> 0.6981992069 | T80: =+I74*1000 -> 0 | U80: =T80*R80*S80 -> 
A81: Szolgáltatói felelősségbiztosítás | I81: =IF(H81=0,0,IF(I77=0,0,IF(AND(I77>0,H81="kérem"),(I77*0.8),IF(AND(I77>0,H81="nem kérem"),0)))) -> 0 | M81: =IF(I81=0,1,IF(I81>0,2)) -> 1
A82: Ingatlan-bérlői felelősségbiztosítás | I82: =IF(H82=0,0,IF(I77=0,0,IF(AND(I77>0,H82="kérem"),(I77*0.3),IF(AND(I77>0,H82="nem kérem"),0)))) -> 0 | S82: Ha 5 kockázati besorolás, akkor min 100 az engedmény határa
A83: Ingatlan-bérbeadói felelősségbiztosítás | I83: =IF(H83=0,0,IF(I77=0,0,IF(AND(I77>0,H83="kérem"),(I77*0.3),IF(AND(I77>0,H83="nem kérem"),0)))) -> 0 | P83: sd | S83: =IF(R77=5,100000,11000) -> 11000
A84: Kiterjesztett termékfelelősség-biztosítás | I84: =IF(H84=0,0,IF(OR(I77=0,I80=0,H84="Nem köthető"),0,IF(AND(I77>0,H84="kérem"),(I77*1),IF(AND(I77>0,H84="nem kérem"),0)))) -> 0
A85: Szállodai szolgáltatók felelősségbiztosítása | I85: =IF(H85=0,0,IF(I77=0,0,IF(AND(I77>0,H85="kérem"),(I77*0.3),IF(AND(I77>0,H85="nem kérem"),0)))) -> 0 | M85: =IF(I85=0,1,IF(I85>0,2)) -> 1 | R85: =-0.218*(LN(I74))+1.895 -> 
A86: Szállodai szolg. fel.bizt. kiterjesztése gépjárművek őrzésére | I86: =IF(H86=0,0,IF(OR(I77=0,I85=0,H86="Nem köthető"),0,IF(AND(I77>0,H86="kérem"),(I77*0.8),IF(AND(I77>0,H86="nem kérem"),0)))) -> 0
A87: Környezetszennyezési felelősségbiztosítás | I87: =IF(H87=0,0,IF(I77=0,0,IF(AND(I77>0,H87="kérem"),(I77*0.5),IF(AND(I77>0,H87="nem kérem"),0)))) -> 0
A88: Fel.biztosítások területi hatályának kiterjesztése az EU-ra | I88: =IF(H88=0,0,IF(I77=0,0,IF(AND(I77>0,H88="kérem"),(I77*0.5),IF(AND(I77>0,H88="nem kérem"),0)))) -> 0
A89: Szolgáltatói fel.bizt. kiterjesztése idegen jármű rakodására | I89: =IF(H89=0,0,IF(OR($I$77=0,$I$81=0,H89="Nem köthető"),0,IF(AND($I$77>0,H89="kérem"),($I$77*0.4),IF(AND($I$77>0,H89="nem kérem"),0)))) -> 0 | N89: 1.sz.Záradék /Hűtőtt árúk/
A90: Oktatói, gyakorlati képzést szervezők felelősségbiztosítása | I90: =IF(H90=0,0,IF(I77=0,0,IF(AND(I77>0,H90="kérem"),(I77*0.2),IF(AND(I77>0,H90="nem kérem"),0)))) -> 0 | N90: 2.sz.Záradék /Vandalizmus/
A91: Gépjárműszerviz üzemeltetői felelősségbiztosítás | I91: =IF(H91=0,0,IF(I77=0,0,IF(AND(I77>0,H91="kérem"),(I77*0.6),IF(AND(I77>0,H91="nem kérem"),0)))) -> 0 | N91: 3.sz.Záradék /Alvállalkozói/ | P91: sd
A92: Szolgáltatói fel.bizt. kiterjesztése alvállalkozókra | I92: =IF(H92=0,0,IF(OR($I$77=0,$I$81=0,H92="Nem köthető"),0,IF(AND($I$77>0,H92="kérem"),($I$77*0.2),IF(AND($I$77>0,H92="nem kérem"),0)))) -> 0
A93: Szolgáltatói fel.bizt. kiterj. a szolg. tárgyában okozott károkra | I93: =IF(H93=0,0,IF(OR($I$77=0,$I$81=0,H93="Nem köthető"),0,IF(AND($I$77>0,H93="kérem"),($I$77*0.4),IF(AND($I$77>0,H93="nem kérem"),0)))) -> 0
A94: Szolgáltatói fel.bizt. kiterjesztése építés-szerelési tevékenységre | I94: =IF(H94=0,0,IF(OR($I$77=0,$I$81=0,H94="Nem köthető"),0,IF(AND($I$77>0,H94="kérem"),($I$77*0.1),IF(AND($I$77>0,H94="nem kérem"),0)))) -> 0
A95: Felelősségbiztosítás összesen | I95: =IF(H45=0,0,IF(AND(C74=0,A77=0),0,SUM(I79:K94,I77))) ->  | N95: 4.sz.Záradék /Szolgált. tárgya/
N96: 5.sz.Záradék /Építőipari tev./
A97: Vagyonbiztosítás összesen | H97: =H45 ->  | N97: =H27 -> 
A98: Épületbiztosítás | H98: =H27 ->  | N98: =H42 -> 
A99: Gép, berendezés biztosítás | H99: =H42 ->  | M99: =COUNTIF(N97:N102,">0") -> 0 | N99: =H55 -> 
A100: Üzemszünetbiztosítás | H100: =H55 ->  | N100: =H62 -> 
A101: Géptörés biztosítás | H101: =H62 ->  | N101: =H70 -> 
A102: Elektromos gépek, berendezések biztosítása | H102: =H70 ->  | N102: =I95 -> 
A103: Felelősségbiztosítás | H103: =I95 -> 
A105: Éves díj | J105: =IF(B105>0,0,IF(B105=0,SUM(I95,H70,H62,H55,H49,H45))) ->  | N105: 5.sz.Záradék /Építőipari tev./
A106: Pótdíjak | H106: 0 | J106: =IF(H106>0,1+H106,1) -> 1
A107: Engedmények | C107: Csomag engedmény | J107: =IF(M99<4,0,IF(M99=4,0.95,IF(OR(M99=5,M99=6),0.9))) -> 0
A108: =IF(N108=0,0,IF(AND(N108=1,I108=0),0,IF(AND(N108=1,I108>0),"Törölje a speciális engedmény mértékét!",IF(AND(N108=2,I108=0),"Adja meg a speciális engedmény mértékét!",IF(AND(N108=2,I108>0),0))))) -> 0 | C108: Üzleti engedmények | J108: =IF(J105=0,0,M108) ->  | M108: =IF(H108=0,0,IF(H108="speciális",(100-I108)/100,IF(H108="üzleti",0.8))) -> 0 | N108: =IF(H108=0,0,IF(H108="üzleti",1,IF(H108="speciális",2))) -> 0
C109: Tartamengedmény | J109: =IF(OR(H109=0,H109="nem"),0,IF(H109="igen",0.9,0)) -> 0 | N109: =IF(AND(J107=0,J108=0,J109=0,J110=0),0,IF(AND(J107>0,J108>0,J109>0,J110>0),(J107*J108*J109*J110),IF(AND(J107>0,J108=0,J109=0,J110=0),J107,IF(AND(J107>0,J108>0,J109=0,J110=0),(J107*J108),IF(AND(J107>0,J108>0,J109>0,J110=0),(J107*J108*J109),IF(AND(J107=0,J108>0,J109>0,J110>0),(J108*J109*J110),IF(AND(J107=0,J108=0,J109>0,J110>0),(J109*J110),0))))))) ->  | P109: =IF(H112>0,1,0) -> 0 | R109: =P109 -> 0
C110: Egyedi engedmény | M110: =IF(H112>0,1,0) -> 0 | N110: =IF(AND(J107=0,J108=0,J109=0,J110>0),J110,IF(AND(J107=0,J108>0,J109=0,J110=0),J108,IF(AND(J107=0,J108=0,J109>0,J110=0),J109,IF(AND(J107=0,J108>0,J109>0,J110=0),(J108*J109),IF(AND(J107>0,J108=0,J109=0,J110>0),(J107*J110),IF(AND(J107>0,J108=0,J109>0,J110=0),(J107*J109),0)))))) ->  | P110: =Ajánlat1!E28 -> Felmondási jog 3 évre kizárva | R110: =IF(P110="Felmondási jog 3 évre kizárva",1,0) -> 1
A111: Éves díj összesen | J111: =IF(J105=0,0,MAX(15000,IF(N113=0,(J105*J106),IF(N113>0,(J105*N113*J106))))) ->  | M111: =J111/360 ->  | N111: =IF(AND(J107>0,J108=0,J109>0,J110>0),(J107*J109*J110),IF(AND(J107>0,J108>0,J109=0,J110>0),(J107*J108*J110),IF(AND(J107=0,J108>0,J109=0,J110>0),(J108*J110),0))) ->  | R111: =IF(OR(R109>0,R110>0),1,0) -> 1
A112: Lejárat, ha a tartam rövidebb mint 1 év | J112: =IF(OR(H113=0,R109>0,H113="egyszeri"),0,IF(AND(J111>15000,H113="éves"),J111*0.95,IF(AND(J111>15000,H113="féléves"),(J111/2)*0.975,IF(AND(J111>15000,H113="negyedéves"),J111/4,IF(AND(J111=15000,H113="éves"),J111,IF(AND(J111=15000,H113="féléves"),J111/2,IF(AND(J111=15000,H113="negyedéves"),J111/4,))))))) -> 0
A113: Gyakorisági díj | B113: =IF(R109>0,0,IF(AND(R109=0,H113="éves"),"5% engedmény",IF(AND(R109=0,H113="féléves"),"2,5% engedmény",0))) -> 0 | C113: Díjfizetés gyakorisága | J113: =IF(OR(J105=0,R109>0,H113=0,H113="egyszeri"),0,IF(AND(J112<=15000,H113="éves"),15000,IF(AND(J112<=7500,H113="féléves"),7500,IF(AND(J112<=3750,H113="negyedéves"),3750,J112)))) ->  | M113: =IF(H113="negyedéves",J113*4,IF(H113="féléves",J113*2,IF(H113="éves",J113,IF(H113="egyszeri",0)))) -> FALSE | N113: =IF(AND(N109=0,N110=0,N111=0),0,IF(AND(N109>0,N110=0,N111=0),N109,IF(AND(N109=0,N110>0,N111=0),N110,IF(AND(N109=0,N110=0,N111>0),N111)))) -> 
A114: Fizetendő első díj / Tartamdíj | C114: =IF(AND(R109>0,H113="egyszeri"),0,IF(AND(R109>0,M115=1),"A díjfizetés gyakorisága csak egyszeri lehet!",IF(AND(R109>0,H113=0),"A gyakoriság csak egyszeri lehet!",IF(AND(R109=0,H113="egyszeri"),"Kérjük, válasszon más gyakoriságot!",IF(AND(R109=0,H113=0),"Kérjük, válasszon gyakoriságot!",IF(AND(R109=0,M115=1),0)))))) -> Kérjük, válasszon gyakoriságot! | J114: =IF(AND(H112=0,DAY(P232)=1),J113,J115) ->  | M114: =M113/360 -> 0
A115: Fizetendő díj | C115: =IF(DAY(C117)=1,C117,IF(MONTH(C117)=12,DATE(YEAR(C117)+1,1,1),DATE(YEAR(C117),MONTH(C117)+1,1))) -> 2021-04-01 | E115: =IF(OR(H112="",G115>364),DATEVALUE(CONCATENATE(YEAR(C115),".",MONTH(C115)+1,".01")),"") -> 2021-05-01 | G115: =IF(OR(MOD(YEAR(C117)-2000,4)=0,H112=""),365,IF(H112-C117=364,365,H112-C117+1)) -> 365 | H115: =SUM(C115-C117) -> 1 | I115: =H112-C117 -> -44286 | J115: =IF(AND(R109>0,I115<90),((I115*M111)+(M111*30*3)),IF(AND(R109>0,I115>90,I115<240),((I115*M111)+(M111*30)),IF(AND(R109>0,I115>240),J111,((M114*P124)+J113)))) ->  | M115: =IF(OR(H113="éves",H113="féléves",H113="negyedéves"),1,0) -> 0
A116: Fizetendő éves díj | J116: =IF(J113=0,0,IF(H113="negyedéves",(J113*4),IF(H113="féléves",(J113*2),IF(H113="éves",J113,IF(H113="egyszeri",0))))) -> 
A117: Kelt. | B117: =Ajánlat1!C90 -> 0 | C117: =Dátum -> 2021-03-31
N118: =IF(B106=0,0,VALUE(LEFT(B106,1))) -> 0 | O118: =IF(N118=0,1,IF(N118=1,1.03)) -> 1
N119: =IF(C106=0,0,VALUE(LEFT(C106,1))) -> 0 | O119: =IF(N119=0,1,IF(N119=2,1.03)) -> 1
A120: ="Verzió: "&lejar.verzio -> Verzió: 1.18 | N120: =IF(D106=0,0,VALUE(LEFT(D106,1))) -> 0 | O120: =IF(N120=0,1,IF(N120=3,1.05)) -> 1
A121: UNION-Business Class Érvényes: 2021.06.30-ig | N121: =IF(H106=0,0,VALUE(LEFT(H106,1))) -> 0 | O121: =IF(N121=0,1,IF(N121=4,1.05)) -> 1
N122: =IF(I106=0,0,VALUE(LEFT(I106,1))) -> 0 | O122: =IF(N122=0,1,IF(N122=5,1.05)) -> 1
A123: í | O123: =O118*O119*O120*O121*O122 -> 1 | P123: =Dátum+1 -> 2021-04-01
P124: =SUM(1+(30-DAY(P123))) -> 30
B126: igen | H126: speciális
B127: nem | H127: üzleti
A128: =IF(AND(M27=1,M42>1,M55>1),"Az üzemszünet biztosítás csak Small módozat lehet",IF(AND(M27>1,M42=1,M55>1),"Az üzemszünet biztosítás csak Small lehet",IF(AND(M27=1,M42=1,M55=1),0,IF(AND(M27>1,M42>1,M55>1),0,IF(AND(M27=1,M42=1,M55>0),"Az üzemszünet biztosítás csak Small módozat lehet",IF(OR(M27>1,M42>1,M55=1),0,IF(AND(M27>1,M42>1,M55=1),0))))))) -> 0
A134: Lejárati Dátum | B134: verzió | C134: Lejárati Jelszó
A135: 2021-06-30 | B135: 1.18 | C135: Bukta
A143: 0 | C143: 3 nap | E143: 10%, de minimum 25.000 Ft | H143: 1 | I143: 1 | K143: 1
A144: 5000 | C144: 5 nap | E144: 10%, de minimum 50.000 Ft | H144: 2 | I144: 0.95 | K144: 0.95
A145: 10000 | C145: 7 nap | E145: 10%, de minimum 100.000 Ft | H145: 3 | I145: 0.85 | K145: 0.85
A146: 25000 | E146: 10%, de minimum 200.000 Ft | H146: 4 | I146: 0.7 | K146: 0.7
A147: 50000 | E147: 20%, de minimum 25.000 Ft | H147: 5 | I147: 0.92 | K147: 0.92
A148: 100000 | E148: 20%, de minimum 50.000 Ft | H148: 6 | I148: 0.87 | K148: 0.87
A149: 200000 | E149: 20%, de minimum 100.000 Ft | H149: 7 | I149: 0.78 | K149: 0.78
E150: 20%, de minimum 200.000 Ft | H150: 8 | I150: 0.64 | K150: 0.64
A151: Alap | B151: Alap
A152: Teljes | D152: 0-2 | F152: kérem | H152: éves | J152: Nem köthető
A153: Extra | D153: 2,01-3 | F153: nem kérem | H153: féléves
A154: All Risks | D154: 3,01-5 | H154: negyedéves
D155: 5,01- | F155: üzleti | H155: egyszeri
F156: üzletpolitikai | H156: igen
A157: 3 hónap, max. 25 MFt | H157: nem
A158: 6 hónap, max. 50 MFt | C158: 5 MFt/kár; 15 MFt/év | F158: 0-2
A159: 12 hónap, max 100 MFt | C159: 15 MFt/kár; 45 MFt/év | F159: 2,01-5
A160: 12 hónap, max 150 MFt | C160: 50 MFt/kár; 100 MFt/év | F160: 5,01-10
F161: 10,01-15
F162: 15 felett
A166: Alap csomag: 3 hó, max. 25 M Ft
A167: Bővített csomag: 6 hó, max. 50 M Ft
A168: Bővített csomag: 12 hó, max. 100 M Ft
A169: Bővített csomag: 12 hó, max. 150 M Ft
A190: 0
A191: 5000 | B191: Normál üveg | H191: 50
A192: 10000 | B192: Normál és speciális üveg | H192: 100
A193: 25000 | H193: 150
A194: 50000 | H194: 200
A195: 100000 | H195: 250
A196: 200000 | H196: 300
A197: Alap | H197: 350
A198: Teljes | H198: 400
A199: Extra | H199: 450
H200: 500
H201: 600
A202: Alap csomag betöréses lopással | H202: 700
A203: Alap csomag betöréses lopás nélkül | H203: 800
A204: Teljes csomag betöréses lopással | H204: 900
A205: Teljes csomag betöréses lopás nélkül | H205: 1000
A206: Extra csomag betöréses lopással
A207: Extra csomag betöréses lopás nélkül
A208: All Risks csomag betöréses lopással
A209: All Risks csomag betöréses lopás nélkül
P232: =Ajánlat1!J30 -> 2022-04-01
A242: 0-2 | B242: 0-2
A243: 2,01-5 | B243: 2,01-3
A244: 5,01-10 | B244: 3,01-5
A245: 10,01-15 | B245: 5,01-
A246: 15 felett
Q560: =Munka3!A2 -> 1011 Húsfeldolgozás, -tartósítás
Q561: =Munka3!A3 -> 1012 Baromfihús feldolgozása, tartósítása
Q562: =Munka3!A4 -> 1013 Hús-, baromfihús-készítmény gyártása
Q563: =Munka3!A5 -> 1020 Halfeldolgozás, -tartósítás
Q564: =Munka3!A6 -> 1031 Burgonyafeldolgozás, -tartósítás
Q565: =Munka3!A7 -> 1032 Gyümölcs-, zöldséglé gyártása
Q566: =Munka3!A8 -> 1039 Egyéb gyümölcs-, zöldségfeldolgozás, -tartósítás
Q567: =Munka3!A9 -> 1041 Olaj gyártása
Q568: =Munka3!A10 -> 1042 Margarin gyártása
Q569: =Munka3!A11 -> 1051 Tejtermék gyártása
Q570: =Munka3!A12 -> 1052 Jégkrém gyártása
Q571: =Munka3!A13 -> 1071 Kenyér; friss pékáru gyártása
Q572: =Munka3!A14 -> 1072 Tartósított lisztes áru gyártása
Q573: =Munka3!A15 -> 1073 Tésztafélék gyártása
Q574: =Munka3!A16 -> 1081 Cukorgyártás
Q575: =Munka3!A17 -> 1082 Édesség gyártása
Q576: =Munka3!A18 -> 1083 Tea, kávé feldolgozása
Q577: =Munka3!A19 -> 1084 Fűszer, ételízesítő gyártása
Q578: =Munka3!A20 -> 1085 Készétel gyártása
Q579: =Munka3!A21 -> 1086 Homogenizált, diétás étel gyártása
Q580: =Munka3!A22 -> 1089 M.n.s. egyéb élelmiszer gyártása
Q581: =Munka3!A23 -> 1091 Haszonállat-eledel gyártása
Q582: =Munka3!A24 -> 1092 Hobbiállat-eledel gyártása
Q583: =Munka3!A25 -> 1101 Desztillált szeszes ital gyártása
Q584: =Munka3!A26 -> 1102 Szőlőbor termelése
Q585: =Munka3!A27 -> 1103 Gyümölcsbor termelése
Q586: =Munka3!A28 -> 1104 Egyéb nem desztillált, erjesztett ital gyártása
Q587: =Munka3!A29 -> 1105 Sörgyártás
Q588: =Munka3!A30 -> 1107 Üdítőital, ásványvíz gyártása
Q589: =Munka3!A31 -> 1411 Bőrruházat gyártása
Q590: =Munka3!A32 -> 1412 Munkaruházat gyártása
Q591: =Munka3!A33 -> 1413 Felsőruházat gyártása (kivéve: munkaruházat)
Q592: =Munka3!A34 -> 1414 Alsóruházat gyártása
Q593: =Munka3!A35 -> 1419 Egyéb ruházat, kiegészítők gyártása
Q594: =Munka3!A36 -> 1431 Kötött, hurkolt harisnyafélék gyártása
Q595: =Munka3!A37 -> 1439 Egyéb kötött, hurkolt ruházati termék gyártása
Q596: =Munka3!A38 -> 1520 Lábbeligyártás
Q597: =Munka3!A39 -> 1610 Fűrészárugyártás
Q598: =Munka3!A40 -> 1621 Falemezgyártás
Q599: =Munka3!A41 -> 1622 Parkettagyártás
Q600: =Munka3!A42 -> 1623 Épületasztalos-ipari termék gyártása
Q601: =Munka3!A43 -> 1624 Tároló fatermék gyártása
Q602: =Munka3!A44 -> 1629 Egyéb fa-, parafatermék, fonottáru gyártása
Q603: =Munka3!A45 -> 1711 Papíripari rostanyag gyártása
... 380 more rows

Sheet Munka4 (hidden)
A2: Épület DÍJTÉTELEK ‰-ben
A3: Kockázati osztály | B3: Tűz+elemi kár+ vezetékes víz+üveg | E3: Ingóság | I3: DÍJTÉTELEK ‰-ben | L3: DÍJTÉTELEK ‰-ben | R3: DÍJTÉTELEK ‰-ben | X3: DÍJTÉTELEK ‰-ben | AD3: ÜVEG KIEGÉSZÍTŐ
A4: 1 | B4: 0.8 | E4: Kockázati osztály | F4: Tűz+elemi kár+ vezetékes víz+üveg | G4: Betöréses lopás rablás | I4: Kockázati osztály | J4: Üzemszünet | L4: Kockázati osztály | M4: Géptörés | R4: Kockázati osztály | S4: ELBER | X4: Kockázati osztály | Y4: Felelősség | AD4: Éves limit eFt | AE4: Normál üveg díj Ft | AF4: Normál és speciális üveg díj Ft
A5: 2 | B5: 0.91 | E5: 1 | F5: 1.12 | G5: 1.5 | I5: 1 | J5: 0.53 | L5: 1 | M5: 3.71 | R5: 1 | S5: 3.41 | X5: 1 | Y5: 0.24 | AD5: 50 | AE5: 6360 | AF5: 9540
A6: 3 | B6: 1.07 | E6: 2 | F6: 1.27 | G6: 1.92 | I6: 2 | J6: 0.63 | L6: 2 | M6: 4.61 | R6: 2 | S6: 4.24 | X6: 2 | Y6: 0.3 | AD6: 100 | AE6: 12720 | AF6: 19080
A7: 4 | B7: 1.19 | E7: 3 | F7: 1.46 | G7: 2.47 | I7: 3 | J7: 0.77 | L7: 3 | M7: 6.39 | R7: 3 | S7: 5.88 | X7: 3 | Y7: 0.33 | AD7: 150 | AE7: 18285 | AF7: 27425
A8: 5 | B8: 1.51 | E8: 4 | F8: 1.59 | G8: 3.02 | I8: 4 | J8: 0.89 | L8: 4 | M8: 9.88 | R8: 4 | S8: 9.09 | X8: 4 | Y8: 0.45 | AD8: 200 | AE8: 24380 | AF8: 34130
A9: 6 | B9: 1.99 | E9: 5 | F9: 1.98 | G9: 4.21 | I9: 5 | J9: 1.18 | L9: 5 | M9: 17.03 | R9: 5 | S9: 15.67 | X9: 5 | Y9: 0.84 | AD9: 250 | AE9: 30475 | AF9: 42665
A10: 7 | B10: 2.62 | E10: 6 | F10: 2.56 | G10: nincs | I10: 6 | J10: 1.61 | L10: 6 | R10: 6 | AD10: 300 | AE10: 34980 | AF10: 48970
A11: 8 | B11: 3.18 | E11: 7 | F11: 3.32 | G11: nincs | I11: 7 | J11: 2.21 | L11: 7 | R11: 7 | X11: Módozati szorzók | AD11: 350 | AE11: 40810 | AF11: 55095
A12: 9 | B12: 3.98 | E12: 8 | F12: 3.96 | G12: nincs | I12: 8 | J12: 2.79 | L12: 8 | R12: 8 | X12: Alap | Y12: 0.75 | AD12: 400 | AE12: 44520 | AF12: 60100
A13: 10 | B13: 5.57 | E13: 9 | F13: 4.86 | G13: nincs | I13: 9 | J13: 3.62 | L13: 9 | R13: 9 | X13: Teljes | Y13: 1 | AD13: 450 | AE13: 50085 | AF13: 67615
E14: 10 | F14: 6.68 | G14: nincs | I14: 10 | J14: 5.27 | L14: 10 | R14: 10 | X14: Extra | Y14: 1.3 | AD14: 500 | AE14: 53000 | AF14: 68900
A15: Épület Módozati szorzók | AD15: 600 | AE15: 63600 | AF15: 82680
A16: Alap | B16: 0.6 | E16: Módozati szorzók | F16: Bet. Loppal | G16: Bet nélkül | I16: Módozati szorzók | R16: Volumenszorzók Bizosítási összeg szerint ELBER | AD16: 700 | AE16: 70490 | AF16: 91635
A17: Teljes | B17: 0.8 | E17: Alap | F17: 0.6 | G17: 0.6 | I17: Alap | J17: 0.7 | L17: Volumenszorzók Bizosítási összeg szerint Géptörés | R17: 0 | S17: 10000000 | T17: 1.6 | X17: Önrészesedés szorzó | AD17: 800 | AE17: 80560 | AF17: 100700
A18: Extra | B18: 1 | E18: Teljes | F18: 0.8 | G18: 0.8 | I18: Teljes | J18: 1 | L18: 0 | M18: 10000000 | N18: 1.6 | R18: 10000001 | S18: 25000000 | T18: 1.5 | Y18: 25000 | Z18: 50000 | AA18: 100000 | AB18: 200000 | AD18: 900 | AE18: 85860 | AF18: 107325
A19: All Risks | B19: 1.1 | E19: Extra | F19: 1 | G19: 1 | I19: Extra | J19: 1.4 | L19: 10000001 | M19: 25000000 | N19: 1.5 | R19: 25000001 | S19: 50000000 | T19: 1.3 | X19: 0.1 | Y19: 1 | Z19: 0.95 | AA19: 0.85 | AB19: 0.7 | AD19: 1000 | AE19: 95400 | AF19: 119250
A20: Épület Volumenszorzók Bizosítási összeg szerint TEKVÜ | E20: All Risks | F20: 1.1 | G20: 1.1 | I20: All Risks | J20: 1.6 | L20: 25000001 | M20: 50000000 | N20: 1.3 | R20: 50000001 | S20: 100000000 | T20: 1 | X20: 0.2 | Y20: 0.92 | Z20: 0.87 | AA20: 0.78 | AB20: 0.64
A21: 0 | B21: 10000000 | C21: 2 | E21: Volumenszorzók Bizosítási összeg szerint TEKVÜ | H21: 50 felett | I21: Volumenszorzók Bizosítási összeg szerint TEKVÜ | L21: 50000001 | M21: 100000000 | N21: 1 | R21: 100000001 | S21: 200000000 | T21: 0.85
A22: 10000001 | B22: 25000000 | C22: 1.6 | E22: 0 | F22: 10000000 | G22: 2 | I22: 0 | J22: 10000000 | K22: 2 | L22: 100000001 | M22: 200000000 | N22: 0.85 | R22: 200000001 | S22: 500000000 | T22: 0.65 | X22: Pótdíjak
A23: 25000001 | B23: 50000000 | C23: 1.3 | E23: 10000001 | F23: 25000000 | G23: 1.6 | I23: 10000001 | J23: 25000000 | K23: 1.6 | L23: 200000001 | M23: 500000000 | N23: 0.65 | X23: Bérlői | Y23: 0.3
A24: 50000001 | B24: 100000000 | C24: 1 | E24: 25000001 | F24: 50000000 | G24: 1.3 | I24: 25000001 | J24: 50000000 | K24: 1.3 | X24: Bérbeadói | Y24: 0.3
A25: 100000001 | B25: 200000000 | C25: 0.8 | E25: 50000001 | F25: 100000000 | G25: 1 | H25: 0.4 | I25: 50000001 | J25: 100000000 | K25: 1 | R25: Átlagéletkor engedmény | X25: Kiterjesztett termék | Y25: 1
A26: 200000001 | B26: 500000000 | C26: 0.55 | E26: 100000001 | F26: 200000000 | G26: 0.8 | H26: 0.32 | I26: 100000001 | J26: 200000000 | K26: 0.8 | R26: 0-2 | S26: 0.65 | X26: Szálloda 1. (S,M,L) | Y26: 0.3
E27: 200000001 | F27: 500000000 | G27: 0.55 | H27: 0.22 | I27: 200000001 | J27: 500000000 | K27: 0.55 | L27: Átlagéletkor engedmény | R27: 2,01-3 | S27: 0.8 | X27: szálloda 2. (M,L) | Y27: 0.8
L28: 0-2 | M28: 0.5 | R28: 3,01-5 | S28: 0.9 | X28: Környezetszennyezés | Y28: 0.5
A29: Épület Önrészesedés szorzó | L29: 2,01-5 | M29: 0.65 | R29: 5,01- | S29: 1 | X29: EU kiterjesztés | Y29: 0.5
A30: 0 | B30: 1.45 | E30: Volumenszorzók Betlop 50 M Ft-ig) | I30: Önrészesedés szorzó | L30: 5,01-10 | M30: 0.75 | X30: Rakodás (M,L) | Y30: 0.4
A31: 5000 | B31: 1.25 | E31: Bizt. Öszeg ( eFt. ) | F31: Volumenszorzó | I31: 3 nap | J31: 1 | L31: 10,01-15 | M31: 0.9 | X31: Termék | Y31: 0.8
A32: 10000 | B32: 1.12 | E32: 250000 | F32: =4.1646*(E32/1000)^-0.348 -> 0.6096634674 | I32: 5 nap | J32: 0.9 | L32: 15 felett | M32: 1 | R32: Önrészesedés szorzó | X32: Üzemi | Y32: 0.6
A33: 25000 | B33: 1 | I33: 7 nap | J33: 0.8 | S33: 25000 | T33: 50000 | U33: 100000 | V33: 200000 | X33: Szolgáltatói | Y33: 0.8
A34: 50000 | B34: 0.92 | E34: Önrészesedés szorzó | L34: Önrészesedés szorzó | R34: 0.1 | S34: 1 | T34: 0.95 | U34: 0.85 | V34: 0.7 | X34: Oktatói | Y34: 0.2
A35: 100000 | B35: 0.82 | E35: 0 | F35: 1.45 | M35: 25000 | N35: 50000 | O35: 100000 | P35: 200000 | R35: 0.2 | S35: 0.92 | T35: 0.87 | U35: 0.78 | V35: 0.64 | X35: Szerviz | Y35: 0.6
A36: 200000 | B36: 0.7 | E36: 5000 | F36: 1.25 | L36: 0.1 | M36: 1 | N36: 0.95 | O36: 0.85 | P36: 0.7 | X36: Alvállalkozói kiterjesztés | Y36: 0.2
E37: 10000 | F37: 1.12 | L37: 0.2 | M37: 0.92 | N37: 0.87 | O37: 0.78 | P37: 0.64 | X37: Szolgáltatás tárgyában okozott károk | Y37: 0.4
A38: Volumenszorzók TEKV | E38: 25000 | F38: 1 | I38: Volumenszorzók TEKV | X38: Építés-Szerelés | Y38: 0.1
A39: Bizt. Összeg ( eFt. ) | B39: Volumenszorzó | E39: 50000 | F39: 0.92 | I39: Bizt. Összeg ( eFt. ) | J39: Volumenszorzó
A40: 250000 | B40: =4.1646*(A40/1000)^-0.348 -> 0.6096634674 | E40: 100000 | F40: 0.82 | I40: 250000 | J40: =4.1646*(I40/1000)^-0.348 -> 0.6096634674
E41: 200000 | F41: 0.7

Sheet ÉpületIngóság (hidden)
K2: UNION-Business Class
K3: Biztosítási ajánlat
A5: Vagyonbiztosítási adatközlő
A7: Sorsz. | B7: Telephely címe | D7: Telephelyen folytatott tevékenységek | E7: BIZTOSÍTÁSI ÖSSZEG eFt | P7: Összesen eFt
E8: Épületek/ Építmények | I8: Gép berendezés | K8: Egyéb nevesített vagyontárgy | M8: Készlet | O8: Készpénz
E9: Saját | G9: Idegen | I9: Saját | J9: Idegen | K9: Saját | L9: Idegen | M9: Saját | N9: Idegen
A10: =IF(B10>0,1,0) -> 1 | B10: gfshgf | D10: gfh | E10: 5000 | I10: 2000 | P10: =SUM(E10:O10) -> 7000 | T10: =SUM(E10:H10) -> 5000 | U10: =SUM(I10:O10) -> 2000 | W10: =SUM(I10:J10) -> 2000
A11: =IF(B11>0,(A10+1),0) -> 0 | P11: =SUM(E11:O11) -> 0 | T11: =SUM(E11:H11) -> 0 | U11: =SUM(I11:O11) -> 0 | W11: =SUM(I11:J11) -> 0
A12: =IF(B12>0,(A11+1),0) -> 0 | P12: 0 | T12: 0 | U12: 0 | W12: 0
A13: =IF(B13>0,(A12+1),0) -> 0 | P13: 0 | T13: 0 | U13: 0 | W13: 0
A14: 0 | P14: 0 | T14: 0 | U14: 0 | W14: 0
A15: 0 | P15: 0 | T15: 0 | U15: 0 | W15: 0
A16: 0 | P16: 0 | T16: 0 | U16: 0 | W16: 0
A17: 0 | P17: 0 | T17: 0 | U17: 0 | W17: 0
A18: 0 | P18: 0 | T18: 0 | U18: 0 | W18: 0
A19: 0 | P19: 0 | T19: 0 | U19: 0 | W19: 0
A20: 0 | P20: 0 | T20: 0 | U20: 0 | W20: 0
A21: 0 | P21: 0 | T21: 0 | U21: 0 | W21: 0
A22: 0 | P22: 0 | T22: 0 | U22: 0 | W22: 0
A23: =IF(B23>0,(#REF!+1),0) -> 0 | P23: 0 | T23: 0 | U23: 0 | W23: 0
A24: 0 | P24: 0 | T24: 0 | U24: 0 | W24: 0
A25: 0 | P25: 0 | T25: 0 | U25: 0 | W25: 0
D26: Összesen | E26: =SUM(E10:F25) -> 5000 | G26: =SUM(G10:H25) -> 0 | I26: =SUM(I10:I25) -> 2000 | J26: =SUM(J10:J25) -> 0 | K26: 0 | L26: 0 | M26: 0 | N26: 0 | O26: 0 | P26: =SUM(P10:R25) -> 7000 | T26: =SUM(T10:T25) -> 5000 | U26: =SUM(U10:U25) -> 2000 | W26: =SUM(W10:W25) -> 2000
A28: Dátum | B28: =Ajánlat1!C90 -> 0 | D28: =Ajánlat1!E90 -> 2021-03-31
H31: üzletkötő | N31: szerződő/biztosított
A32: =Ajánlat1!B94 -> Verzió: 0.85
A33: =Ajánlat1!B95 -> UNION-Business Class Érvényes: 2009.06.24.-től
G38: =SUM(E26,G26) -> 5000

Sheet Gép,berendezés (hidden)
J2: UNION - BC
J3: Biztosítási ajánlat
A5: Vagyonbiztosítási adatközlő gép, berendezés, készlet biztosításhoz
A7: Sor-szám | B7: Telephely címe | D7: Telephelyen folytatott tevékenységek | E7: Gép berendezés eFt | G7: Egyéb nevesített eFt | I7: Készlet eFt | K7: Készpénz eFt | L7: Összesen eFt
E8: Saját | F8: Idegen | G8: Saját | H8: Idegen | I8: Saját | J8: Idegen
A9: =IF(B9>0,1,0) -> 0 | L9: =SUM(E9:K9) -> 0
A10: =IF(B10>0,(A9+1),0) -> 0 | L10: =SUM(E10:K10) -> 0
A11: =IF(B11>0,(A10+1),0) -> 0 | L11: 0
A12: 0 | L12: 0
A13: 0 | L13: 0
A14: 0 | L14: 0
A15: 0 | L15: 0
A16: 0 | L16: 0
A17: 0 | L17: 0
A18: 0 | L18: 0
A19: 0 | L19: 0
A20: 0 | L20: 0
A21: 0 | L21: 0
A22: 0 | L22: 0
A23: 0 | L23: 0
A24: 0 | L24: 0
A25: 0 | L25: 0
A26: 0 | L26: 0
A27: 0 | L27: 0
A28: 0 | L28: 0
A29: 0 | L29: 0
A30: 0 | L30: 0
A31: 0 | L31: 0
A32: 0 | L32: 0
D33: Összesen | E33: =SUM(E9:E32) -> 0 | F33: =SUM(F9:F32) -> 0 | G33: =SUM(G9:G32) -> 0 | H33: =SUM(H9:H32) -> 0 | I33: 0 | J33: 0 | K33: 0 | L33: 0 | N33: 0
A35: Dátum | B35: =Ajánlat1!C92 -> 0 | D35: =TODAY() -> 2021-03-31
B38: üzletkötő | H38: szerződő/biztosított

Sheet Géplista (hidden)
F2: UNION - BC
F3: Biztosítási ajánlat
A5: Géplista géptörés biztosításhoz
A7: Sor szám | B7: Gép neve | C7: Típusa | D7: Gyári száma | E7: Gyártási éve | F7: Értékelés módja | G7: Gép értéke eFt | I7: Gép kora | L7: =COUNTIF(E9:E35,">0") -> 0
G8: saját | H8: idegen
A9: =IF(B9>0,1,0) -> 0 | I9: =IF(E9=0,0,IF(E9=$K$10,0.25,SUM($K$10-E9))) -> 0 | J9: =I9*(G9+H9) -> 0 | K9: =TODAY() -> 2021-03-31 | L9: =COUNTIF(O9:O35,">0") -> 0 | M9: =IF(L9>L7,"Kitöltötte a gép értékét, de nem adta meg a gyártási évet",IF(L9=L7,0,IF(L9<L7,"Kitöltötte gyártási évet, de nem adta meg a gép értékét"))) -> 0 | O9: =SUM(G9:H9) -> 0
A10: =IF(B10>0,(A9+1),0) -> 0 | I10: =IF(E10=0,0,IF(E10=$K$10,0.25,SUM($K$10-E10))) -> 0 | J10: =I10*(G10+H10) -> 0 | K10: =YEAR(K9) -> 2021 | O10: =SUM(G10:H10) -> 0
A11: =IF(B11>0,(A10+1),0) -> 0 | I11: 0 | J11: 0 | O11: 0
A12: 0 | I12: 0 | J12: 0 | M12: Új érték | O12: 0
A13: 0 | I13: 0 | J13: 0 | M13: Avult érték | O13: 0
A14: 0 | I14: 0 | J14: 0 | O14: 0
A15: 0 | I15: 0 | J15: 0 | O15: 0
A16: 0 | I16: 0 | J16: 0 | O16: 0
A17: 0 | I17: 0 | J17: 0 | O17: 0
A18: 0 | I18: 0 | J18: 0 | O18: 0
A19: 0 | I19: 0 | J19: 0 | O19: 0
A20: 0 | I20: 0 | J20: 0 | O20: 0
A21: 0 | I21: 0 | J21: 0 | O21: 0
A22: 0 | I22: 0 | J22: 0 | O22: 0
A23: 0 | I23: 0 | J23: 0 | O23: 0
A24: 0 | I24: 0 | J24: 0 | O24: 0
A25: 0 | I25: 0 | J25: 0 | O25: 0
A26: 0 | I26: 0 | J26: 0 | O26: 0
A27: 0 | I27: 0 | J27: 0 | O27: 0
A28: 0 | I28: 0 | J28: 0 | O28: 0
A29: 0 | I29: 0 | J29: 0 | O29: 0
A30: 0 | I30: 0 | J30: 0 | O30: 0
A31: 0 | I31: 0 | J31: 0 | O31: 0
A32: 0 | I32: 0 | J32: 0 | O32: 0
A33: 0 | I33: 0 | J33: 0 | O33: 0
A34: 0 | I34: 0 | J34: 0 | O34: 0
A35: 0 | I35: 0 | J35: 0 | O35: 0
F36: Összesen | G36: =SUM(G9:G35) -> 0 | H36: =SUM(H9:H35) -> 0 | J36: =SUM(J9:J35) -> 0 | K36: =SUM(G36:H36) -> 0 | O36: =SUM(O9:O35) -> 0
D37: =M9 -> 0 | I37: =IF(OR(L9>L7,K36=0),"15 felett",J36/K36) -> 15 felett | J37: Átlagéletkor
A38: Dátum | B38: =Ajánlat1!C90 -> 0 | C38: =Dátum -> 2021-03-31
B41: üzletkötő | E41: szerződő/biztosított

Sheet GéptörésELBER (hidden)
E2: UNION-Business Class
E3: Biztosítási ajánlat
A5: Elektromos berendezések biztosítása
A7: Sor szám | B7: Számítógépek | E7: Átlagélet-kora | F7: Értékelés módja | G7: Biztosítási összeg eFt | I7: Gép kora | L7: =COUNTIF(E9:E22,">0") -> 0
G8: saját | H8: idegen
A9: 0 | B9: Számítógépek, monitorok, központi egységek, terminálok, perifériák, lap-topok, adathordozók | I9: =IF(E9=0,0,E9) -> 0 | J9: =I9*(G9+H9) -> 0 | K9: =TODAY() -> 2021-03-31 | L9: =COUNTIF(O9:O22,">0") -> 0 | M9: =IF(L9>L5,"Kitöltötte a gép értékét, de nem adta meg a gyártási évet",IF(L9=L5,0,IF(L9<L5,"Kitöltötte gyártási évet, de nem adta meg a gép értékét"))) -> 0 | O9: =SUM(G9:H9) -> 0
A10: Sor szám | B10: Számítógép vezérlésű elektromos berendezések neve | C10: Típusa | D10: Gyári száma | E10: Gyártási éve | F10: Értékelés módja | G10: Biztosítási összeg eFt | I10: Gép kora | K10: =YEAR(K9) -> 2021 | L10: =COUNTIF(E9:E22,">0") -> 0
G11: saját | H11: idegen
A12: =IF(B12>0,1,0) -> 0 | I12: =IF(E12=0,0,IF(E12=$K$13,0.25,SUM($K$13-E12))) -> 0 | J12: =I12*(G12+H12) -> 0 | K12: =TODAY() -> 2021-03-31 | L12: =COUNTIF(O9:O22,">0") -> 0 | M12: =IF(L12>L7,"Kitöltötte a gép értékét, de nem adta meg a gyártási évet",IF(L12=L7,0,IF(L12<L7,"Kitöltötte gyártási évet, de nem adta meg a gép értékét"))) -> 0 | O12: =SUM(G12:H12) -> 0
A13: =IF(B13>0,(A12+1),0) -> 0 | I13: =IF(E13=0,0,IF(E13=$K$13,0.25,SUM($K$13-E13))) -> 0 | J13: =I13*(G13+H13) -> 0 | K13: =YEAR(K12) -> 2021 | O13: =SUM(G13:H13) -> 0
A14: =IF(B14>0,(A13+1),0) -> 0 | I14: 0 | J14: 0 | O14: 0
A15: 0 | I15: 0 | J15: 0 | M15: Új érték | O15: 0
A16: 0 | I16: 0 | J16: 0 | M16: Avult érték | O16: 0
A17: 0 | I17: 0 | J17: 0 | O17: 0
A18: 0 | I18: 0 | J18: 0 | O18: 0
A19: 0 | I19: 0 | J19: 0 | O19: 0
A20: 0 | I20: 0 | J20: 0 | O20: 0
A21: 0 | I21: 0 | J21: 0 | O21: 0
A22: 0 | I22: 0 | J22: 0 | O22: 0
A23: Számítógépek és számítógép vezérlésű elektromos berendezések összesen | G23: =SUM(G9,G12:G22) -> 0 | H23: =SUM(H9,H12:H22) -> 0 | J23: =SUM(J9,J12:J22) -> 0 | O23: 0
I24: =IF(K24>5,"5 felett",K24) -> 5 felett | J24: Átlagéletkor | K24: =IF(OR(L12>L10,J23=0),"5 felett",J23/O24) -> 5 felett | O24: =SUM(O9,O12:O22) -> 0
A25: Géplista géptörés biztosításhoz
A27: Sor szám | B27: Gép neve | C27: Típusa | D27: Gyári száma | E27: Gyártási éve | F27: Értékelés módja | G27: Gép értéke eFt | I27: Gép kora | L27: =COUNTIF(E29:E39,">0") -> 0
G28: saját | H28: idegen
A29: =IF(B29>0,1,0) -> 0 | I29: =IF(E29=0,0,IF(E29=$K$10,0.25,SUM($K$10-E29))) -> 0 | J29: =I29*(G29+H29) -> 0 | K29: =TODAY() -> 2021-03-31 | L29: =COUNTIF(O29:O39,">0") -> 0 | M29: =IF(L29>L27,"Kitöltötte a gép értékét, de nem adta meg a gyártási évet",IF(L29=L27,0,IF(L29<L27,"Kitöltötte gyártási évet, de nem adta meg a gép értékét"))) -> 0 | O29: =SUM(G29:H29) -> 0
A30: =IF(B30>0,(A29+1),0) -> 0 | I30: =IF(E30=0,0,IF(E30=$K$10,0.25,SUM($K$10-E30))) -> 0 | J30: =I30*(G30+H30) -> 0 | K30: =YEAR(K29) -> 2021 | O30: =SUM(G30:H30) -> 0
A31: =IF(B31>0,(A30+1),0) -> 0 | I31: =IF(E31=0,0,IF(E31=$K$10,0.25,SUM($K$10-E31))) -> 0 | J31: =I31*(G31+H31) -> 0 | O31: =SUM(G31:H31) -> 0
A32: =IF(B32>0,(A31+1),0) -> 0 | I32: =IF(E32=0,0,IF(E32=$K$10,0.25,SUM($K$10-E32))) -> 0 | J32: =I32*(G32+H32) -> 0 | M32: Új érték | O32: =SUM(G32:H32) -> 0
A33: =IF(B33>0,(A32+1),0) -> 0 | I33: =IF(E33=0,0,IF(E33=$K$10,0.25,SUM($K$10-E33))) -> 0 | J33: =I33*(G33+H33) -> 0 | M33: Avult érték | O33: =SUM(G33:H33) -> 0
A34: 0 | I34: 0 | J34: 0 | O34: 0
A35: 0 | I35: 0 | J35: 0 | O35: 0
A36: 0 | I36: 0 | J36: 0 | O36: 0
A37: 0 | I37: 0 | J37: 0 | O37: 0
A38: 0 | I38: 0 | J38: 0 | O38: 0
A39: 0 | I39: 0 | J39: 0 | O39: 0
A40: Gépek összesen | G40: =SUM(G29:G39) -> 0 | H40: =SUM(H29:H39) -> 0 | J40: =SUM(J29:J39) -> 0 | O40: =SUM(O29:O39) -> 0
I41: =IF(OR(J40=0,L29>L27),"15 felett",J40/O40) -> 15 felett | J41: Átlagéletkor
A42: Dátum | B42: =Ajánlat1!C90 -> 0 | C42: =Dátum -> 2021-03-31
A45: =Ajánlat1!B94 -> Verzió: 0.85 | C45: üzletkötő | G45: szerződő/biztosított
A46: =Ajánlat1!B95 -> UNION-Business Class Érvényes: 2009.06.24.-től

Sheet Kiegészítők (hidden)
H2: UNION - BC
H3: Biztosítási ajánlat
Q4: Tevkor
A6: Üzemszünetbiztosítás | O6: Épület | P6: Gép, ber
A8: Választott önrész | C8: 3 nap | F8: Kártérítési limit | H8: =IF(A11=0,0,IF(A11="Small",A71,IF(A11="Medium",A72,IF(A11="Large",A73)))) -> 12 hónap, max 100 MFt | M8: =IF(C8="3 nap",1,IF(C8="5 nap",2,IF(C8="7 nap",3))) -> 1 | O8: =IF(Díjszámítás!M27=1,1,IF(Díjszámítás!M27=2,2,IF(Díjszámítás!M27=3,3,0))) -> 3 | P8: =IF(Díjszámítás!M42=1,1,IF(Díjszámítás!M42=2,2,IF(Díjszámítás!M42=3,3,0))) -> 3
A10: Választott módozat | C10: Díjszámítás alapja | E10: Kockázati osztály | F10: Díjtétel | G10: Módozati szorzó | H10: Volumen-szorzó | I10: Önrész szorzó | J10: Éves díj | M10: Mód | N10: Vol | P10: =IF(P8=0,0,IF(OR(O8=1,P8=1),1,IF(P8>1,2))) -> 2
A11: Large | C11: =IF(A11=0,0,Díjszámítás!N27) -> 20000 | E11: =IF(OR(A11=0,C11=0,C8=0),0,IF(Díjszámítás!C12="","",VLOOKUP(Díjszámítás!$C12,Munka3!$A$2:$H$302,5,FALSE))) ->  | F11: =IF(OR(A11=0,C11=0,C8=0),0,IF(E11="vig",0,IF(E11="k",0,INDEX(Üzem,E11)))) ->  | G11: =IF(OR(A11=0,C11=0,C8=0),0,INDEX(Ümód,M11)) -> 1.4 | H11: =IF(OR(A11=0,C11=0,C8=0),0,INDEX(Üvol,O11)) -> 1.6 | I11: =IF(OR(A11=0,C11=0,C8=0),0,INDEX(Üönr,M8,)) -> 1 | J11: =IF(Díjszámítás!J45=0,0,IF(AND(C8=0,A11=0),0,(C11*F11*G11*H11*I11))) -> 0 | M11: =IF(A11="Small",1,IF(A11="Medium",2,IF(A11="Large",3))) -> 3 | N11: =Díjszámítás!N27 -> 20000 | O11: =IF(N11<=10000,1,IF(AND(N11<=25000,N11>10),2,IF(AND(N11<=50000,N11>25),3,IF(AND(N11<=100000,N11>50),4,IF(AND(N11<=200000,N11>100),5,IF(AND(N11<=500000,N11>200),6)))))) -> 2
A12: =IF(E11="vig","Üzemszünet biztosítás csak a vagyonigazgatóság engedélyével köthető",IF(E11="k","Kizárt kockázat",IF(AND(Díjszámítás!J45=0,C8>0,A11>0),"Az üzemszünetbiztosítás csak a vagyonbiztosítás kiegészítőjeként köthető",0))) -> Az üzemszünetbiztosítás csak a vagyonbiztosítás kiegészítőjeként köthető
A13: Géptörés biztosítás
A15: Választott önrész | C15: 10%, de minimum 25.000 Ft | G15: Gépek átlagéletkora | I15: =Géplista!I37 -> 15 felett | M15: =IF(C15="","",VLOOKUP($C15,Összesítő!$E$63:$H$70,4,FALSE)) -> 1 | N15: =IF(I15<=2,1,IF(AND(I15<=5,I15>2),2,IF(AND(I15<=10,I15>5),3,IF(AND(I15<=15,I15>10),4,IF(OR(I15>15,I15="15 felett"),5))))) -> 5
A17: Választott módozat | C17: Biztosítási összeg | E17: Kockázati osztály | F17: Díjtétel | G17: Átlagélet-kor eng. | H17: Volumen-szorzó | I17: Önrész szorzó | J17: Éves díj | M17: =INDEX(Gkor,N15) -> 1 | O17: =IF(C18<=10000,1,IF(AND(C18<=25000,C18>10),2,IF(AND(C18<=50000,C18>25),3,IF(AND(C18<=100000,C18>50),4,IF(AND(C18<=200000,C18>100),5,IF(AND(C18<=500000,C18>200),6)))))) -> 1
A18: Géptörés | C18: =IF(Díjszámítás!J45=0,0,Géplista!O36) -> 0 | E18: =IF(OR(C18=0,C15=0),0,IF(Díjszámítás!C12="","",VLOOKUP(Díjszámítás!$C12,Munka3!$A$2:$H$302,6,FALSE))) -> 0 | F18: =IF(OR(C18=0,C15=0),0,IF(E18="vig",0,IF(E18="k",0,INDEX(Gép,E18)))) -> 0 | G18: =IF(OR(C18=0,C15=0),0,M17) -> 0 | H18: =IF(OR(C18=0,C15=0),0,INDEX(Gvol,O17)) -> 0 | I18: =IF(OR(C15=0,C18=0),0,INDEX(Gönr,M15)) -> 0 | J18: =IF(Díjszámítás!J45=0,0,IF(OR(C15=0,A18=0),0,(C18*F18*G18*H18*I18))) -> 0 | M18: =IF(A18="Small",1,IF(A18="Medium",2,IF(A18="Large",3))) -> FALSE
A19: =IF(E18="vig","Géptörésbiztosítás csak a vagyonigazgatóság engedélyével köthető",IF(E18="k","Kizárt kockázat",IF(AND(Díjszámítás!J45=0,C15>0),"A géptörésbiztosítás csak a vagyonbiztosítás kiegészítőjeként köthető",0))) -> A géptörésbiztosítás csak a vagyonbiztosítás kiegészítőjeként köthető
A21: Elektromos berendezések biztosítása
A23: Választott önrész | C23: 10%, de minimum 25.000 Ft | G23: Gépek átlagéletkora | I23: =GéptörésELBER!I24 -> 5 felett | M23: =IF(C23="","",VLOOKUP($C23,Összesítő!$E$63:$H$70,4,FALSE)) -> 1 | N23: =IF(I23<=2,1,IF(AND(I23<=3,I23>2),2,IF(AND(I23<=5,I23>3),3,IF(OR(I23>5,I23="5 felett"),4)))) -> 4
A25: Választott módozat | C25: Biztosítási összeg | E25: Kockázati osztály | F25: Díjtétel | G25: Átlagélet-kor eng. | H25: Volumen-szorzó | I25: Önrész szorzó | J25: Éves díj | M25: =INDEX(Ekor,N23) -> 1 | O25: =IF(C26<=10000,1,IF(AND(C26<=25000,C26>10),2,IF(AND(C26<=50000,C26>25),3,IF(AND(C26<=100000,C26>50),4,IF(AND(C26<=200000,C26>100),5,IF(AND(C26<=500000,C26>200),6)))))) -> 1
A26: ELBER | C26: =IF(Díjszámítás!J45=0,0,GéptörésELBER!O24) -> 0 | E26: =IF(OR(C26=0,C23=0),0,IF(Díjszámítás!C12="","",VLOOKUP(Díjszámítás!$C12,Munka3!$A$2:$H$302,7,FALSE))) -> 0 | F26: =IF(OR(C26=0,C23=0),0,IF(E26="vig",0,IF(E26="k",0,INDEX(ELBER,E26)))) -> 0 | G26: =IF(OR(C26=0,C23=0),0,M25) -> 0 | H26: =IF(OR(C26=0,C23=0),0,INDEX(Evol,O25)) -> 0 | I26: =IF(OR(C23=0,A26=0),0,INDEX(Eönr,M23)) -> 1 | J26: =IF(Díjszámítás!J45=0,0,IF(AND(C23=0,A26=0),0,(C26*F26*G26*H26*I26))) -> 0
A27: =IF(E26="vig","Elektromos berendezések biztosítása csak a vagyonigazgatóság engedélyével köthető",IF(E26="k","Kizárt kockázat",IF(AND(Díjszámítás!J45=0,C23>0),"Elektromos berendezések biztosítása csak a vagyonbiztosítás kiegészítőjeként köthető",0))) -> Elektromos berendezések biztosítása csak a vagyonbiztosítás kiegészítőjeként köthető
A28: Felelősségbiztosítás
A30: Választott önrész | C30: 20%, de minimum 50.000 Ft | M30: =IF(C30="","",VLOOKUP($C30,Összesítő!$E$63:$H$70,4,FALSE)) -> 6
A32: Választott módozat | C32: Kártérítési limit MFt/kár/év | E32: Kockázati osztály | F32: Díjtétel | G32: Módozati szorzó | I32: Önrész szorzó | J32: Éves díj
A33: Small | C33: =IF(Díjszámítás!J45=0,0,IF(A33=0,0,IF(A33="Small","5/15",IF(A33="Medium","15/45",IF(A33="Large","50/100"))))) -> 0 | E33: =IF(OR(A33=0,C33=0,C30=0),0,IF(Díjszámítás!C12="","",VLOOKUP(Díjszámítás!$C12,Munka3!$A$2:$H$302,3,FALSE))) -> 0 | F33: =IF(OR(A33=0,C33=0,C30=0),0,IF(E33="vig",0,IF(E33="k",0,INDEX(Fel,E33)))) -> 0 | G33: =IF(OR(A33=0,C33=0,C30=0),0,INDEX(Felmód,M33)) -> 0 | I33: =IF(OR(A33=0,C33=0,C30=0),0,INDEX(Felönr,M30)) -> 0 | J33: =F33*G33*I33 -> 0 | M33: =IF(A33="Small",1,IF(A33="Medium",2,IF(A33="Large",3))) -> 1
A34: Kiegészítő felelősségbiztosítások
A35: Bérlői felelősség | J35: =IF(I35=0,0,IF(J33=0,0,IF(AND(J33>0,I35="kérem"),(J33*0.1),IF(AND(J33>0,I35="nem kérem"),0)))) -> 0
A36: Bérbeadói felelősség | J36: =IF(I36=0,0,IF(J33=0,0,IF(AND(J33>0,I36="kérem"),(J33*0.1),IF(AND(J33>0,I36="nem kérem"),0)))) -> 0
A37: Kiterjesztett termék | J37: =IF(I37=0,0,IF(J33=0,0,IF(AND(J33>0,I37="kérem"),(J33*0.35),IF(AND(J33>0,I37="nem kérem"),0)))) -> 0
A38: Szálloda 1 (S;M;L) | J38: =IF(I38=0,0,IF(J33=0,0,IF(AND(J33>0,I38="kérem"),(J33*0.3),IF(AND(J33>0,I38="nem kérem"),0)))) -> 0
A39: Szálloda 2 (M;L) | J39: =IF(A33="Small",0,IF(I39=0,0,IF(J33=0,0,IF(AND(J33>0,I39="kérem"),(J33*0.4),IF(I39="Nem köthető",0,IF(AND(J33>0,I39="nem kérem"),0)))))) -> 0
A40: Környezetszennyezés | J40: =IF(I40=0,0,IF(J33=0,0,IF(AND(J33>0,I40="kérem"),(J33*0.15),IF(AND(J33>0,I40="nem kérem"),0)))) -> 0
A41: EU Kiterjesztés | J41: =IF(I41=0,0,IF(J33=0,0,IF(AND(J33>0,I41="kérem"),(J33*0.15),IF(AND(J33>0,I41="nem kérem"),0)))) -> 0
A42: Rakodás (M;L) | J42: =IF(A33="Small",0,IF(I42=0,0,IF(J33=0,0,IF(I42="Nem köthető",0,IF(AND(J33>0,I42="kérem"),(J33*0.15),IF(AND(J33>0,I42="nem kérem"),0)))))) -> 0
A43: Felelősségbiztosítás összesen | J43: =IF(Díjszámítás!J45=0,0,IF(AND(C30=0,A33=0),0,SUM(J35:K42,J33))) -> 0
A44: =IF(E33="vig","Felelősségbiztosítás csak a vagyonigazgatóság engedélyével köthető",IF(E33="k","Kizárt kockázat",IF(AND(Díjszámítás!J45=0,C30>0,A33>0),"Felelősségbiztosítás csak a vagyonbiztosítás kiegészítőjeként köthető",0))) -> Felelősségbiztosítás csak a vagyonbiztosítás kiegészítőjeként köthető
A47: Dátum | B47: =Ajánlat1!C90 -> 0 | D47: =TODAY() -> 2021-03-31
B51: üzletkötő | H51: szerződő/biztosított
A57: 0 | C57: 3 nap | E57: 10%, de minimum 25.000 Ft | H57: 1 | I57: 1 | K57: 1
A58: 5000 | C58: 5 nap | E58: 10%, de minimum 50.000 Ft | H58: 2 | I58: 0.95 | K58: 0.95
A59: 10000 | C59: 7 nap | E59: 10%, de minimum 100.000 Ft | H59: 3 | I59: 0.85 | K59: 0.85
A60: 25000 | E60: 10%, de minimum 200.000 Ft | H60: 4 | I60: 0.7 | K60: 0.7
A61: 50000 | E61: 20%, de minimum 25.000 Ft | H61: 5 | I61: 0.92 | K61: 0.92
A62: 100000 | E62: 20%, de minimum 50.000 Ft | H62: 6 | I62: 0.87 | K62: 0.87
A63: 200000 | E63: 20%, de minimum 100.000 Ft | H63: 7 | I63: 0.78 | K63: 0.78
E64: 20%, de minimum 200.000 Ft | H64: 8 | I64: 0.64 | K64: 0.64
A65: Small | B65: Small
A66: Medium | D66: 0-2 | F66: kérem | H66: éves | J66: Nem köthető
A67: Large | D67: 2,01-3 | F67: nem kérem | H67: féléves
D68: 3,01-5 | H68: negyedéves
D69: 5,01- | F69: üzleti
F70: üzletpolitikai
A71: 3 hónap, max. 25 MFt
A72: 6 hónap, max. 50 MFt
A73: 12 hónap, max 100 MFt

Sheet Összesítő (hidden)
I2: UNION - BC
I3: Biztosítási ajánlat
Q4: Tevkor
A9: Biztosítási díjösszesítő | N9: =(100-5)/100 -> 0.95
J12: Éves díj
A13: Vagyonbiztosítás összesen | J13: =Díjszámítás!J45 -> 0
A14: Épületbiztosítás | J14: =Díjszámítás!J27 -> 0
A15: Gép, berendezés biztosítás | J15: =Díjszámítás!J42 -> 0 | M15: =COUNTIF(J14:K19,">0") -> 0
A16: Üzemszünetbiztosítás | J16: =Kiegészítők!J11 -> 0
A17: Géptörés biztosítás | J17: =Kiegészítők!J18 -> 0
A18: Elektromos gépek, berendezések biztosítása | J18: =Kiegészítők!J26 -> 0
A19: Felelősségbiztosítás | J19: =Kiegészítők!J43 -> 0
A21: Éves díj | J21: =J13+J16+J17+J18+J19 -> 0
A22: Pótdíjak
A23: Engedmények | F23: Csomag engedmény | J23: =IF(M15<4,0,IF(M15=4,0.95,IF(OR(M15=5,M15=6),0.9))) -> 0
F24: Üzleti engedmények | H24: üzleti | I24: 5 | J24: =IF(J21=0,0,M24) -> 0 | M24: =IF(H24=0,0,IF(H24="üzleti",(100-I24)/100,IF(H24="üzletpolitikai",0.84))) -> 0.95
F25: Tartamengedmény | J25: =IF(Ajánlat1!E28="Felmondási jog 3 évre kizárva",0.9,0) -> 0.9 | N25: =IF(AND(J23=0,J24=0,J25=0,J26=0),0,IF(AND(J23>0,J24>0,J25>0,J26>0),(J23*J24*J25*J26),IF(AND(J23>0,J24=0,J25=0,J26=0),J23,IF(AND(J23>0,J24>0,J25=0,J26=0),(J23*J24),IF(AND(J23>0,J24>0,J25>0,J26=0),(J23*J24*J25),IF(AND(J23=0,J24>0,J25>0,J26>0),(J24*J25*J26),IF(AND(J23=0,J24=0,J25>0,J26>0),(J25*J26),0))))))) -> 0
F26: Egyedi engedmény | M26: =IF(Ajánlat1!J28>0,1,0) -> 0 | N26: =IF(AND(J23=0,J24=0,J25=0,J26>0),J26,IF(AND(J23=0,J24>0,J25=0,J26=0),J24,IF(AND(J23=0,J24=0,J25>0,J26=0),J25,IF(AND(J23=0,J24>0,J25>0,J26=0),(J24*J25),IF(AND(J23>0,J24=0,J25=0,J26>0),(J23*J26),IF(AND(J23>0,J24=0,J25>0,J26=0),(J23*J25),0)))))) -> 0.9
A27: Éves díj összesen | J27: =IF(J21=0,0,MAX(20000,IF(N28=0,J21,IF(N28>0,(J21*N28))))) -> 0 | M27: =J27/365 -> 0 | N27: =IF(AND(J23>0,J24=0,J25>0,J26>0),(J23*J25*J26),IF(AND(J23>0,J24>0,J25=0,J26>0),(J23*J24*J26),0)) -> 0
A28: Gyakorisági díj | F28: Díjfizetés gyakorisága | H28: féléves | J28: =IF(H28=0,0,IF(H28="éves",J27*0.92,IF(H28="féléves",(J27/2)*0.96,IF(H28="negyedéves",J27/4)))) -> 0 | M28: =IF(H28="negyedéves",J28*4,IF(H28="féléves",J28*2,IF(H28="éves",J28))) -> 0 | N28: =IF(AND(N25=0,N26=0,N27=0),0,IF(AND(N25>0,N26=0,N27=0),N25,IF(AND(N25=0,N26>0,N27=0),N26,IF(AND(N25=0,N26=0,N27>0),N27)))) -> 0.9
A29: Fizetendő első díj | J29: =J30 -> 0 | M29: =M28/365 -> 0
A30: Fizetendő díj | C30: =Ajánlat1!E30 -> 2021-04-01 | E30: =IF(OR(Ajánlat1!J28="",Ajánlat1!N28>364),DATEVALUE(CONCATENATE(YEAR(Ajánlat1!E30),".",MONTH(Ajánlat1!E30)+1,".01")),"") -> 2021-05-01 | G30: =IF(OR(MOD(YEAR(Ajánlat1!E26)-2000,4)=0,Ajánlat1!J28=""),365,IF(Ajánlat1!J28-Ajánlat1!E26=364,365,Ajánlat1!J28-Ajánlat1!E26+1)) -> 365 | H30: =SUM(E31-C30) -> 30 | J30: =IF(Ajánlat1!J28>0,((G30*M27)+(M27*30)),(M29*H30)+J28) -> 0
E31: =DATEVALUE(CONCATENATE(YEAR(Ajánlat1!E30),".",MONTH(Ajánlat1!E30)+1,".01")) -> 2021-05-01
A35: Dátum | B35: =Ajánlat1!C90 -> 0 | D35: =TODAY() -> 2021-03-31
B38: üzletkötő | H38: szerződő/biztosított
A63: 0 | C63: 3 nap | E63: 10%, de minimum 25.000 Ft | H63: 1 | I63: 1
A64: 5000 | C64: 5 nap | E64: 10%, de minimum 50.000 Ft | H64: 2 | I64: 0.95
A65: 10000 | C65: 7 nap | E65: 10%, de minimum 100.000 Ft | H65: 3 | I65: 0.85
A66: 25000 | E66: 10%, de minimum 200.000 Ft | H66: 4 | I66: 0.7
A67: 50000 | E67: 20%, de minimum 25.000 Ft | H67: 5 | I67: 0.92
A68: 100000 | E68: 20%, de minimum 50.000 Ft | H68: 6 | I68: 0.87
A69: 200000 | E69: 20%, de minimum 100.000 Ft | H69: 7 | I69: 0.78
E70: 20%, de minimum 200.000 Ft | H70: 8 | I70: 0.64
A71: Small
A72: Medium | D72: 0-2 | F72: kérem | H72: éves
A73: Large | D73: 2,01-5 | F73: nem kérem | H73: féléves
D74: 5,01-10 | H74: negyedéves
D75: 10,01-15 | F75: üzleti
D76: 15 felett | F76: üzletpolitikai

Sheet Kockázatfelmérő (hidden)
M2: UNION-Business Class
M3: Kockázatfelmérő adatlap
B6: Szerződő/Biztosított neve: | E6: =Ajánlat1!E16 -> 0
B8: Szerződő/biztosítottként nyilatkozom, hogy a jelen biztosítási ajánlatban részletezett telephelyek megfelelnek az alábbiaknak:
B10: 1. Az épületek falazata szilárd anyagból készült (tégla, kő, vasbeton) | L10: igen | O10: =IF(L10="igen",1,IF(AND(L10="nem",B16>0,L16>0),1,IF(L10=0,0,IF(AND(L10="nem",B16=0,L16=0),2)))) -> 1
B12: 2. A nem szilárd anyagból készült épületek (vályog, könnyűszerkezet, fa) az alábbi telephelyeken találhatók:
B14: Telephely címe: | D14: =IF(O10=2,"Kérjük adja meg az épületek címét és a funkciókat",0) -> 0 | L14: Épület funkciója:
B24: 3. Az épületek héjalása (tetőzete) szilárd anyagból készült (cserép, pala, beton) | L24: igen | O24: =IF(L24="igen",1,IF(AND(L24="nem",B30>0,L30>0),1,IF(L24=0,0,IF(AND(L24="nem",B30=0,L30=0),2)))) -> 1
B26: 4. A nem szilárd anyagból készült (nád, fa) héjalású épületek az alábbi telephelyeken találhatók:
B28: Telephely címe: | D28: =IF(O24=2,"Kérjük adja meg az épületek címét és a funkciókat",0) -> 0 | L28: Épület funkciója:
B38: 5. A telephelyek épületeinek állaga: | L38: jó | O38: =IF(L38=0,0,IF(L38>0,1)) -> 1
B40: 6. A telephelyek tűzvédelmi berendezéssel ellátottak (hagyományos kézi oltókészülékek,
B41: kiépített hálózat, a tüzivíz ellátása megoldott) | L41: igen | O41: =IF(L41=0,0,IF(L41>0,1)) -> 1
B43: 7. A telephelyeken automata tűz, füst, hőérzékelő működik: | L43: igen | O43: =IF(L43=0,0,IF(L43>0,1)) -> 1
B45: 8. A tűzoltó készülékek, tűzjelző berendezések ellenőrzése rendszeres: | L45: igen | O45: =IF(L45=0,0,IF(L45>0,1)) -> 1
B47: 9. Használnak-e lobbanékony folyadékokat/gázokat: | I47: nem | J47: Ha igen, milyet: | O47: =IF(I47=0,0,IF(AND(I47="igen",L47=0),2,IF(AND(I47="igen",L47>0),1,IF(I47="nem",1)))) -> 1
B49: 10. Fennállnak-e külső veszélyforrások: | I49: nem | J49: Ha igen milyen: | O49: =IF(I49=0,0,IF(AND(I49="igen",L49=0),2,IF(AND(I49="igen",L49>0),1,IF(I49="nem",1)))) -> 1
B51: 11. Az elektromos hálózat állapota megfelelő (szigeteltek a kábelek, trafóházak): | L51: igen | O51: =IF(L51=0,0,IF(L51>0,1)) -> 1
B53: 12. Az ajánlatban szereplő kockázatokra más társaságnál biztosítással rendelkezem: | L53: nem | O53: =IF(L53=0,0,IF(AND(L53="igen",I55=0,I57=0),2,IF(AND(L53="igen",I55>0,I57>0),1,IF(L53="nem",1)))) -> 1
B55: 13. Ha igen a szerződést kezelő biztosító társaság neve:
G57: Biztosítás kötvényszám
B59: 14. Kárelőzmények: (az előző két év káreseményei) | I59: nem volt károm | O59: =IF(I59=0,0,IF(I59="nem volt károm",1,IF(AND(I59="volt károm",B63=0,F63=0,I63=0,L63=0),2,IF(AND(I59="volt károm",B63>0,F63>0,I63>0,L63>0),1)))) -> 1
B61: 15. Telephely címe | F61: Kár időpontja | I61: Kár oka: | L61: Kár összege: | O61: =IF(AND(O10=0,O24=0,O38=0,O41=0,O43=0,O45=0,O47=0,O49=0,O51=0,O53=0,O59=0),0,IF(AND(O10=1,O24=1,O38=1,O41=1,O43=1,O45=1,O47=1,O49=1,O51=1,O53=1,O59=1),1,IF(OR(O10>1,O10=0,O24>1,O24=0,O38>1,O24=0,O41>1,O41=0,O43>1,O43=0,O45>1,O45=0,O47>1,O47=0,O49>1,O49=0,O51>1,O51=0,O53>1,O53=0,O59>1,O59=0),2))) -> 1
O63: HA(ÉS(
B73: Megjegyzések: | O73: =IF(O61=11,0,IF(O61<11,1,IF(O61>11,2))) -> 1
O75: =VLOOKUP(1,O10:O59,1,FALSE) -> 1
B77: =IF(O61=0,"Kérjük, töltse ki a kockázatfelmérő adatlapot!",IF(O61=1,0,IF(O61=2,"Kérjük, töltse ki a hiányzó adatokat!"))) -> 0
B78: Kelt. | C78: =Ajánlat1!C90 -> 0 | E78: =Ajánlat1!E90 -> 2021-03-31
I81: szerződő/biztosított | S81: =ÉpületIngóság!B10 -> gfshgf
S82: =ÉpületIngóság!B11 -> 0
S83: =ÉpületIngóság!B12 -> 0
B84: =Ajánlat1!B94 -> Verzió: 0.85 | O84: =O10 -> 1 | S84: =ÉpületIngóság!B13 -> 0
B85: =Ajánlat1!B95 -> UNION-Business Class Érvényes: 2009.06.24.-től | O85: =O24 -> 1 | S85: =ÉpületIngóság!B14 -> 0
O86: =O38 -> 1 | S86: =ÉpületIngóság!B15 -> 0
O87: =O41 -> 1 | S87: =ÉpületIngóság!B16 -> 0
O88: =O43 -> 1 | S88: =ÉpületIngóság!B17 -> 0
O89: =O45 -> 1 | S89: =ÉpületIngóság!B18 -> 0
B90: igen | C90: üzemcsarnok | F90: jó | I90: volt károm | O90: =O47 -> 1 | S90: =ÉpületIngóság!B19 -> 0
B91: nem | C91: raktár | F91: közepes | I91: nem volt károm | O91: =O49 -> 1 | S91: =ÉpületIngóság!B20 -> 0
C92: műhely | F92: rossz | O92: =O51 -> 1 | S92: =ÉpületIngóság!B21 -> 0
C93: iroda | O93: =O53 -> 1 | S93: =ÉpületIngóság!B22 -> 0
C94: üzlet | O94: =O59 -> 1 | S94: =ÉpületIngóság!B23 -> 0
C95: szociális létesítmény | O95: =IF(AND(O84:O94)=0,1,IF(AND(O84:O94)=1,0,IF(OR(O84:O94)=2,2,IF(OR(O84:O94)=0,2)))) -> FALSE | S95: =ÉpületIngóság!B24 -> 0
S96: =ÉpületIngóság!B25 -> 0

Sheet Nyilatkozat (hidden)
E2: UNION-Business Class
F3: Nyilatkozat
B5: Szerződő/biztosított neve: | C5: =Ajánlat1!E16 -> 0
B7: Adószáma: | C7: =Ajánlat1!D18 -> 0
B9: Szerződő/biztosítottként a biztosítási szerződések megkötésére vonatkozó jogszabályokban foglaltak alapján ajánlatot teszek az UNION-Business Class biztosításának megkötésére.
B11: Kijelentem, hogy az UNION Vienna Insurance Group Biztosító Zrt /továbbiakban biztosító/ részére átadott UNION-Business Class biztosítási ajánlatom megtétele előtt az általam megjelölt biztosítások feltételeit megismertem és átvettem.
B13: A szerződő/biztosított kijelenti, hogy a biztosító által feltett kérdésekre adott válaszok a valóságnak megfelelnek.
B15: A szerződő/biztosított tudomásul veszi hogy:
B17: -az ajánlattételkor befizetett összeget a biztosító díjelőlegként kezeli, az ajánlat elfogadása esetén díjfizetésként tudja be, az ajánlat elutasítása esetén a szerződőnek kamatmentesen visszautalja,
B18: -a szóbeli közlések vagy kikötések csak akkor érvényesek, ha azokat a biztosító illetékes szerve írásban igazolja,
B19: -valótlan adatok közlése a biztosítás érvénytelenségét vonja maga után,
B20: -a biztosító kötvénykiállításra és szolgáltatás teljesítésre jogosult szerve a vezérigazgatóság,
B21: -a biztosító a kárrendezési tevékenységet kiszervezheti, ilyen esetben a kárrendezéshez szükséges adatok a Bit. 157.§(1) bek. o) pontja értelmében átadhatók,
B22: -az adatszolgáltatás önkéntes,
B23: -a biztosító a tudomására jutott valamennyi adatot biztosítási titokként kezeli, és csak az ügyfél írásbeli beleegyezésével adja ki harmadik személynek. A titoktartási kötelezettség nem áll fenn a biztosítókról és a biztosítási tevékenységről szóló 2003. évi LX. törvényben ("Bit") tételesen felsorolt esetekben, és az ott meghatározott szervek, szervezetek megkeresése, illetve ezen szervek, szervezetek részére történő átadás esetén.
B25: A szerződő/biztosított hozzájárul ahhoz, hogy:
B27: - a biztosítási szerződés megkötéséhez, módosításához, állományban tartásához, valamint a szolgáltatás teljesítéséhez szükséges adatokat, ideértve a különleges adatokat is a biztosító a Bit., valamint az adatvédelmi törvény rendelkezéseinek megfelelően kezelje, az adatokat számítógépes úton feldolgozza. Az adatkezelés célja csak a biztosítás megkötéséhez, módosításához, állományban tartásához, a biztosításból származó követelések megítéléséhez szükséges, vagy a Bit. által meghatározott egyéb cél lehet.
B29: A szerődő/biztosított nyilatkozik, hogy:
B31: - az UNION Vienna Insurance Group Biztosító Zrt részére átadott biztosítási ajánlatát, biztosítási igényeinek előzetes felmérése és pontosítása alapján teszi meg;
B32: - a biztosítás megkötése előtt tájékoztatást kapott a biztosító fő adatairól, valamint a biztosítási termékről,
B33: - felhatalmazza azokat a biztosítókat, amelyek a biztosítottra vonatkozóan azonos vagy összefüggő kockázatú biztosításokat kezelnek, hogy a kockázatelbírálásához, a szerződés kezeléséhez és a szolgáltatási igény elbírálásához szükséges adatokat az UNION Vienna Insurance Group Biztosító Zrt részére továbbítsák.
B35: A biztosítási szerződéssel kapcsolatos kérdések esetén ügyfélszolgálatunk rendelkezésre áll.
B36: Az Ügyfélszolgálat hívható a (06-1) 486 - 4343-es telefonszámon.
B38: Panaszügyek intézésére társaságunk Vezérigazgatósága jogosult: H-1386 Bp. 62, Pf. 906/77. Tel: (1) 486 - 4200.
B39: A panasz ügyintézés nem helyettesíti a peres eljárást,
B41: A biztosító felügyeleti szerve:
B42: Pénzügyi Szervezetek Állami Felügyelete, 1535 Budapest, 114. Pf. 777.
B44: Átvett mellékletek:
B45: UNION-Business Class biztosítás Általános Feltételek
B46: UNION-Business Class biztosítás Különös Feltételek Épület biztosításhoz
B47: UNION-Business Class biztosítás Különös Feltételek Ingóság biztosításhoz
B48: UNION-Business Class biztosítás Kiegészítő Felelősségbiztosítás Különös Feltételek
B49: UNION-Business Class biztosítás Kiegészítő Üzemszünet biztosítási Feltételek
B50: UNION-Business Class biztosítás Kiegészítő Géptörésbiztosítási Feltételek
B51: UNION-Business Class biztosítás Kiegészítő Elektromos gépek berendezése biztosítási Feltételek
B52: UNION-Business Class biztosítás Védelmi Feltételek
B53: UNION-Business Class biztosítás Épület-, Ingóság-, Felelősségbiztosítás kockázati és limit táblázatok
B55: =Ajánlat1!C90 -> 0 | C55: =Ajánlat1!E90 -> 2021-03-31
F58: Szerződő/Biztosított aláírása
B59: A gazdasági reklámtevékenységről szóló 2008.évi XLVIII.tv. (Gtv) 6.§-ben foglaltak szerint a szerződő/biztosított hozzájárul ahhoz, hogy részére a biztosító közvetlen megkeresés módszerével, így különösen elektronikus levelezés vagy azzal egyenértékű más egyéni kommunikációs eszköz útján gazdasági reklámokat küldjön, ebből a célból a nevét, lakcímét, e-mail címét és mobilszámát nyilvántartsa.
B60: A biztosító az előző céllal az adatokat a Gtv. Előírásainak megfelelően, a hozzájáruló nyilatkozat visszavonásáig tartja nyilván és indoklás nélkül, ingyenesen visszavonható a biztosító részére postai (1461.Budapest, Pf.131.) vagy elektronikus úton (e-mail: dm@unionbiztosito.hu) megküldött nyilatkozattal. Szerződő/biztosított kijelenti, hogy a jelen nyilatkozat önkéntes adatszolgáltatáson alapul, és az adatkezelés céljáról, tartalmáról szóló megfelelő tájékoztatást követően történt.
B61: =Ajánlat1!C90 -> 0 | C61: =Ajánlat1!E90 -> 2021-03-31
F64: Szerződő/Biztosított aláírása
B66: =Ajánlat1!B94 -> Verzió: 0.85
B67: =Ajánlat1!B95 -> UNION-Business Class Érvényes: 2009.06.24.-től

Sheet Nyomtatás (hidden)
B6: Figyelem!
B8: A Nyomtatás gomb megnyomása esetén a teljes ajánlat 3 példányban nyomtatásra kerül !
B10: Az ajánlat első példányát kell az ügyfél részére átadni, mert ehhez kerülnek nyomtatásra a limit táblázatok.

Sheet Munka8 (hidden)
A2: Épület | B2: Ingóság | C2: Felelősség | D2: Géptörés
A3: =IF(Díjszámítás!A27=0,0,IF(Díjszámítás!A27="Alap",1,IF(Díjszámítás!A27="Teljes",2,IF(Díjszámítás!A27="Extra",3)))) -> 3 | B3: =IF(Díjszámítás!A42=0,0,IF(Díjszámítás!A42="Alap",1,IF(Díjszámítás!A42="Teljes",2,IF(Díjszámítás!A42="Extra",3)))) -> FALSE | C3: =IF(Díjszámítás!A77=0,0,IF(Díjszámítás!A77="Alap",1,IF(Díjszámítás!A77="Teljes",2,IF(Díjszámítás!A77="Extra",3)))) -> FALSE | D3: =IF(AND(GéptörésELBER!O24=0,GéptörésELBER!O40=0),0,IF(OR(GéptörésELBER!O24>0,GéptörésELBER!O40>0),1)) -> 0
A4: Az Limit (ÉpLimit; IngóLimit; FelLimit) munkalapokat mindig csak az első példányhoz kell kinyomtatni.
A5: Ha az Épület (A3 cella) 0, akkor nem kell kinyomtatni az Épület, és az ÉpLimit munkalapokat
A6: Ha az Épület (A3 cella) értéke 1-es, akkor ki kell kinyomtatni az Épület munkalapot, és az ÉpLimit munkap 1. Oldalát, ha a cella értéke 2-es, akkor az Épület munkalapot és az ÉpLimit munkalap 2. Oldalát, ha az érték 3-as, akkor az Épület munkalapot és az ÉpLimit munkap 3. oldalát.
A8: Ha az Ingóság (B3 cella) 0, akkor nem kell kinyomtatni az IngóLimit munkalapokat
A9: Ha az Ingóság (B3 cella) értéke 1-es, akkor ki kell kinyomtatni az Épület munkalapot, és az IngóLimit munkap 1. Oldalát, ha a cella értéke 2-es, akkor az Épület munkalapot és az IngóLimit munkalap 2. Oldalát, ha az érték 3-as, akkor az Épület munkalapot és az IngóLimit munkap 3. oldalát.
A11: Ha az Felelősség (C3 cella) 0, akkor nem kell kinyomtatni a FelLimit munkalapot
A12: Ha a Felelősség (C3 cella) értéke 1-es, akkor ki kell kinyomtatni a FelLimit munkap 1. Oldalát, ha a cella értéke 2-es, akkor a FelLimit munkalap 2. Oldalát, ha az érték 3-as, akkor a FelLimit munkap 3. oldalát.
A14: Ha a Géptörés (D3 cella) 0, akkor nem kell kinyomtatni a Géptörés-ELBER munkalapot
A15: Ha a Géptörés (D3 cella) értéke 1-es, akkor ki kell kinyomtatni a Géptörés-ELBER munkapot.
A17: Mindig ki kell nyomtatni az Ajánlat1, a Díjkalkuláció, az Épület, a Kockázatfelmérő és a Nyilatkozat munkalapokat.

Sheet ÉpLimit (hidden)
E2: UNION-Business Class
E3: Épületbiztosítás Alap csomag
A6: ÉPÜLET ALAPKOCKÁZATOK ÉS LIMITEK | B6: TŰZBIZTOSÍTÁS (tűz, robbanás, villámcsapás, légi jármű lezuhanása) | C6: ELEMI KÁROK (vihar, felhőszakadás jégverés, hónyomás, földrengés) | D6: VEZETÉKES VÍZKÁR | E6: ÜVEGBIZTOSÍ-TÁS
A7: ÉPÜLET KIEGÉSZÍTŐK (biztosítási összegen belül)
A8: Alulbiztosítás vizsgálatáról való lemondás | B8: 10%, max. 10 MFt-ig | C8: 10%, max. 10 MFt-ig | D8: 10%, max. 10 MFt-ig | E8: -
A9: Füst és hő által okozott károk | B9: - | C9: - | D9: - | E9: -
A10: Elektromos tűz | B10: - | C10: - | D10: - | E10: -
A11: Villámcsapás által közvetetten okozott elektromos berendezésekben keletkezett károk | B11: - | C11: - | D11: - | E11: -
A12: Mentési, oltási, kárenyhítési, bontási romeltakarítási költségek | B12: 10% | C12: 0.1 | D12: 0.1 | E12: -
A13: Tervezési költségek | B13: - | C13: - | D13: - | E13: -
A14: Szilárdan beépített kerítés, külső létesítmények/berendezések, vmint antennák, napenergia-berendezés (ha az ingatlan tulajdonosáé), kárai beleértve az idegen jármű ütközését is. | B14: 5% max. 1 MFt | C14: 5% max. 1 MFt | D14: - | E14: -
A15: Kibővített biztosítási védelem elemi károkra (árvíz, földmozgás) | B15: - | C15: - | D15: - | E15: -
A16: Csőpótlás | B16: - | C16: - | D16: max. 2 m-ig | E16: -
A17: Technológiai cső | B17: - | C17: - | D17: - | E17: -
A18: Épületen kívüli bevezetőcsövek az ingatlan területén | B18: - | C18: - | D18: - | E18: -
A19: Telken kívüli bevezetőcsövek | B19: - | C19: - | D19: - | E19: -
A20: Kapcsolódó berendezések és szerelvények szükségszerű pótlása a kárelhárítás során | B20: - | C20: - | D20: - | E20: -
A21: Dugulás | B21: - | C21: - | D21: - | E21: -
A22: Épületen kívüli elvezetőcsövek az ingatlan területén | B22: - | C22: - | D22: - | E22: -
A23: Ajtók, ablakok, portálok max.10 mm vastag üvegezésében keletkezett károk | B23: - | C23: - | D23: - | E23: 3 m2 max. 0,3 MFt
A24: Ólom-, sárgaréz- és műanyagüveg, vmint épületen elhelyezett napenergia-berendezések | B24: - | C24: - | D24: - | E24: -
A25: Cégtáblák, díszfények, mindenfajta biztonsági üveg, üvegtetők, plexikupolák vmint télikertek | B25: - | C25: - | D25: - | E25: -
A26: Védőrács le- és felszerelési, sürgős üvegezési, állványozási, üvegcserepek eltakarítási költségei | B26: - | C26: - | D26: - | E26: 0.1
A27: Engedélyezett tüntetések során keletkezett károk | B27: - | C27: - | D27: - | E27: -
A28: ÉPÜLET KIEGÉSZÍTŐK (biztosítási összegen felül)
A29: Hivatali eljárások, dokumentumok beszerzésének többletköltségei | B29: 5% max. 0,2 MFt | C29: 5% max. 0,2 MFt | D29: 5% max. 0,2 MFt | E29: -
A30: * Radioaktív szennyeződés mellékköltségei - (Szállítási, lebontási és izolációs költségek Veszélyes anyagok beleértve a rádioaktív anyagokkal szennyezett föld kezelési többletköltségei) | B30: 5% min. 1 MFt | C30: 5% min. 1 MFt | D30: 5% min. 1 MFt | E30: -
A31: Szakértői díjak | B31: 0,1 MFt | C31: 0,1 MFt | D31: 0,1 MFt | E31: -
A32: Az elfolyt víz értéke | B32: - | C32: - | D32: - | E32: -
A34: Tűzvédelmi és riasztási gyakorlatok | B34: O
C43: UNION-Business Class
E44: Épületbiztosítás Teljes csomag
A47: ÉPÜLET ALAPKOCKÁZATOK ÉS LIMITEK | B47: TŰZBIZTOSÍTÁS (tűz, robbanás, villámcsapás, légi jármű lezuhanása) | C47: ELEMI KÁROK (vihar, felhőszakadás jégverés, hónyomás, földrengés) | D47: VEZETÉKES VÍZKÁR | E47: ÜVEGBIZTOSÍ-TÁS
A48: ÉPÜLET KIEGÉSZÍTŐK (biztosítási összegen belül)
A49: Alulbiztosítás vizsgálatáról való lemondás | B49: 10%, max. 10 MFt-ig | C49: 10%, max. 10 MFt-ig | D49: 10%, max. 10 MFt-ig | E49: -
A50: Füst és hő által okozott károk | B50: + | C50: - | D50: - | E50: -
A51: Elektromos tűz | B51: + | C51: - | D51: - | E51: -
A52: Villámcsapás által közvetetten okozott elektromos berendezésekben keletkezett károk | B52: 10% max. 3 MFt | C52: - | D52: - | E52: -
A53: Mentési, oltási, kárenyhítési, bontási romeltakarítási költségek | B53: 10% | C53: 0.1 | D53: 0.1 | E53: -
A54: Tervezési költségek | B54: 10% | C54: 0.1 | D54: 0.1 | E54: -
A55: Szilárdan beépített kerítés, külső létesítmények/berendezések, vmint antennák, napenergia-berendezés (ha az ingatlan tulajdonosáé), kárai beleértve az idegen jármű ütközését is. | B55: 10% max. 2 MFt | C55: 10%, max. 2 MFt | D55: - | E55: -
A56: Kibővített biztosítási védelem elemi károkra (árvíz, földmozgás) | B56: - | C56: + | D56: - | E56: -
A57: Csőpótlás | B57: - | C57: - | D57: max. 6 m-ig | E57: -
A58: Technológiai cső | B58: - | C58: - | D58: + | E58: -
A59: Épületen kívüli bevezetőcsövek az ingatlan területén | B59: - | C59: - | D59: + | E59: -
A60: Telken kívüli bevezetőcsövek | B60: - | C60: - | D60: + | E60: -
A61: Kapcsolódó berendezések és szerelvények szükségszerű pótlása a kárelhárítás során | B61: - | C61: - | D61: + | E61: -
A62: Dugulás | B62: - | C62: - | D62: - | E62: -
A63: Épületen kívüli elvezetőcsövek az ingatlan területén | B63: - | C63: - | D63: - | E63: -
A64: Ajtók, ablakok, portálok max.10 mm vastag üvegezésében keletkezett károk | B64: - | C64: - | D64: - | E64: 6 m2 max. 0,5 MFt
A65: Ólom-, sárgaréz- és műanyagüveg, vmint épületen elhelyezett napenergia-berendezések | B65: - | C65: - | D65: - | E65: -
A66: Cégtáblák, díszfények, mindenfajta biztonsági üveg, üvegtetők, plexikupolák vmint télikertek | B66: - | C66: - | D66: - | E66: +
A67: Védőrács le- és felszerelési, sürgős üvegezési, állványozási, üvegcserepek eltakarítási költségei | B67: - | C67: - | D67: - | E67: 0.1
A68: Engedélyezett tüntetések során keletkezett károk | B68: - | C68: - | D68: - | E68: -
A69: ÉPÜLET KIEGÉSZÍTŐK (biztosítási összegen felül)
A70: Hivatali eljárások, dokumentumok beszerzésének többletköltségei | B70: 10% max. 0,5 MFt | C70: 10% max. 0,5 MFt | D70: 10% max. 0,5 MFt | E70: -
A71: * Radioaktív szennyeződés mellékköltségei - (Szállítási, lebontási és izolációs költségek Veszélyes anyagok beleértve a rádioaktív anyagokkal szennyezett föld kezelési többletköltségei) | B71: max.10%, de min. 1 MFt | C71: max.10%, de min. 1 MFt | D71: max.10%, de min. 1 MFt | E71: -
A72: Szakértői díjak | B72: 0,3 MFt | C72: 0,3 MFt | D72: 0,3 MFt | E72: -
A73: Az elfolyt víz értéke | B73: - | C73: - | D73: 0,5 MFt | E73: -
C83: UNION-Business Class
E84: Épületbiztosítás Extra csomag
A87: ÉPÜLET ALAPKOCKÁZATOK ÉS LIMITEK | B87: TŰZBIZTOSÍTÁS (tűz, robbanás, villámcsapás, légi jármű lezuhanása) | C87: ELEMI KÁROK (vihar, felhőszakadás jégverés, hónyomás, földrengés) | D87: VEZETÉKES VÍZKÁR | E87: ÜVEGBIZTOSÍ-TÁS
A88: ÉPÜLET KIEGÉSZÍTŐK (biztosítási összegen belül)
A89: Alulbiztosítás vizsgálatáról való lemondás | B89: 10%, max. 10 MFt-ig | C89: 10%, max. 10 MFt-ig | D89: 10%, max. 10 MFt-ig | E89: -
A90: Füst és hő által okozott károk | B90: + | C90: - | D90: - | E90: -
A91: Elektromos tűz | B91: + | C91: - | D91: - | E91: -
A92: Villámcsapás által közvetetten okozott elektromos berendezésekben keletkezett károk | B92: 15% max. 5 MFt | C92: - | D92: - | E92: -
A93: Mentési, oltási, kárenyhítési, bontási romeltakarítási költségek | B93: 10% | C93: 0.1 | D93: 0.1 | E93: -
A94: Tervezési költségek | B94: 10% | C94: 0.1 | D94: 0.1 | E94: -
A95: Szilárdan beépített kerítés, külső létesítmények/berendezések, vmint antennák, napenergia-berendezés (ha az ingatlan tulajdonosáé), kárai beleértve az idegen jármű ütközését is. | B95: 15% max. 3 MFt | C95: 15% max. 3 MFt | D95: - | E95: -
A96: Kibővített biztosítási védelem elemi károkra (árvíz, földmozgás) | B96: - | C96: + | D96: - | E96: -
A97: Csőpótlás | B97: - | C97: - | D97: max. 10 m-ig | E97: -
A98: Technológiai cső | B98: - | C98: - | D98: + | E98: -
A99: Épületen kívüli bevezetőcsövek az ingatlan területén | B99: - | C99: - | D99: + | E99: -
A100: Telken kívüli bevezetőcsövek | B100: - | C100: - | D100: + | E100: -
A101: Kapcsolódó berendezések és szerelvények szükségszerű pótlása a kárelhárítás során | B101: - | C101: - | D101: + | E101: -
A102: Dugulás | B102: - | C102: - | D102: + | E102: -
A103: Épületen kívüli elvezetőcsövek az ingatlan területén | B103: - | C103: - | D103: + | E103: -
A104: Ajtók, ablakok, portálok max.10 mm vastag üvegezésében keletkezett károk | B104: - | C104: - | D104: - | E104: 12 m2 max. 1 MFt
A105: Ólom-, sárgaréz- és műanyagüveg, vmint épületen elhelyezett napenergia-berendezések | B105: - | C105: - | D105: - | E105: +
A106: Cégtáblák, díszfények, mindenfajta biztonsági üveg, üvegtetők, plexikupolák vmint télikertek | B106: - | C106: - | D106: - | E106: +
A107: Védőrács le- és felszerelési, sürgős üvegezési, állványozási, üvegcserepek eltakarítási költségei | B107: - | C107: - | D107: - | E107: 0.1
A108: Engedélyezett tüntetések során keletkezett károk | B108: - | C108: - | D108: - | E108: +
A109: ÉPÜLET KIEGÉSZÍTŐK (biztosítási összegen felül)
A110: Hivatali eljárások, dokumentumok beszerzésének többletköltségei | B110: 15% max. 1 MFt | C110: 15% max. 1 MFt | D110: 15% max. 1 MFt | E110: -
A111: *Radioaktív szennyeződés mellékköltségei - (Szállítási, lebontási és izolációs költségek Veszélyes anyagok beleértve a rádioaktív anyagokkal szennyezett föld kezelési többletköltségei) | B111: max. 15%, de min. 1 MFt | C111: max. 15%, de min. 1 MFt | D111: max. 15%, de min. 1 MFt | E111: -
A112: Szakértői díjak | B112: 0,5 MFt | C112: 0,5 MFt | D112: 0,5 MFt | E112: -
A113: Az elfolyt víz értéke | B113: - | C113: - | D113: 1 MFt | E113: -

Sheet IngóLimit (hidden)
F2: UNION-Business Class
F3: Ingóságbiztosítás Alap csomag
A6: INGÓSÁG ALAPKOCKÁZATOK ÉS LIMITEK | B6: TŰZBIZTOSÍTÁS (tűz, robbanás, villámcsapás, légi jármű lezuhanása) | C6: ELEMI KÁROK (vihar, felhőszakadás jégverés, hónyomás, földrengés) | D6: VEZETÉKES VÍZKÁR | E6: Betöréses lopás és rablás | F6: ÜVEGBIZTOSÍTÁS
A7: INGÓSÁG KIEGÉSZÍTŐK (biztosítási összegen belül)
A8: Alulbiztosítás vizsgálatáról való lemondás | B8: 10% max. 5MFt | C8: 10% max. 5MFt | D8: 10% max. 5MFt | E8: 10% max. 5MFt | F8: -
A9: Füst és hő álltal okozott károk | B9: - | C9: - | D9: - | E9: - | F9: -
A10: Elektromos tűz | B10: - | C10: - | D10: - | E10: - | F10: -
A11: Bővített elemi kár védelem (árvíz, földmozgás) | B11: - | C11: - | D11: - | E11: - | F11: -
A12: Elektromos berendezésekben villámcsapás által közvetetten okozott károk | B12: - | C12: - | D12: - | E12: - | F12: -
A13: Füstölőkamrák, szárító- és más melegítőberendezések tartalma, ha a tűz kitörésének helye a berendezésen belül van | B13: 5% max. 1 MFt | C13: - | D13: - | E13: - | F13: -
A14: Épületen kívüli, ahhoz szilárdan rögzített tető (pl: napvédő, esővédő) | B14: 5% max. 0,3 MFt | C14: - | D14: - | E14: - | F14: -
A15: Munkavállalók vagyontárgyai (kivéve: értéktárgyak és gépjárművek) | B15: 0,05 MFt | C15: 0,05 MFt | D15: 0,05 MFt | E15: 0,05 MFt | F15: -
A16: Betöréses lopás során okozott rongálási károk, és épületrongálási károk (épületbiztosítással együtt) | B16: - | C16: - | D16: - | E16: 0.1 | F16: -
A17: Kiállítás- és vásárbiztosítás EU-tagállamokban és a feltételben meghatározott országokban | B17: - | C17: - | D17: - | E17: - | F17: -
A18: A biztosított helyiségeken kívül elhelyezett értékesítő automaták tartalma | B18: 5% max 1 MFt | C18: 5% max 1 MFt | D18: - | E18: - | F18: -
A19: A biztosított helyiségeken kívül elhelyezett vitrinek és kirakatok, azok tartalma | B19: - | C19: - | D19: - | E19: - | F19: -
A20: Árukban és készletekben keletkezett károk Magyarország határain belüli szállítás során | B20: - | C20: - | D20: - | E20: - | F20: -
A21: Külső biztosítás -ha a másik biztosítás erre nem térít (kivéve: kiállítások, vásárok, építkezési területet és tárolóhelyek) | B21: - | C21: - | D21: - | E21: - | F21: -
A22: Technológiai csőtörés | B22: - | C22: - | D22: + | E22: - | F22: -
A23: Dugulás | B23: - | C23: - | D23: - | E23: - | F23: -
A24: Épületen kívüli bevezetőcsövek az ingatlan területén | B24: - | C24: - | D24: - | E24: - | F24: -
A25: Épületen kívüli elvezetőcsövek az ingatlan területén | B25: - | C25: - | D25: - | E25: - | F25: -
A26: Költségek (mentés,oltás,kárenyhítés,bontás,romeltakarítás) | B26: 0.1 | C26: 0.1 | D26: 0.1 | E26: 0.1 | F26: -
A27: Legmagasabb kártérítési összeg | F27: 0,05 MFt
A28: A biztosított helyiségeken kívül elhelyezett vitrinek és kirakatok üvegezése | B28: - | C28: - | D28: - | E28: - | F28: -
A29: Belső- és külső üvegezés, ideértve a cégtáblák üvegezését, tagozott üvegezés, üvegszerű műanyagok (pl. plexi- és akrilüveg) | B29: - | C29: - | D29: - | E29: - | F29: +
A30: Ólom-, sárgaréz- és műanyagüveg | B30: - | C30: - | D30: - | E30: - | F30: -
A31: Védőrács le- és felszerelési, sürgős üvegezési, állványozási, üvegcserepek eltakarítási költségei | B31: - | C31: - | D31: - | E31: - | F31: 0.1
A32: INGÓSÁG KIEGÉSZÍTŐK (biztosítási összegen felül)
A33: Hivatali eljárások többletköltségei | B33: 10% max. 2 MFt | C33: 10% max. 2 MFt | D33: 10% max. 2 MFt | E33: 10% max. 2 MFt | F33: -
A34: Tűzvédelmi és riasztási gyakorlatok | B34: O | F34: -
A35: Radioaktív szennyeződés mellékköltségei - Szállítási, lebontási és izolációs költségek Veszélyes anyagok beleértve a radioaktív anyagokkal szenyezett föld kezelési többletköltségei | B35: 5% min. 1 MFt | C35: 5% min. 1 MFt | D35: 5% min. 1 MFt | E35: 5% min. 1 MFt | F35: -
A36: Akták, tervek, iratok vmint másolási segédanyagok | B36: 10% min. 0,2 MFt max. 2 MFt | C36: 10% min. 0,2 MFt max. 2 MFt | D36: 10% min. 0,2 MFt max. 2 MFt | E36: 10% min. 0,2 MFt max. 2 MFt | F36: -
A37: Kerítés, külső létesítmények, berendezések, vmint antennák és napenergia-berendezés amennyiben az üzemeltető tulajdona (beleértve az ismeretlen jármű ütközését is) | B37: 5% max. 2 MFt | C37: - | D37: - | E37: - | F37: -
A38: Engedélyezett tüntetések során keletkezett károk | B38: - | C38: - | D38: - | E38: - | F38: -
A39: Kirakaton elhelyezett festmények, képek és fóliák | B39: - | C39: - | D39: - | E39: - | F39: -
A40: Áremelkedés, technikai korszerűsítés többletköltségei | B40: - | C40: - | D40: - | E40: - | F40: -
A41: Vízelfolyás | B41: - | C41: - | D41: - | E41: - | F41: -
A42: Ügyfél kirablása a biztosított telephelyen | B42: - | C42: - | D42: - | E42: 0,5 MFt | F42: -
A43: Küldöttrablás | B43: - | C43: - | D43: - | E43: 0,5 MFt | F43: -
A44: Zárcsere költségei | B44: - | C44: - | D44: - | E44: 0,025 MFt | F44: -
A45: Telefonnal való visszaélés | B45: - | C45: - | D45: - | E45: - | F45: -
F49: UNION-Business Class
F50: Ingóságbiztosítás Teljes csomag
A53: INGÓSÁG ALAPKOCKÁZATOK ÉS LIMITEK | B53: TŰZBIZTOSÍTÁS (tűz, robbanás, villámcsapás, légi jármű lezuhanása) | C53: ELEMI KÁROK (vihar, felhőszakadás jégverés, hónyomás, földrengés) | D53: VEZETÉKES VÍZKÁR | E53: Betöréses lopás és rablás | F53: ÜVEGBIZTOSÍTÁS
A54: INGÓSÁG KIEGÉSZÍTŐK (biztosítási összegen belül)
A55: Alulbiztosítás vizsgálatáról való lemondás | B55: 10% max. 5MFt | C55: 10% max. 5MFt | D55: 10% max. 5MFt | E55: 10% max. 5MFt | F55: -
A56: Füst és hő álltal okozott károk | B56: + | C56: - | D56: - | E56: - | F56: -
A57: Elektromos tűz | B57: + | C57: - | D57: - | E57: - | F57: -
A58: Bővített elemi kár védelem (árvíz, földmozgás) | B58: - | C58: + | D58: - | E58: - | F58: -
A59: Elektromos berendezésekben villámcsapás által közvetetten okozott károk | B59: 10%,max. 3 MFt | C59: - | D59: - | E59: - | F59: -
A60: Füstölőkamrák, szárító- és más melegítőberendezések tartalma, ha a tűz kitörésének helye a berendezésen belül van | B60: 10% max. 3 MFt | C60: - | D60: - | E60: - | F60: -
A61: Épületen kívüli, ahhoz szilárdan rögzített tető (pl: napvédő, esővédő) | B61: 10% max. 0,5 MFt | C61: 0,1 MFt | D61: - | E61: - | F61: -
A62: Munkavállalók vagyontárgyai (kivéve: értéktárgyak és gépjárművek) | B62: 0,1 MFt | C62: 0,1 MFt | D62: 0,1 MFt | E62: 0,1 MFt | F62: -
A63: Betöréses lopás során okozott rongálási károk, és épületrongálási károk (épületbiztosítással együtt) | B63: - | C63: - | D63: - | E63: 0.1 | F63: -
A64: Kiállítás- és vásárbiztosítás EU-tagállamokban és a feltételben meghatározott országokban | B64: - | C64: - | D64: - | E64: - | F64: -
A65: A biztosított helyiségeken kívül elhelyezett értékesítő automaták tartalma | B65: 10% max 2 MFt | C65: 10% max 2 MFt | D65: - | E65: 0,1 MFt | F65: -
A66: A biztosított helyiségeken kívül elhelyezett vitrinek és kirakatok, azok tartalma | B66: 0,2 MFt/vitrin 0,3 MFt/ tartalom | C66: 0,2 MFt/vitrin 0,3 MFt/ tartalom | D66: - | E66: 0,2 MFt/vitrin 0,3 MFt/ tartalom | F66: -
A67: Árukban és készletekben keletkezett károk Magyarország határain belüli szállítás során | B67: - | C67: - | D67: - | E67: - | F67: -
A68: Külső biztosítás -ha a másik biztosítás erre nem térít (kivéve: kiállítások, vásárok, építkezési területet és tárolóhelyek) | B68: - | C68: - | D68: - | E68: - | F68: -
A69: Technológiai csőtörés | B69: - | C69: - | D69: + | E69: - | F69: -
A70: Dugulás | B70: - | C70: - | D70: - | E70: - | F70: -
A71: Épületen kívüli bevezetőcsövek az ingatlan területén | B71: - | C71: - | D71: + | E71: - | F71: -
A72: Épületen kívüli elvezetőcsövek az ingatlan területén | B72: - | C72: - | D72: - | E72: - | F72: -
A73: Költségek (mentés,oltás,kárenyhítés,bontás,romeltakarítás) | B73: 0.1 | C73: 0.1 | D73: 0.1 | E73: 0.1 | F73: -
A74: Legmagasabb kártérítési összeg | B74: - | C74: - | D74: - | E74: - | F74: 0,1 MFt
A75: A biztosított helyiségeken kívül elhelyezett vitrinek és kirakatok üvegezése | B75: - | C75: - | D75: - | E75: - | F75: +
A76: Belső- és külső üvegezés, ideértve a cégtáblák üvegezését, tagozott üvegezés, üvegszerű műanyagok (pl. plexi- és akrilüveg) | B76: - | C76: - | D76: - | E76: - | F76: +
A77: Ólom-, sárgaréz- és műanyagüveg | B77: - | C77: - | D77: - | E77: - | F77: -
A78: Védőrács le- és felszerelési, sürgős üvegezési, állványozási, üvegcserepek eltakarítási költségei | B78: - | C78: - | D78: - | E78: - | F78: 0.1
A79: INGÓSÁG KIEGÉSZÍTŐK (biztosítási összegen felül)
A80: Hivatali eljárások többletköltségei | B80: 20% max. 6 MFt | C80: 20% max. 6 MFt | D80: 20% max. 6 MFt | E80: 20% max. 6 MFt | F80: -
A81: Tűzvédelmi és riasztási gyakorlatok | B81: O | F81: -
A82: *Radioaktív szennyeződés mellékköltségei - Szállítási, lebontási és izolációs költségek Veszélyes anyagok beleértve a radioaktív anyagokkal szenyezett föld kezelési többletköltségei | B82: 10% min. 1 MFt | C82: 10% min. 1 MFt | D82: 10% min. 1 MFt | E82: 10% min. 1 MFt | F82: -
A83: **Akták, tervek, iratok vmint másolási segédanyagok | B83: 10% min. 0,4 MFt max. 4 MFt | C83: 10% min. 0,4 MFt max. 4 MFt | D83: 10% min. 0,4 MFt max. 4 MFt | E83: 10% min. 0,4 MFt max. 4 MFt | F83: -
A84: Kerítés, külső létesítmények, berendezések, vmint antennák és napenergia-berendezés amennyiben az üzemeltető tulajdona (beleértve az ismeretlen jármű ütközését is) | B84: 10% max. 4 MFt | C84: 10% max. 4 MFt | D84: - | E84: - | F84: -
A85: Engedélyezett tüntetések során keletkezett károk | B85: - | C85: - | D85: - | E85: - | F85: 0,05 MFt
A86: Kirakaton elhelyezett festmények, képek és fóliák | B86: - | C86: - | D86: - | E86: - | F86: 0,1 MFt
A87: Áremelkedés, technikai korszerűsítés többletköltségei | B87: 5% max 1 MFt | C87: 5% max 1 MFt | D87: 5% max 1 MFt | E87: 5% max 1 MFt | F87: -
A88: Vízelfolyás | B88: - | C88: - | D88: 0,5 MFt | E88: - | F88: -
A89: Ügyfél kirablása a biztosított telephelyen | B89: - | C89: - | D89: - | E89: 1 MFt | F89: -
A90: Küldöttrablás | B90: - | C90: - | D90: - | E90: 1 MFt | F90: -
A91: Zárcsere költségei | B91: - | C91: - | D91: - | E91: 0,05 MFt | F91: -
A92: Telefonnal való visszaélés | B92: - | C92: - | D92: - | E92: 0,05 MFt | F92: -
F96: UNION-Business Class
F97: Ingóságbiztosítás Extra csomag
A99: INGÓSÁG ALAPKOCKÁZATOK ÉS LIMITEK | B99: TŰZBIZTOSÍTÁS (tűz, robbanás, villámcsapás, légi jármű lezuhanása) | C99: ELEMI KÁROK (vihar, felhőszakadás jégverés, hónyomás, földrengés) | D99: VEZETÉKES VÍZKÁR | E99: Betöréses lopás és rablás | F99: ÜVEGBIZTOSÍTÁS
A100: INGÓSÁG KIEGÉSZÍTŐK (biztosítási összegen belül)
A101: Alulbiztosítás vizsgálatáról való lemondás | B101: 10% max. 5MFt | C101: 10% max. 5MFt | D101: 10% max. 5MFt | E101: 10% max. 5MFt | F101: -
A102: Füst és hő álltal okozott károk | B102: + | C102: - | D102: - | E102: - | F102: -
A103: Elektromos tűz | B103: + | C103: - | D103: - | E103: - | F103: -
A104: Bővített elemi kár védelem (árvíz, földmozgás) | B104: - | C104: + | D104: - | E104: - | F104: -
A105: Elektromos berendezésekben villámcsapás által közvetetten okozott károk | B105: 15%,max. 5 MFt | C105: - | D105: - | E105: - | F105: -
A106: Füstölőkamrák, szárító- és más melegítőberendezések tartalma, ha a tűz kitörésének helye a berendezésen belül van | B106: 15% max. 5 MFt | C106: - | D106: - | E106: - | F106: -
A107: Épületen kívüli, ahhoz szilárdan rögzített tető (pl: napvédő, esővédő) | B107: 15% max. 1 MFt | C107: 0,2 MFt | D107: - | E107: - | F107: -
A108: Munkavállalók vagyontárgyai (kivéve: értéktárgyak és gépjárművek) | B108: 0,15 MFt | C108: 0,15 MFt | D108: 0,15 MFt | E108: 0,15 MFt | F108: -
A109: Betöréses lopás során okozott rongálási károk, és épületrongálási károk (épületbiztosítással együtt) | B109: - | C109: - | D109: - | E109: 0.1 | F109: -
A110: Kiállítás- és vásárbiztosítás EU-tagállamokban és a feltételben meghatározott országokban | B110: 30% max. 6 MFt | C110: 30% max. 6 MFt | D110: 30% max. 6 MFt | E110: 30% max. 6 MFt | F110: -
A111: A biztosított helyiségeken kívül elhelyezett értékesítő automaták tartalma | B111: 15% max 3 MFt | C111: 15% max 3 MFt | D111: - | E111: 0,1 MFt | F111: -
A112: A biztosított helyiségeken kívül elhelyezett vitrinek és kirakatok, azok tartalma | B112: 0,2 MFt/vitrin 0,3 MFt /tartalom | C112: 0,2 MFt/vitrin 0,3 MFt /tartalom | D112: - | E112: 0,2 MFt/vitrin 0,3 MFt /tartalom | F112: -
A113: Árukban és készletekben keletkezett károk Magyarország határain belüli szállítás során | B113: 0,5 MFt | C113: 0,5 MFt | D113: - | E113: - | F113: -
A114: Külső biztosítás -ha a másik biztosítás erre nem térít (kivéve: kiállítások, vásárok, építkezési területet és tárolóhelyek) | B114: 30% max 9 MFt | C114: 30% max 9 MFt | D114: 30% max 9 MFt | E114: 30% max 9 MFt | F114: -
A115: Technológiai csőtörés | B115: - | C115: - | D115: + | E115: - | F115: -
A116: Dugulás | B116: - | C116: - | D116: + | E116: - | F116: -
A117: Épületen kívüli bevezetőcsövek az ingatlan területén | B117: - | C117: - | D117: + | E117: - | F117: -
A118: Épületen kívüli elvezetőcsövek az ingatlan területén | B118: - | C118: - | D118: + | E118: - | F118: -
A119: Költségek (mentés,oltás,kárenyhítés,bontás,romeltakarítás) | B119: 0.1 | C119: 0.1 | D119: 0.1 | E119: 0.1 | F119: -
A120: Legmagasabb kártérítési összeg | B120: - | C120: - | D120: - | E120: - | F120: 0,15 MFt
A121: A biztosított helyiségeken kívül elhelyezett vitrinek és kirakatok üvegezése | B121: - | C121: - | D121: - | E121: - | F121: +
A122: Belső- és külső üvegezés, ideértve a cégtáblák üvegezését, tagozott üvegezés, üvegszerű műanyagok (pl. plexi- és akrilüveg) | B122: - | C122: - | D122: - | E122: - | F122: +
A123: Ólom-, sárgaréz- és műanyagüveg | B123: - | C123: - | D123: - | E123: - | F123: +
A124: Védőrács le- és felszerelési, sürgős üvegezési, állványozási, üvegcserepek eltakarítási költségei | B124: - | C124: - | D124: - | E124: - | F124: 0.1
A125: INGÓSÁG KIEGÉSZÍTŐK (biztosítási összegen felül)
A126: Hivatali eljárások többletköltségei | B126: 30% max. 6 MFt | C126: 30% max. 6 MFt | D126: 30% max. 6 MFt | E126: 30% max. 6 MFt | F126: -
A127: Tűzvédelmi és riasztási gyakorlatok | B127: O | F127: -
A128: *Radioaktív szennyeződés mellékköltségei - Szállítási, lebontási és izolációs költségek Veszélyes anyagok beleértve a radioaktív anyagokkal szenyezett föld kezelési többletköltségei | B128: 15% min. 1 MFt | C128: 15% min. 1 MFt | D128: 15% min. 1 MFt | E128: 15% min. 1 MFt | F128: -
A129: **Akták, tervek, iratok vmint másolási segédanyagok | B129: 10% min. 0,6 MFt max. 6 MFt | C129: 10% min. 0,6 MFt max. 6 MFt | D129: 10% min. 0,6 MFt max. 6 MFt | E129: 10% min. 0,6 MFt max. 6 MFt | F129: -
A130: Kerítés, külső létesítmények, berendezések, vmint antennák és napenergia-berendezés amennyiben az üzemeltető tulajdona (beleértve az ismeretlen jármű ütközését is) | B130: 15% max. 6 MFt | C130: 15% max. 6 MFt | D130: - | E130: - | F130: -
A131: Engedélyezett tüntetések során keletkezett károk | B131: - | C131: - | D131: - | E131: - | F131: 0,075 MFt
A132: Kirakaton elhelyezett festmények, képek és fóliák | B132: - | C132: - | D132: - | E132: - | F132: 0,2 MFt
A133: Áremelkedés, technikai korszerűsítés többletköltségei | B133: 10% max 2 MFt | C133: 10% max 2 MFt | D133: 10% max 2 MFt | E133: 10% max 2 MFt | F133: -
A134: Vízelfolyás | B134: - | C134: - | D134: 1 MFt | E134: - | F134: -
A135: Ügyfél kirablása a biztosított telephelyen | B135: - | C135: - | D135: - | E135: 2 MFt | F135: -
A136: Küldöttrablás | B136: - | C136: - | D136: - | E136: 2 MFt | F136: -
A137: Zárcsere költségei | B137: - | C137: - | D137: - | E137: 0,1 MFt | F137: -
A138: Telefonnal való visszaélés | B138: - | C138: - | D138: - | E138: 0,1 MFt | F138: -

Sheet FelLimit (hidden)
B2: UNION-Business Class
B3: Felelősségbiztosítás Alap csomag
A6: FELELŐSSÉG ALAPKOCKÁZATOK ÉS LIMITEK | B6: Általános, Munkáltatói és Termék és Szolgáltatás felelősségbiztosítás
A7: Káronkénti és éves kombinált limit | B7: 5 MFT/ kár /15 MFt/év
A8: Munkavállalók tárgyainak dologi kára | B8: 50.000,-/kár/fő
A9: FELELŐSSÉG KIEGÉSZÍTŐK
A10: Idegen járművek fel- és lerakodása | B10: -
A11: Európai kiterjesztés (kivételekkel) | B11: -
A12: Bérlői felelősség | B12: +
A13: Bérbeadói felelősség | B13: +
A14: Környezetszennyezési felelősség | B14: 1 MFt/kár/ 3 MFt/év
A15: Speciális gyártó- és kereskedelmi üzemek sz. választás szerint együttbiztosítható: Kibővített termékfelelősség-bizt. | B15: -
A16: Felelősség kiegészítők szállásüzemeltetők és fürdők részére
A17: Sport- és szórakoztató létesítmények (sportpálya, játszótér, uszoda, szauna, tekepálya, fittnessterem stb.) | B17: +
A18: Rendezvények és vendégek által igénybevett speciális szolgáltatások/ tevékenységek (szemináriumok, ülések, gyermekfelügyelet, túrázások, lovaglás, sportszerkölcsönzés stb.) | B18: +
A19: Szállóvendégek vagyontárgyainak betöréses lopás során keletkezett kára | B19: 50.000,- Ft / 150.000,- Ft
A20: Szállóvendégek gépjárművében, pótkocsijában és vízi járművében keletkezett károk, vagy azok megsemmisülése, elvesztése csak őrzött parkolóból betlop+rablás+szálloda által okozott kár | B20: -
B40: UNION-Business Class
B41: Felelősségbiztosítás Teljes csomag
A44: FELELŐSSÉG ALAPKOCKÁZATOK ÉS LIMITEK | B44: Általános, Munkáltatói és Termék és Szolgáltatás felelősségbiztosítás
A45: Káronkénti és éves kombinált limit | B45: 15 MFt/kár / 45MFt/év
A46: Munkavállalók tárgyainak dologi kára | B46: 100.000,- /kár/fő
A47: FELELŐSSÉG KIEGÉSZÍTŐK
A48: Idegen járművek fel- és lerakodása | B48: 250.000,- Ft/kár
A49: Európai kiterjesztés (kivételekkel) | B49: +
A50: Bérlői felelősség | B50: +
A51: Bérbeadói felelősség | B51: +
A52: Környezetszennyezési felelősség | B52: 2 MFt/kár/ 6 MFt/év
A53: Speciális gyártó- és kereskedelmi üzemek sz. választás szerint együttbiztosítható: Kibővített termékfelelősség-bizt. | B53: 3 MFt/kár/ 9 MFt/év
A54: Felelősség kiegészítők szállásüzemeltetők és fürdők részére
A55: Sport- és szórakoztató létesítmények (sportpálya, játszótér, uszoda, szauna, tekepálya, fittnessterem stb.) | B55: +
A56: Rendezvények és vendégek által igénybevett speciális szolgáltatások/ tevékenységek (szemináriumok, ülések, gyermekfelügyelet, túrázások, lovaglás, sportszerkölcsönzés stb.) | B56: +
A57: Szállóvendégek vagyontárgyainak betöréses lopás során keletkezett kára | B57: 100.000,- Ft/ 300.000,- Ft
A58: Szállóvendégek gépjárművében, pótkocsijában és vízi járművében keletkezett károk, vagy azok megsemmisülése, elvesztése csak őrzött parkolóból betlop+rablás+szálloda által okozott kár | B58: 3 MFt
B77: UNION-Business Class
B78: Felelősségbiztosítás Extra csomag
A81: FELELŐSSÉG ALAPKOCKÁZATOK ÉS LIMITEK | B81: Általános, Munkáltatói és Termék és Szolgáltatás felelősségbiztosítás
A82: Káronkénti és éves kombinált limit | B82: 50 MFt/kár / 100 MFt/év
A83: Munkavállalók tárgyainak dologi kára | B83: 200.000,-/kár/fő
A84: FELELŐSSÉG KIEGÉSZÍTŐK
A85: Idegen járművek fel- és lerakodása | B85: 500.000,- Ft/kár
A86: Európai kiterjesztés (kivételekkel) | B86: +
A87: Bérlői felelősség | B87: +
A88: Bérbeadói felelősség | B88: +
A89: Környezetszennyezési felelősség | B89: 4 MFt/kár /12 MFt/év
A90: Speciális gyártó- és kereskedelmi üzemek sz. választás szerint együttbiztosítható: Kibővített termékfelelősség-bizt. | B90: 6 MFt/kár/ 18 MFt/év
A91: Felelősség kiegészítők szállásüzemeltetők és fürdők részére
A92: Sport- és szórakoztató létesítmények (sportpálya, játszótér, uszoda, szauna, tekepálya, fittnessterem stb.) | B92: +
A93: Rendezvények és vendégek által igénybevett speciális szolgáltatások/ tevékenységek (szemináriumok, ülések, gyermekfelügyelet, túrázások, lovaglás, sportszerkölcsönzés stb.) | B93: +
A94: Szállóvendégek vagyontárgyainak betöréses lopás során keletkezett kára | B94: 300.000,- Ft / 900.000,- Ft
A95: Szállóvendégek gépjárművében, pótkocsijában és vízi járművében keletkezett károk, vagy azok megsemmisülése, elvesztése csak őrzött parkolóból betlop+rablás+szálloda által okozott kár | B95: 6 MFt

Sheet Munka9 (hidden)

Sheet Munka5 (hidden)

Sheet Munka1 (hidden)
